Workbook

Sheet Рачун финансирања
A2: На основу члана 43. Закона о буџетском систему ("Службени гласник РС", бр. 54/09, 73/10, 101/2010, 101/11, 93/12, 62/13 ,108/2013, 142/2014, 68/2015, 103/2015 и 99/2016), члана 32. Закона о локалној самоуправи ("Службени гласник РС", број 129/07 и 83/2014-др.Закон) и члана 41. Статута општине Мало Црниће ("Службени гласник општине Мало Црниће", број 12/2008), а на предлог Општинског већа, СКУПШТИНА ОПШТИНЕ Мало Црниће, на седници одржаној 26.03.2018. године, донела је
C4: О Д Л У К У
C5: О ИЗМЕНАМА И ДОПУНАМА ОДЛУКЕ О БУЏЕТУ ОПШТИНЕ МАЛО ЦРНИЋЕ ЗА 2018.ГОДИНУ-ПРВИ РЕБАЛАНС
C7: I ОПШТИ ДЕО
C8: Члан 1.
A9: Овом Одлуком врше се измене и допуне Одлуке о буџету Општине за 2018.годину (у дањем тексту: буџет) од 21.12.2017. године ("Службени гласник општине Мало Црниће", број 10/2017)
A10: Члан 2.
A11: Приходи и примања, расходи и издаци буџета састоје се од:
A12: А. | B12: РАЧУН ПРИХОДА И ПРИМАЊА | H12: Економска класификација | I12: Буџетска средства у динарима | J12: Средства из осталих извора
A13: 1. | B13: Укупни приходи и примања остварени по основу продаје нефинансијске имовине | H13: 7 + 8 | I13: =SUM('Оптшти део '!D101) -> 297222500 | J13: =SUM('Оптшти део '!F101) -> 7623673
A14: 2. | B14: Укупни расходи и издаци за набавку нефинансијске имовине | H14: 4 + 5 | I14: =SUM('По основ. нам.'!C89) -> 423829167 | J14: =SUM('По основ. нам.'!E89) -> 7623673
A15: 3. | B15: Буџетски суфицит/дефицит | H15: (7+8) - (4+5) | I15: =I13-I14 -> -126606667
A16: 4. | B16: Издаци за набавку финансијске имовине (осим за набавку домаћих хартија од вредности 6211) | H16: 62 | I16: ='По основ. нам.'!F86-'По основ. нам.'!F87 -> 0
A17: 6. | B17: Укупан фискални суфицит/дефицит | H17: (7+8) - (4+5) - 62 | I17: =I15+I16 -> -126606667
A18: Б. | B18: РАЧУН ФИНАНСИРАЊА
A19: 1. | B19: Примања од задуживања | H19: 91 | I19: ='Оптшти део '!G96 -> 0
A20: 2. | B20: Примања од продаје финансијске имовине (конта 9211, 9221, 9219, 9227, 9228) | H20: 92 | I20: ='Оптшти део '!G99 -> 41000
A21: 3. | B21: Неутрошена средства из претходних година | H21: 3 | I21: 126606667 | J21: 0
A22: 4. | B22: Издаци за набавку финансијске имовине (за набавку домаћих хартија од вредности 6211) | H22: 6211 | I22: ='По основ. нам.'!F87 -> 0
A23: 5. | B23: Издаци за отплату главнице дуга | H23: 61 | I23: 0
A24: B. | B24: Нето финансирање | H24: (91+92+3) - (61+6211) | I24: =I19+I20+I21-I22-I23 -> 126647667
C26: Члан 3.
A28: Буџет општине Мало Црниће за 2018. годину састоји се од :
B29: - приходи и примања у износу од 304.846.173 динара
B30: - расхода и издатака у износу од 431.452.840 динара
B33: - Буџетски дефицит 126.606.667 динара.
C35: Члан 4.
K36: 1
A37: Потребна средства за финансирање укупног фискалног дефицита из члана 2. ове одлуке у износу 126.606.667 динара, обезбедиће се из нераспоређеног вишка прихода из ранијих година.

Sheet Приџ,прим vs Расх,изд (hidden)
A1: Р.бр. | B1: ОПИС | C1: Шифра економске класификације | D1: Средства из буџета | E1: Средства из осталих извора | F1: Укупно
A2: 1 | B2: 2 | C2: 3 | D2: 4 | E2: 5 | F2: 6
A3: I | B3: УКУПНИ ПРИХОДИ И ПРИМАЊА ОД ПРОДАЈЕ НЕФИНАНСИЈСКЕ ИМОВИНЕ | C3: 7+8
A4: 1. | B4: Порески приходи | C4: 71
A5: 1.1. | B5: Порез на доходак, добит и капиталне добитке (осим самодоприноса) | C5: 711
A6: 1.2. | B6: Самодопринос | C6: 711180
A7: 1.3. | B7: Порез на имовину | C7: 713
A8: 1.6. | B8: Остали порески приходи
A9: 2. | B9: Непорески приходи | C9: 74
A10: 2.1 | B10: Накнада за коришћење природних добара | C10: 741510
A11: 2.2 | B11: Накнада за коришћење шумског и пољопривредног земљишта | C11: 741520
A12: 2.2 | B12: Накнада за коришћење грађевинског земљишта | C12: 741534
A13: 2.3 | B13: Накнада за коришћење природног лековитог фактора | C13: 741542
A14: 2.4 | B14: Приход од имовине који припада имаоцима полисе осигурања | C14: 741411
A15: 2.5 | B15: Накнада за обавезни здравствени преглед биља | C15: 742252
A16: 2.6 | B16: Накнада за уређивање грађевинског земљишта | C16: 742253
A17: 2.7 | B17: Приходи настали продајом услуга корисника средстава буџета јединице локлане самоуправе чије је пружање уговорено са физичким и правним лицима | C17: 742340
A18: 2.8 | B18: Остали непорески приходи
A19: 3. | B19: Донације | C19: 731+732
A20: 4. | B20: Трансфери | C20: 733
A21: 5. | B21: Меморандумске ставке за рефундацију расхода | C21: 771
A22: 6. | B22: Примања од продаје нефинансијске имовине | C22: 8
A23: II | B23: УКУПНИ РАСХОДИ И ИЗДАЦИ ЗА НАБАВКУ НЕФИНАНСИЈСКЕ ИМОВИНЕ | C23: 4+5
A24: 1. | B24: Текући расходи | C24: 4 - 463
A25: 1.1. | B25: Расходи за запослене | C25: 41
A26: 1.2. | B26: Коришћење роба и услуга | C26: 42
A27: 1.3. | B27: Употреба основних средстава | C27: 43
A28: 1.4. | B28: Отплата камата | C28: 44
A29: 1.5. | B29: Субвенције | C29: 45
A30: 1.6. | B30: Социјална заштита из буџета | C30: 47
A31: 1.7. | B31: Остали расходи | C31: 48+49
A32: 2. | B32: Трансфери | C32: 463
A33: 3. | B33: Издаци за набавку нефинансијске имовине | C33: 5
A34: 4. | B34: Издаци за набавку финансијске имовине (осим 6211) | C34: 62
A35: III | B35: ПРИМАЊА ОД ПРОДАЈЕ ФИНАНСИЈСКЕ ИМОВИНЕ И ЗАДУЖИВАЊА | C35: 9
A36: 1. | B36: Задуживање | C36: 91
A37: 1.1. | B37: Задуживање код домаћих кредитора | C37: 911
A38: 1.2. | B38: Задуживање код страних кредитора | C38: 912
A39: 2. | B39: Примања по основу отплате кредита и продаје финансијске имовине | C39: 92
A40: IV | B40: ОТПЛАТА ДУГА И НАБАВКА ФИНАНСИЈСКЕ ИМОВИНЕ | C40: 6
A41: 1. | B41: Отплата дуга | C41: 61
A42: 1.1. | B42: Отплата дуга домаћим кредиторима | C42: 611
A43: 1.2. | B43: Отплата дуга страним кредиторима | C43: 612
A44: 1.3. | B44: Отплата дуга по гаранцијама | C44: 613
A45: 2. | B45: Набавка финансијске имовине | C45: 6211
A47: V | B47: НЕРАСПОРЕЂЕНИ ВИШАК ПРИХОДА ИЗ РАНИЈИХ ГОДИНА | C47: 3

Sheet Оптшти део
C1: Члан 5.
A2: Приходи и примања буџета општине додатни приходи буџетских корисника и пренета неутрошена средства из претходне године по врстама, односно економским класификацијама, утврђени су у следећим износима:
A4: Класа/Категорија/Група | B4: Конто | C4: ВРСТЕ ПРИХОДА И ПРИМАЊА | D4: План за 2018. | G4: УКУПНА ЈАВНА СРЕДСТВА
D5: Средства из буџета | E5: Структ-ура % | F5: Средства из осталих извора финан. буџ. корисника
C6: Пренета средства из претходне године | E6: =IFERROR(D6/$D$103,"-") -> 0 | G6: =SUM(D6,F6) -> 0
A7: 700000 | C7: ТЕКУЋИ ПРИХОДИ | D7: =SUM(D8,D43,D50,D85,D87) -> 297081500 | E7: 0.700946332 | F7: =SUM(F8,F43,F50,F85,F87) -> 7623673 | G7: =SUM(G8,G43,G50,G85,G87) -> 304705173
A8: 710000 | C8: ПОРЕЗИ | D8: =SUM(D9,D22,D32,D41) -> 74037000 | E8: 0.1746859484 | F8: =SUM(F9,F22,F32,F41) -> 0 | G8: =SUM(G9,G22,G32,G41) -> 74037000
A9: 711000 | C9: ПОРЕЗ НА ДОХОДАК, ДОБИТ И КАПИТАЛНЕ ДОБИТКЕ | D9: =SUM(D10:D21) -> 39847000 | E9: 0.09401665365 | F9: =SUM(F10:F21) -> 0 | G9: =SUM(G10:G21) -> 39847000
B10: 711111 | C10: Порез на зараде | D10: 30000000 | E10: 0.07078323611 | G10: =SUM(F10,D10) -> 30000000
B11: 711121 | C11: Порез на приходе од самосталних делатности који се плаћа према стварно оствареном приходу, по решењу Пореске управе | D11: 90000 | E11: 0.0002123497083 | G11: =SUM(F11,D11) -> 90000
B12: 711122 | C12: Порез на приходе од самосталних делатности који се плаћа према паушално утврђеном приходу, по решењу Пореске управе | D12: 2800000 | E12: 0.006606435371 | G12: 2800000
B13: 711123 | C13: Порез на приходе од самосталних делатности који се плаћа према стварно оствареном приходу самоопорезивањем | D13: 4000000 | E13: 0.009437764815 | G13: 4000000
B14: 711143 | C14: Порез на приходе од непокретности | D14: 0 | E14: 0 | G14: 0
B15: 711145 | C15: Порез на приходе од давања у закуп покретних ствари - по основу самоопорезивања и по решењу Пореске управе | D15: 37000 | E15: 8.729932454e-05 | G15: 37000
B16: 711146 | C16: Порез на приход од пољопривреде и шумарства, по решењу Пореске управе | D16: 0 | E16: 0 | G16: 0
B17: 711147 | C17: Порез на земљиште | D17: 0 | E17: 0 | G17: 0
B18: 711148 | C18: Порез на приходе од непокретности, по решењу Пореске управе | D18: 0 | E18: 0 | G18: 0
B19: 711161 | C19: Порез на приходе од осигурања лица | E19: 0 | G19: 0
B20: 711181 | C20: Самодоприноси | E20: 0 | G20: 0
B21: 711190 | C21: Порез на друге приходе | D21: 2920000 | E21: 0.006889568315 | G21: 2920000
A22: 713000 | C22: ПОРЕЗ НА ИМОВИНУ | D22: =SUM(D23:D31) -> 24700000 | E22: 0.05827819773 | F22: =SUM(F23:F31) -> 0 | G22: =SUM(G23:G31) -> 24700000
B23: 713121 | C23: Порез на имовину (осим на земљиште, акције и уделе) од физичких лица | D23: 19000000 | E23: 0.04482938287 | G23: 19000000
B24: 713122 | C24: Порез на имовину (осим на земљиште, акције и уделе) од правних лица | D24: 2000000 | E24: 0.004718882408 | G24: 2000000
B25: 713126 | C25: Порез на имовину (осим на неизграђено земљиште), обвезника који воде пословне књиге | E25: 0 | G25: 0
B26: 713311 | C26: Порез на наслеђе и поклон по решењу Пореске управе | D26: 800000 | E26: 0.001887552963 | G26: 800000
B27: 713421 | C27: Порез на пренос апсолутних права на непокретности, по решењу Пореске управе | D27: 1400000 | E27: 0.003303217685 | G27: 1400000
B28: 713422 | C28: Порез на пренос апсолутних права на акцијама и другим хартијама од вредности, по решењу Пореске управе | E28: 0 | G28: 0
B29: 713423 | C29: Порез на пренос апсолутних права на моторним возилима, пловилима и ваздухопловима, по решењу Пореске управе | D29: 1500000 | E29: 0.003539161806 | G29: 1500000
B30: 713424 | C30: Порез на пренос апсолутних права у осталим случајевима, по решењу Пореске управе | E30: 0 | G30: 0
B31: 713611 | C31: Порез на акције на име и уделе | E31: 0 | G31: 0
A32: 714000 | C32: ПОРЕЗ НА ДОБРА И УСЛУГЕ | D32: =SUM(D33:D40) -> 7490000 | E32: 0.01767221462 | F32: =SUM(F33:F40) -> 0 | G32: =SUM(G33:G40) -> 7490000
B33: 714441 | C33: Средства за противпожарну заштиту | E33: 0 | G33: 0
B34: 714431 | C34: Комунална такса за коришћење рекламних паноа, укључујући и истицање и исписивање фирме ван пословног простора на објектима и просторима који припадају јединици локалне самоуправе(коловози, тротоари, зелене површине, бандере и сл.) | D34: 0 | E34: 0 | G34: 0
B35: 714513 | C35: Комунална такса за држање моторних друмских и прикључних возила, осим пољопривредних возила и машина | D35: 6400000 | E35: 0.0151004237 | G35: 6400000
B36: 714543 | C36: Накнада за промену намене обрадивог пољопривредног земљишта | D36: 0 | E36: 0 | G36: 0
B37: 714549 | C37: Накнада од емисије SO2, NO2, прашкастих материја и одложеног отпада | E37: 0 | G37: 0
B38: 714552 | C38: Боравишна такса | D38: 90000 | E38: =IFERROR(D38/$D$103,"-") -> 0.0002123497083 | G38: 90000
B39: 714562 | C39: Посебна накнада за заштиту и унапређење животне средине | D39: 1000000 | E39: 0.002359441204 | G39: 1000000
B40: 714572 | C40: Комунална такса за држање средстава за игру („забавне игре“) | D40: 0 | E40: 0 | G40: 0
A41: 716000 | C41: ДРУГИ ПОРЕЗИ | D41: =SUM(D42:D42) -> 2000000 | E41: 0.004718882408 | F41: =SUM(F42:F42) -> 0 | G41: =SUM(G42:G42) -> 2000000
B42: 716111 | C42: Комунална такса за истицање фирме на пословном простору | D42: 2000000 | E42: 0.004718882408 | G42: 2000000
A43: 730000 | C43: ДОНАЦИЈЕ И ТРАНСФЕРИ | D43: =SUM(D44,D46) -> 208437171 | E43: 0.4917952497 | F43: =SUM(F44,F46) -> 7087673 | G43: =SUM(G44,G46) -> 215524844
A44: 732000 | C44: ДОНАЦИЈЕ ОД МЕЂ. ОРГАНИЗАЦИЈА | D44: =SUM(D45) -> 0 | E44: 0 | F44: =SUM(F45) -> 0 | G44: =SUM(G45) -> 0
B45: 732140 | C45: Текуће донације од међународних организација у корист нивоа градова | E45: 0 | G45: =SUM(F45,D45) -> 0
A46: 733000 | C46: ТРАНСФЕРИ ОД ДРУГИХ НИВОА ВЛАСТИ | D46: =SUM(D47:D49) -> 208437171 | E46: 0.4917952497 | F46: =SUM(F47:F49) -> 7087673 | G46: =SUM(G47:G49) -> 215524844
B47: 733151 | C47: Ненаменски трансфери од Републике у корист нивоа општина | D47: 208437171 | E47: 0.4917952497 | F47: 520000 | G47: =SUM(F47,D47) -> 208957171
B48: 733154 | C48: Текући наменски трансфери, у ужем смислу, од Републике у корист нивоа општина | E48: 0 | F48: 6567673 | G48: 6567673
B49: 733251 | C49: Капитални трансфери од других нивоа власти у корист нивоаопштина | E49: 0 | G49: 0
A50: 740000 | C50: ДРУГИ ПРИХОДИ | D50: =SUM(D51,D63,D74,D78,D81) -> 14607329 | E50: 0.03446513392 | F50: =SUM(F51,F63,F74,F78,F81) -> 536000 | G50: =SUM(G51,G63,G74,G78,G81) -> 15143329
A51: 741000 | C51: ПРИХОДИ ОД ИМОВИНЕ | D51: =SUM(D52:D62) -> 1353000 | E51: 0.003192323949 | F51: =SUM(F52:F62) -> 0 | G51: =SUM(G52:G62) -> 1353000
B52: 741151 | C52: Приходи буџета општина од камата на средства консолидованог рачуна трезора укључена у депозит банака | D52: 0 | E52: 0 | G52: =SUM(F52,D52) -> 0
B53: 741411 | C53: Приход од имовине који припада имаоцима полисе осигурања | E53: 0 | G53: 0
B54: 741510 | C54: Накнада за коришћење природних добара | D54: 0 | E54: 0 | G54: 0
B55: 741520 | C55: Накнада за коришћење шумског и пољопривредног земљишта | D55: 1004000 | E55: 0.002368878969 | G55: 1004000
B56: 741531 | C56: Комунална такса за коришћење простора на јавним површинама или испред пословног простора у пословне сврхе, осим ради продаје штампе, књига и других публикација, производа старих и уметничких заната и домаће радиности | D56: 149000 | E56: 0.0003515567394 | G56: 149000
B57: 741532 | C57: Комунална такса за коришћење простора за паркирање друмских моторних и прикључних возила на уређеним и обележеним местима | E57: 0 | G57: 0
B58: 741533 | C58: Комунална такса за коришћење слободних површина за кампове, постављање шатора или друге облике привременог коришћења | E58: 0 | G58: 0
B59: 741534 | C59: Накнада за коришћење грађевинског земљишта | D59: 0 | E59: 0 | G59: 0
B60: 741535 | C60: Комунална такса за заузеће јавне површине грађевинским материјалом | D60: 200000 | E60: 0.0004718882408 | G60: 200000
B61: 741542 | C61: Накнада за коришћење природног лековитог фактора | E61: 0 | G61: 0
B62: 741560 | C62: Накнада за воде | E62: 0 | G62: 0
A63: 742000 | C63: ПРИХОДИ ОД ПРОДАЈЕ ДОБАРА И УСЛУГА | D63: =SUM(D64:D73) -> 8834329 | E63: 0.02084407985 | F63: =SUM(F64:F73) -> 385000 | G63: =SUM(G64:G73) -> 9219329.004
B64: 742152 | C64: Приходи од давања у закуп, односно на коришћење непокретности у државној својини које користе општине и индиректни корисници њиховог буџета | D64: 5900000 | E64: 0.0139207031 | F64: 0 | G64: 5900000
B65: 7421453 | C65: Приходи од закупнине за грађевинско земљиште у корист нивоа градова | E65: 0 | G65: 0
B66: 742251 | C66: Општинске административне таксе | D66: 1400000 | E66: 0.003303217685 | G66: 1400000
B67: 742252 | C67: Накнада за обавезни здравствени преглед биља | E67: 0 | G67: 0
B68: 742253 | C68: Накнада за уређивање грађевинског земљишта | D68: 0 | E68: 0 | G68: 0
G70: стр.3
B71: 742351 | C71: Приходи који својом делатношћу остваре органи и организације општине | D71: 0 | E71: =IFERROR(D71/$D$103,"-") -> 0 | F71: 0 | G71: 0
B72: 742255 | C72: Такса за озакоњење објеката у корист нивоа општине | D72: 1534329 | E72: =IFERROR(D72/$D$103,"-") -> 0.003620159063 | G72: =SUM(D72:F72) -> 1534329.004
B73: 742351 | C73: Приходи које својом делатношћу остваре органи и организације општине | D73: 0 | E73: 0 | F73: 385000 | G73: =SUM(F73) -> 385000 | H73: 2
A74: 743000 | C74: НОВЧАНЕ КАЗНЕ И ОДУЗЕТА ИМОВИНСКА КОРИСТ | D74: =SUM(D75:D77) -> 2040000 | E74: =IFERROR(D74/$D$103,"-") -> 0.004813260056 | F74: =SUM(F75:F76) -> 0 | G74: =SUM(G75:G77) -> 2040000
B75: 743324 | C75: Приходи од новчаних казни за прекршаје, предвиђене прописима о безбедности саобраћаја на путевима | D75: 2000000 | E75: 0.004718882408 | G75: 2000000
B76: 743350 | C76: Приходи од новчаних казни за прекршаје у корист нивоа градова | D76: 20000 | E76: 4.718882408e-05 | G76: 20000
B77: 743920 | C77: Приходи од увећања пореског дуга | D77: 20000 | E77: 4.718882408e-05 | G77: =SUM(D77,F77) -> 20000
A78: 744000 | C78: ДОБРОВОЉНИ ТРАНСФЕРИ ОД ФИЗИЧКИХ И ПРАВНИХ ЛИЦА | D78: =SUM(D79:D80) -> 1000000 | E78: 0.002359441204 | F78: =SUM(F79:F80) -> 151000 | G78: =SUM(G79:G80) -> 1151000
B79: 744141 | C79: Текући добровољни трансфери од физичких и правних лица у корист нивоа градова | E79: 0 | G79: 0
B80: 744241 | C80: Капитални добровољни трансфери од физичких и правних лица у корист нивоа општина | D80: 1000000 | E80: 0.002359441204 | F80: 151000 | G80: 1151000
A81: 745000 | C81: МЕШОВИТИ И НЕОДРЕЂЕНИ ПРИХОДИ | D81: =SUM(D82:D84) -> 1380000 | E81: 0.003256028861 | F81: =SUM(F82:F84) -> 0 | G81: =SUM(G82:G84) -> 1380000
B82: 745151 | C82: Остали приходи у корист нивоа општина | D82: 1300000 | E82: 0.003067273565 | G82: 1300000
B83: 745152 | C83: Закупнина за стан у државној својини у корист нивоа општина | E83: 0 | G83: 0
B84: 745153 | C84: Део добити јавног предузећа према одлуци управног одбора јавног предузећа у корист нивоа општина | D84: 80000 | E84: 0.0001887552963 | G84: 80000
A85: 770000 | C85: МЕМОРАНДУМСКЕ СТАВКЕ ЗА РЕФУНДАЦИЈУ РАСХОДА | D85: =SUM(D86) -> 0 | E85: 0 | F85: =SUM(F86) -> 0 | G85: =SUM(G86) -> 0
B86: 771111 | C86: Меморандумске ставке за рефундацију расхода | D86: 0 | E86: 0 | G86: 0
A87: 790000 | C87: ПРИХОДИ ИЗ БУЏЕТА | D87: =SUM(D88) -> 0 | E87: 0 | F87: =SUM(F88) -> 0 | G87: =SUM(G88) -> 0
B88: 791110 | C88: Приходи из буџета | E88: 0 | G88: 0
A89: 800000 | C89: ПРИМАЊА ОД ПРОДАЈЕ НЕФИНАНСИЈСКЕ ИМОВИНЕ | D89: =D90+D93 -> 100000 | E89: 0.0002359441204 | F89: =F90+F93 -> 0 | G89: =G90+G93 -> 100000
A90: 810000 | C90: ПРИМАЊА ОД ПРОДАЈЕ ОСНОВНИХ СРЕДСТАВА | D90: =SUM(D91:D92) -> 100000 | E90: 0.0002359441204 | F90: =SUM(F91:F92) -> 0 | G90: =SUM(G91:G92) -> 100000
B91: 811000 | C91: Примања од продаје непокретности | E91: 0 | G91: =SUM(F91,D91) -> 0
B92: 812000 | C92: Примања од продаје покретне имовине | D92: 100000 | E92: 0.0002359441204 | G92: 100000
A93: 840000 | C93: ПРИМАЊА ОД ПРОДАЈЕ ПРИРОДНЕ ИМОВИНЕ | D93: =SUM(D94) -> 0 | E93: 0 | F93: =SUM(F94) -> 0 | G93: =SUM(G94) -> 0
B94: 841000 | C94: Примања од продаје земљишта | E94: 0 | G94: =SUM(F94,D94) -> 0
A95: 900000 | C95: ПРИМАЊА ОД ЗАДУЖИВАЊА И ПРОДАЈЕ ФИНАНСИЈСКЕ ИМОВИНЕ | D95: =SUM(D96,D99) -> 41000 | E95: 9.673708936e-05 | F95: =SUM(F96,F99) -> 0 | G95: =SUM(G96,G99) -> 41000
A96: 910000 | C96: ПРИМАЊА ОД ЗАДУЖИВАЊА | D96: =SUM(D97:D98) -> 0 | E96: 0 | F96: =SUM(F97:F98) -> 0 | G96: =SUM(G97:G98) -> 0
B97: 911441 | C97: Примања од задуживања од пословних банака у земљи у корист нивоа градова | E97: 0 | G97: =SUM(F97,D97) -> 0
B98: 912 | C98: Примања од иностраног задуживања | E98: 0 | G98: 0
A99: 920000 | C99: ПРИМАЊА ОД ПРОДАЈЕ ФИН. ИМОВИНЕ | D99: =SUM(D100) -> 41000 | E99: 9.673708936e-05 | F99: =SUM(F100) -> 0 | G99: =SUM(G100) -> 41000
B100: 921941 | C100: Примања од продаје домаћих акција и осталог капитала у корист нивоа градова | D100: 41000 | E100: 9.673708936e-05 | G100: =SUM(F100,D100) -> 41000
B101: 7+8+9 | C101: ТЕКУЋИ ПРИХОДИ И ПРИМАЊА ОД ЗАДУЖИВАЊА И ПРОДАЈЕ ФИН. ИМОВИНЕ | D101: =SUM(D7,D89,D95) -> 297222500 | E101: 0.7012790132 | F101: =SUM(F7,F89,F95) -> 7623673 | G101: =SUM(D101,F101) -> 304846173
B102: 3 | C102: Пренета средства из претходне године | D102: 126606667 | E102: % | F102: 0 | G102: =SUM(F102,D102) -> 126606667
B103: 3+7+8+9 | C103: УКУПНО ПРЕНЕТА СРЕДСТВА, ТЕКУЋИ ПРИХОДИ И ПРИМАЊА | D103: =SUM(D101,D102) -> 423829167 | E103: 1 | F103: =SUM(F6,F7,F89,F95,F102) -> 7623673 | G103: =SUM(G101,G102) -> 431452840 | H103: 3

Sheet По основ. нам.
B1: Члан 6.
A2: Укупни расходи и издаци буџета по основним наменама, утврђени су у следећим износима:
A4: Екон. клас. | B4: ВРСТЕ РАСХОДА И ИЗДАТАКА | C4: Средства из буџета | D4: Структура % | E4: Средства из осталих извора | F4: Укупна јавна средства
A5: 1 | B5: 2 | C5: 3 | D5: 4 | E5: 5 | F5: 6
A6: 400 | B6: ТЕКУЋИ РАСХОДИ | C6: =SUM(C7,C16,C23,C29,C34,C40,C47,C49,C56) -> 281626000 | D6: =IFERROR(C6/$C$89,"-") -> 0.6644799885 | E6: =SUM(E7,E16,E23,E29,E34,E40,E47,E49,E56) -> 7598673 | F6: =SUM(E6,C6) -> 289224673
A7: 410 | B7: РАСХОДИ ЗА ЗАПОСЛЕНЕ | C7: =SUM(C8:C15) -> 63998388 | D7: =IFERROR(C7/$C$89,"-") -> 0.1510004336 | E7: =SUM(E8:E15) -> 3876540 | F7: =C7+E7 -> 67874928
A8: 411 | B8: Плате и додаци запослених | C8: =SUMIF('По корисницима'!$F$7:$F$16307,'По основ. нам.'!A8,'По корисницима'!$H$7:$H$16307) -> 46785372 | D8: =IFERROR(C8/$C$89,"-") -> 0.1103873344 | E8: =SUMIF('По корисницима'!$F$7:$F$16307,'По основ. нам.'!A8,'По корисницима'!$I$7:$I$16307) -> 3287988 | F8: =C8+E8 -> 50073360
A9: 412 | B9: Социјални доприноси на терет послодавца | C9: =SUMIF('По корисницима'!$F$7:$F$16307,'По основ. нам.'!A9,'По корисницима'!$H$7:$H$16307) -> 8716016 | D9: 0.02056492728 | E9: =SUMIF('По корисницима'!$F$7:$F$16307,'По основ. нам.'!A9,'По корисницима'!$I$7:$I$16307) -> 588552 | F9: =C9+E9 -> 9304568
A10: 413 | B10: Накнаде у натури (превоз) | C10: =SUMIF('По корисницима'!$F$7:$F$16307,'По основ. нам.'!A10,'По корисницима'!$H$7:$H$16307) -> 790000 | D10: 0.001863958551 | E10: =SUMIF('По корисницима'!$F$7:$F$16307,'По основ. нам.'!A10,'По корисницима'!$I$7:$I$16307) -> 0 | F10: 790000
A11: 414 | B11: Социјална давања запосленима | C11: =SUMIF('По корисницима'!$F$7:$F$16307,'По основ. нам.'!A11,'По корисницима'!$H$7:$H$16307) -> 1710000 | D11: 0.004034644459 | E11: =SUMIF('По корисницима'!$F$7:$F$16307,'По основ. нам.'!A11,'По корисницима'!$I$7:$I$16307) -> 0 | F11: 1710000
A12: 415 | B12: Накнаде за запослене | C12: =SUMIF('По корисницима'!$F$7:$F$16307,'По основ. нам.'!A12,'По корисницима'!$H$7:$H$16307) -> 5011000 | D12: 0.01182315987 | E12: =SUMIF('По корисницима'!$F$7:$F$16307,'По основ. нам.'!A12,'По корисницима'!$I$7:$I$16307) -> 0 | F12: 5011000
A13: 416 | B13: Награде,бонуси и остали посебни расходи | C13: =SUMIF('По корисницима'!$F$7:$F$16307,'По основ. нам.'!A13,'По корисницима'!$H$7:$H$16307) -> 986000 | D13: 0.002326409027 | E13: =SUMIF('По корисницима'!$F$7:$F$16307,'По основ. нам.'!A13,'По корисницима'!$I$7:$I$16307) -> 0 | F13: 986000
A14: 417 | B14: Посланички додатак; | C14: =SUMIF('По корисницима'!$F$7:$F$16307,'По основ. нам.'!A14,'По корисницима'!$H$7:$H$16307) -> 0 | D14: 0 | E14: =SUMIF('По корисницима'!$F$7:$F$16307,'По основ. нам.'!A14,'По корисницима'!$I$7:$I$16307) -> 0 | F14: 0
A15: 418 | B15: Судијски додатак. | C15: =SUMIF('По корисницима'!$F$7:$F$16307,'По основ. нам.'!A15,'По корисницима'!$H$7:$H$16307) -> 0 | D15: 0 | E15: =SUMIF('По корисницима'!$F$7:$F$16307,'По основ. нам.'!A15,'По корисницима'!$I$7:$I$16307) -> 0 | F15: 0
A16: 420 | B16: КОРИШЋЕЊЕ УСЛУГА И РОБА | C16: =SUM(C17:C22) -> 105288112 | D16: 0.2484211097 | E16: =SUM(E17:E22) -> 1739388 | F16: 107027500
A17: 421 | B17: Стални трошкови | C17: =SUMIF('По корисницима'!$F$7:$F$16307,'По основ. нам.'!A17,'По корисницима'!$H$7:$H$16307) -> 15757112 | D17: 0.03717797931 | E17: =SUMIF('По корисницима'!$F$7:$F$16307,'По основ. нам.'!A17,'По корисницима'!$I$7:$I$16307) -> 878388 | F17: 16635500
A18: 422 | B18: Трошкови путовања | C18: =SUMIF('По корисницима'!$F$7:$F$16307,'По основ. нам.'!A18,'По корисницима'!$H$7:$H$16307) -> 1670000 | D18: 0.00394026681 | E18: =SUMIF('По корисницима'!$F$7:$F$16307,'По основ. нам.'!A18,'По корисницима'!$I$7:$I$16307) -> 100000 | F18: 1770000
A19: 423 | B19: Услуге по уговору | C19: =SUMIF('По корисницима'!$F$7:$F$16307,'По основ. нам.'!A19,'По корисницима'!$H$7:$H$16307) -> 35883000 | D19: 0.08466382872 | E19: =SUMIF('По корисницима'!$F$7:$F$16307,'По основ. нам.'!A19,'По корисницима'!$I$7:$I$16307) -> 471000 | F19: 36354000
A20: 424 | B20: Специјализоване услуге | C20: =SUMIF('По корисницима'!$F$7:$F$16307,'По основ. нам.'!A20,'По корисницима'!$H$7:$H$16307) -> 3907000 | D20: 0.009218336783 | E20: =SUMIF('По корисницима'!$F$7:$F$16307,'По основ. нам.'!A20,'По корисницима'!$I$7:$I$16307) -> 0 | F20: 3907000
A21: 425 | B21: Текуће поправке и одржавање (услуге и мат) | C21: =SUMIF('По корисницима'!$F$7:$F$16307,'По основ. нам.'!A21,'По корисницима'!$H$7:$H$16307) -> 41272500 | D21: 0.09738003708 | E21: =SUMIF('По корисницима'!$F$7:$F$16307,'По основ. нам.'!A21,'По корисницима'!$I$7:$I$16307) -> 0 | F21: 41272500
A22: 426 | B22: Материјал | C22: =SUMIF('По корисницима'!$F$7:$F$16307,'По основ. нам.'!A22,'По корисницима'!$H$7:$H$16307) -> 6798500 | D22: 0.01604066102 | E22: =SUMIF('По корисницима'!$F$7:$F$16307,'По основ. нам.'!A22,'По корисницима'!$I$7:$I$16307) -> 290000 | F22: 7088500
A23: 430 | B23: УПОТРЕБА ОСНОВНИХ СРЕДСТАВА | C23: =SUM(C24:C28) -> 0 | D23: 0 | E23: =SUM(E24:E28) -> 0 | F23: 0
A24: 431 | B24: Амортизација некретнина и опреме; | C24: =SUMIF('По корисницима'!$F$7:$F$16307,'По основ. нам.'!A24,'По корисницима'!$H$7:$H$16307) -> 0 | D24: 0 | E24: =SUMIF('По корисницима'!$F$7:$F$16307,'По основ. нам.'!A24,'По корисницима'!$I$7:$I$16307) -> 0 | F24: 0
A25: 432 | B25: Амортизација култивисане имовине; | C25: =SUMIF('По корисницима'!$F$7:$F$16307,'По основ. нам.'!A25,'По корисницима'!$H$7:$H$16307) -> 0 | D25: 0 | E25: =SUMIF('По корисницима'!$F$7:$F$16307,'По основ. нам.'!A25,'По корисницима'!$I$7:$I$16307) -> 0 | F25: 0
A26: 433 | B26: Употреба драгоцености; | C26: =SUMIF('По корисницима'!$F$7:$F$16307,'По основ. нам.'!A26,'По корисницима'!$H$7:$H$16307) -> 0 | D26: 0 | E26: =SUMIF('По корисницима'!$F$7:$F$16307,'По основ. нам.'!A26,'По корисницима'!$I$7:$I$16307) -> 0 | F26: 0
A27: 434 | B27: Употреба природне имовине; | C27: =SUMIF('По корисницима'!$F$7:$F$16307,'По основ. нам.'!A27,'По корисницима'!$H$7:$H$16307) -> 0 | D27: 0 | E27: =SUMIF('По корисницима'!$F$7:$F$16307,'По основ. нам.'!A27,'По корисницима'!$I$7:$I$16307) -> 0 | F27: 0
A28: 435 | B28: Амортизација нематеријалне имовине | C28: =SUMIF('По корисницима'!$F$7:$F$16307,'По основ. нам.'!A28,'По корисницима'!$H$7:$H$16307) -> 0 | D28: 0 | E28: =SUMIF('По корисницима'!$F$7:$F$16307,'По основ. нам.'!A28,'По корисницима'!$I$7:$I$16307) -> 0 | F28: 0
A29: 440 | B29: ОТПЛАТА КАМАТА | C29: =SUM(C30:C33) -> 0 | D29: 0 | E29: =SUM(E30:E33) -> 0 | F29: 0
A30: 441 | B30: Отплата домаћих камата; | C30: =SUMIF('По корисницима'!$F$7:$F$16307,'По основ. нам.'!A30,'По корисницима'!$H$7:$H$16307) -> 0 | D30: 0 | E30: =SUMIF('По корисницима'!$F$7:$F$16307,'По основ. нам.'!A30,'По корисницима'!$I$7:$I$16307) -> 0 | F30: 0
A31: 442 | B31: Отплата страних камата; | C31: =SUMIF('По корисницима'!$F$7:$F$16307,'По основ. нам.'!A31,'По корисницима'!$H$7:$H$16307) -> 0 | D31: 0 | E31: =SUMIF('По корисницима'!$F$7:$F$16307,'По основ. нам.'!A31,'По корисницима'!$I$7:$I$16307) -> 0 | F31: 0
A32: 443 | B32: Отплата камата по гаранцијама | C32: =SUMIF('По корисницима'!$F$7:$F$16307,'По основ. нам.'!A32,'По корисницима'!$H$7:$H$16307) -> 0 | D32: 0 | E32: =SUMIF('По корисницима'!$F$7:$F$16307,'По основ. нам.'!A32,'По корисницима'!$I$7:$I$16307) -> 0 | F32: 0
A33: 444 | B33: Пратећи трошкови задуживања | C33: =SUMIF('По корисницима'!$F$7:$F$16307,'По основ. нам.'!A33,'По корисницима'!$H$7:$H$16307) -> 0 | D33: 0 | E33: =SUMIF('По корисницима'!$F$7:$F$16307,'По основ. нам.'!A33,'По корисницима'!$I$7:$I$16307) -> 0 | F33: 0
A34: 450 | B34: СУБВЕНЦИЈЕ | C34: =SUM(C35:C39) -> 11900000 | D34: 0.02807735033 | E34: =SUM(E35:E39) -> 0 | F34: 11900000
A35: 4511 | B35: Текуће субвенције јавним нефинансијским предузећима и организацијама | C35: =SUMIF('По корисницима'!$F$7:$F$16307,'По основ. нам.'!A35,'По корисницима'!$H$7:$H$16307) -> 11000000 | D35: 0.02595385324 | E35: =SUMIF('По корисницима'!$F$7:$F$16307,'По основ. нам.'!A35,'По корисницима'!$I$7:$I$16307) -> 0 | F35: 11000000
A36: 4512 | B36: Капиталне субвенције јавним нефинансијским предузећима и организацијама | C36: =SUMIF('По корисницима'!$F$7:$F$16307,'По основ. нам.'!A36,'По корисницима'!$H$7:$H$16307) -> 900000 | D36: 0.002123497083 | E36: =SUMIF('По корисницима'!$F$7:$F$16307,'По основ. нам.'!A36,'По корисницима'!$I$7:$I$16307) -> 0 | F36: 900000
A37: 452 | B37: Субвенције приватним финансијским институцијама; | C37: =SUMIF('По корисницима'!$F$7:$F$16307,'По основ. нам.'!A37,'По корисницима'!$H$7:$H$16307) -> 0 | D37: 0 | E37: =SUMIF('По корисницима'!$F$7:$F$16307,'По основ. нам.'!A37,'По корисницима'!$I$7:$I$16307) -> 0
A38: 453 | B38: Субвенције јавним финансијским институцијама; | C38: =SUMIF('По корисницима'!$F$7:$F$16307,'По основ. нам.'!A38,'По корисницима'!$H$7:$H$16307) -> 0 | D38: 0 | E38: =SUMIF('По корисницима'!$F$7:$F$16307,'По основ. нам.'!A38,'По корисницима'!$I$7:$I$16307) -> 0 | F38: 0
A39: 454 | B39: Субвенције приватним предузећима | C39: =SUMIF('По корисницима'!$F$7:$F$16307,'По основ. нам.'!A39,'По корисницима'!$H$7:$H$16307) -> 0 | D39: 0 | E39: =SUMIF('По корисницима'!$F$7:$F$16307,'По основ. нам.'!A39,'По корисницима'!$I$7:$I$16307) -> 0 | F39: 0
A40: 460 | B40: ДОНАЦИЈЕ И ТРАНСФЕРИ | C40: =SUM(C41:C46) -> 63027500 | D40: 0.1487096805 | E40: =SUM(E41:E46) -> 0 | F40: 63027500
A41: 461 | B41: Донације страним владама | C41: =SUMIF('По корисницима'!$F$7:$F$16307,'По основ. нам.'!A41,'По корисницима'!$H$7:$H$16307) -> 0 | D41: 0 | E41: =SUMIF('По корисницима'!$F$7:$F$16307,'По основ. нам.'!A41,'По корисницима'!$I$7:$I$16307) -> 0 | F41: 0
A42: 462 | B42: Донације и дотације међународним организацијама | C42: =SUMIF('По корисницима'!$F$7:$F$16307,'По основ. нам.'!A42,'По корисницима'!$H$7:$H$16307) -> 0 | D42: 0 | E42: =SUMIF('По корисницима'!$F$7:$F$16307,'По основ. нам.'!A42,'По корисницима'!$I$7:$I$16307) -> 0 | F42: 0
A43: 4631 | B43: Текући трансфери осталим нивоима власти | C43: =SUMIF('По корисницима'!$F$7:$F$16307,'По основ. нам.'!A43,'По корисницима'!$H$7:$H$16307) -> 37996280 | D43: 0.08964998862 | E43: =SUMIF('По корисницима'!$F$7:$F$16307,'По основ. нам.'!A43,'По корисницима'!$I$7:$I$16307) -> 0 | F43: 37996280
A44: 4632 | B44: Капитални трансфери осталим нивоима власти | C44: =SUMIF('По корисницима'!$F$7:$F$16307,'По основ. нам.'!A44,'По корисницима'!$H$7:$H$16307) -> 11337220 | D44: 0.026749504 | E44: =SUMIF('По корисницима'!$F$7:$F$16307,'По основ. нам.'!A44,'По корисницима'!$I$7:$I$16307) -> 0 | F44: 11337220
A45: 464 | B45: Дотације организацијама обавезног социјалног осигурања | C45: =SUMIF('По корисницима'!$F$7:$F$16307,'По основ. нам.'!A45,'По корисницима'!$H$7:$H$16307) -> 7100000 | D45: 0.01675203255 | E45: =SUMIF('По корисницима'!$F$7:$F$16307,'По основ. нам.'!A45,'По корисницима'!$I$7:$I$16307) -> 0 | F45: 7100000
A46: 465 | B46: Остале донације, дотације и трансфери | C46: =SUMIF('По корисницима'!$F$7:$F$16307,'По основ. нам.'!A46,'По корисницима'!$H$7:$H$16307) -> 6594000 | D46: 0.0155581553 | E46: =SUMIF('По корисницима'!$F$7:$F$16307,'По основ. нам.'!A46,'По корисницима'!$I$7:$I$16307) -> 0 | F46: 6594000
A47: 470 | B47: СОЦИЈАЛНА ПОМОЋ | C47: =SUM(C48) -> 11780000 | D47: 0.02779421738 | E47: =SUM(E48) -> 1982745 | F47: 13762745
A48: 472 | B48: Накнаде за социјалну заштиту из буџета | C48: =SUMIF('По корисницима'!$F$7:$F$16307,'По основ. нам.'!A48,'По корисницима'!$H$7:$H$16307) -> 11780000 | D48: 0.02779421738 | E48: =SUMIF('По корисницима'!$F$7:$F$16307,'По основ. нам.'!A48,'По корисницима'!$I$7:$I$16307) -> 1982745 | F48: 13762745
A49: 480 | B49: ОСТАЛИ РАСХОДИ | C49: =SUM(C50:C55) -> 18632000 | D49: 0.04396110851 | E49: =SUM(E50:E55) -> 0 | F49: =C49+E49 -> 18632000
A50: 481 | B50: Дотације невладиним организацијама; | C50: =SUMIF('По корисницима'!$F$7:$F$16307,'По основ. нам.'!A50,'По корисницима'!$H$7:$H$16307) -> 11485000 | D50: 0.02709818223 | E50: =SUMIF('По корисницима'!$F$7:$F$16307,'По основ. нам.'!A50,'По корисницима'!$I$7:$I$16307) -> 0 | F50: =C50+E50 -> 11485000
A51: 482 | B51: Порези, обавезне таксе, казне и пенали; | C51: =SUMIF('По корисницима'!$F$7:$F$16307,'По основ. нам.'!A51,'По корисницима'!$H$7:$H$16307) -> 2777000 | D51: 0.006552168223 | E51: =SUMIF('По корисницима'!$F$7:$F$16307,'По основ. нам.'!A51,'По корисницима'!$I$7:$I$16307) -> 0 | F51: =C51+E51 -> 2777000
A52: 483 | B52: Новчане казне и пенали по решењу судова; | C52: =SUMIF('По корисницима'!$F$7:$F$16307,'По основ. нам.'!A52,'По корисницима'!$H$7:$H$16307) -> 120000 | D52: 0.0002831329445 | F52: 120000
A53: 484 | B53: Накнада штете за повреде или штету насталу услед елементарних непогода или других природних узрока; | C53: =SUMIF('По корисницима'!$F$7:$F$16307,'По основ. нам.'!A53,'По корисницима'!$H$7:$H$16307) -> 400000 | D53: 0.0009437764815 | E53: =SUMIF('По корисницима'!$F$7:$F$16307,'По основ. нам.'!A53,'По корисницима'!$I$7:$I$16307) -> 0 | F53: 400000
A54: 485 | B54: Накнада штете за повреде или штету нанету од стране државних органа; | C54: =SUMIF('По корисницима'!$F$7:$F$16307,'По основ. нам.'!A54,'По корисницима'!$H$7:$H$16307) -> 3850000 | D54: 0.009083848635 | E54: =SUMIF('По корисницима'!$F$7:$F$16307,'По основ. нам.'!A54,'По корисницима'!$I$7:$I$16307) -> 0 | F54: 3850000
A55: 489 | B55: Расходи који се финансирају из средстава за реализацију националног инвестиционог плана | C55: =SUMIF('По корисницима'!$F$7:$F$16307,'По основ. нам.'!A55,'По корисницима'!$H$7:$H$16307) -> 0 | D55: 0 | E55: =SUMIF('По корисницима'!$F$7:$F$16307,'По основ. нам.'!A55,'По корисницима'!$I$7:$I$16307) -> 0 | F55: 0
A56: 490 | B56: АДМИНИСТРАТИВНИ ТРАНСФЕРИ БУЏЕТА | C56: =SUM(C57:C62) -> 7000000 | D56: 0.01651608843 | E56: =SUM(E61:E62) -> 0 | F56: 7000000
A57: 494 | B57: Административни трансфери из буџета - Текући расходи | C57: =SUMIF('По корисницима'!$F$7:$F$16307,'По основ. нам.'!A57,'По корисницима'!$H$7:$H$16307) -> 0 | D57: 0 | E57: =SUMIF('По корисницима'!$F$7:$F$16307,'По основ. нам.'!A57,'По корисницима'!$I$7:$I$16307) -> 0 | F57: 0
A58: 495 | B58: Административни трансфери из буџета - Издаци за нефинансијску имовину | C58: =SUMIF('По корисницима'!$F$7:$F$16307,'По основ. нам.'!A58,'По корисницима'!$H$7:$H$16307) -> 0 | D58: 0 | E58: =SUMIF('По корисницима'!$F$7:$F$16307,'По основ. нам.'!A58,'По корисницима'!$I$7:$I$16307) -> 0 | F58: 0
A59: 496 | B59: Административни трансфери из буџета - Издаци за отплату главнице и набавку финансијске имовине | C59: =SUMIF('По корисницима'!$F$7:$F$16307,'По основ. нам.'!A59,'По корисницима'!$H$7:$H$16307) -> 0 | D59: 0 | E59: =SUMIF('По корисницима'!$F$7:$F$16307,'По основ. нам.'!A59,'По корисницима'!$I$7:$I$16307) -> 0 | F59: 0
A60: 499 | B60: Административни трансфери из буџета - Средства резерве | C60: =SUMIF('По корисницима'!$F$7:$F$16307,'По основ. нам.'!A60,'По корисницима'!$H$7:$H$16307) -> 0 | D60: 0 | E60: =SUMIF('По корисницима'!$F$7:$F$16307,'По основ. нам.'!A60,'По корисницима'!$I$7:$I$16307) -> 0 | F60: 0
A61: 49911 | B61: Стална резерва | C61: =SUMIF('По корисницима'!$F$7:$F$16307,'По основ. нам.'!A61,'По корисницима'!$H$7:$H$16307) -> 1000000 | D61: 0.002359441204 | E61: =SUMIF('По корисницима'!$F$7:$F$16307,'По основ. нам.'!A61,'По корисницима'!$I$7:$I$16307) -> 0 | F61: 1000000
A62: 49912 | B62: Текућа резерва | C62: =SUMIF('По корисницима'!$F$7:$F$16307,'По основ. нам.'!A62,'По корисницима'!$H$7:$H$16307) -> 6000000 | D62: 0.01415664722 | E62: =SUMIF('По корисницима'!$F$7:$F$16307,'По основ. нам.'!A62,'По корисницима'!$I$7:$I$16307) -> 0 | F62: 6000000
A63: 500 | B63: КАПИТАЛНИ ИЗДАЦИ | C63: =SUM(C64,C70,C75,C79) -> 142203167 | D63: =IFERROR(C63/$C$89,"-") -> 0.3355200115 | E63: =SUM(E64,E70,E75,E79) -> 25000 | F63: =SUM(C63,E63) -> 142228167
A64: 510 | B64: ОСНОВНА СРЕДСТВА | C64: =SUM(C65:C69) -> 139203167 | D64: 0.3284416879 | E64: =SUM(E65:E69) -> 25000 | F64: 139228167
A65: 511 | B65: Зграде и грађевински објекти; | C65: =SUMIF('По корисницима'!$F$7:$F$16307,'По основ. нам.'!A65,'По корисницима'!$H$7:$H$16307) -> 121256667 | D65: 0.2860979764 | E65: =SUMIF('По корисницима'!$F$7:$F$16307,'По основ. нам.'!A65,'По корисницима'!$I$7:$I$16307) -> 0 | F65: 121256667
A66: 512 | B66: Машине и опрема; | C66: =SUMIF('По корисницима'!$F$7:$F$16307,'По основ. нам.'!A66,'По корисницима'!$H$7:$H$16307) -> 11896500 | D66: 0.02806909228 | E66: =SUMIF('По корисницима'!$F$7:$F$16307,'По основ. нам.'!A66,'По корисницима'!$I$7:$I$16307) -> 0 | F66: 11896500
A67: 513 | B67: Остале некретнине и опрема; | C67: =SUMIF('По корисницима'!$F$7:$F$16307,'По основ. нам.'!A67,'По корисницима'!$H$7:$H$16307) -> 700000 | D67: 0.001651608843 | E67: =SUMIF('По корисницима'!$F$7:$F$16307,'По основ. нам.'!A67,'По корисницима'!$I$7:$I$16307) -> 0 | F67: 700000
A68: 514 | B68: Култивисана имовина; | C68: =SUMIF('По корисницима'!$F$7:$F$16307,'По основ. нам.'!A68,'По корисницима'!$H$7:$H$16307) -> 5000000 | D68: 0.01179720602 | E68: =SUMIF('По корисницима'!$F$7:$F$16307,'По основ. нам.'!A68,'По корисницима'!$I$7:$I$16307) -> 0 | F68: 5000000
A69: 515 | B69: Нематеријална имовина | C69: =SUMIF('По корисницима'!$F$7:$F$16307,'По основ. нам.'!A69,'По корисницима'!$H$7:$H$16307) -> 350000 | D69: 0.0008258044213 | E69: =SUMIF('По корисницима'!$F$7:$F$16307,'По основ. нам.'!A69,'По корисницима'!$I$7:$I$16307) -> 25000 | F69: 375000
A70: 520 | B70: ЗАЛИХЕ | C70: =SUM(C71:C74) -> 0 | D70: 0 | E70: =SUM(E71:E73) -> 0 | F70: 0
A71: 521 | B71: Робне резерве; | C71: =SUMIF('По корисницима'!$F$7:$F$16307,'По основ. нам.'!A71,'По корисницима'!$H$7:$H$16307) -> 0 | D71: 0 | E71: =SUMIF('По корисницима'!$F$7:$F$16307,'По основ. нам.'!A71,'По корисницима'!$I$7:$I$16307) -> 0 | F71: 0
A72: 522 | B72: Залихе производње; | C72: =SUMIF('По корисницима'!$F$7:$F$16307,'По основ. нам.'!A72,'По корисницима'!$H$7:$H$16307) -> 0 | D72: 0 | E72: =SUMIF('По корисницима'!$F$7:$F$16307,'По основ. нам.'!A72,'По корисницима'!$I$7:$I$16307) -> 0 | F72: 0
A73: 523 | B73: Залихе робе за даљу продају | C73: =SUMIF('По корисницима'!$F$7:$F$16307,'По основ. нам.'!A73,'По корисницима'!$H$7:$H$16307) -> 0 | D73: 0 | E73: =SUMIF('По корисницима'!$F$7:$F$16307,'По основ. нам.'!A73,'По корисницима'!$I$7:$I$16307) -> 0 | F73: 0
A74: 531 | B74: Драгоцености | C74: =SUMIF('По корисницима'!$F$7:$F$16307,'По основ. нам.'!A74,'По корисницима'!$H$7:$H$16307) -> 0 | D74: 0
A75: 540 | B75: ПРИРОДНА ИМОВИНА | C75: =SUM(C76:C78) -> 3000000 | D75: 0.007078323611 | E75: =SUM(E76:E78) -> 0 | F75: 3000000
A76: 541 | B76: Земљиште; | C76: =SUMIF('По корисницима'!$F$7:$F$16307,'По основ. нам.'!A76,'По корисницима'!$H$7:$H$16307) -> 3000000 | D76: 0.007078323611 | E76: =SUMIF('По корисницима'!$F$7:$F$16307,'По основ. нам.'!A76,'По корисницима'!$I$7:$I$16307) -> 0 | F76: 3000000
A77: 542 | B77: Рудна богатства; | C77: =SUMIF('По корисницима'!$F$7:$F$16307,'По основ. нам.'!A77,'По корисницима'!$H$7:$H$16307) -> 0 | D77: 0 | E77: =SUMIF('По корисницима'!$F$7:$F$16307,'По основ. нам.'!A77,'По корисницима'!$I$7:$I$16307) -> 0 | F77: 0
A78: 543 | B78: Шуме и воде | C78: =SUMIF('По корисницима'!$F$7:$F$16307,'По основ. нам.'!A78,'По корисницима'!$H$7:$H$16307) -> 0 | D78: =IFERROR(C78/$C$89,"-") -> 0 | E78: =SUMIF('По корисницима'!$F$7:$F$16307,'По основ. нам.'!A78,'По корисницима'!$I$7:$I$16307) -> 0 | F78: 0
A79: 550 | B79: Неф. Имов. која се фин. из сред. за реализ. нип-а | C79: =SUM(C80) -> 0 | D79: 0 | E79: =SUM(E80) -> 0 | F79: =C79+E79 -> 0
A80: 551 | B80: Неф. имовина која се фин. из сред. за реализ. нип-а | C80: =SUMIF('По корисницима'!$F$7:$F$16307,'По основ. нам.'!A80,'По корисницима'!$H$7:$H$16307) -> 0 | D80: 0 | E80: =SUMIF('По корисницима'!$F$7:$F$16307,'По основ. нам.'!A80,'По корисницима'!$I$7:$I$16307) -> 0 | F80: =C80+E80 -> 0
A81: 610 | B81: ОТПЛАТА ГЛАВНИЦЕ | C81: =SUM(C82:C84) -> 0 | D81: 0 | E81: =SUM(E82:E84) -> 0 | F81: 0
A82: 611 | B82: Отплата главнице домаћим кредиторима | C82: =SUMIF('По корисницима'!$F$7:$F$16307,'По основ. нам.'!A82,'По корисницима'!$H$7:$H$16307) -> 0 | D82: 0 | E82: =SUMIF('По корисницима'!$F$7:$F$16307,'По основ. нам.'!A82,'По корисницима'!$I$7:$I$16307) -> 0 | F82: 0
A83: 612 | B83: Отплата главнице страним банкама | C83: =SUMIF('По корисницима'!$F$7:$F$16307,'По основ. нам.'!A83,'По корисницима'!$H$7:$H$16307) -> 0 | D83: 0 | E83: =SUMIF('По корисницима'!$F$7:$F$16307,'По основ. нам.'!A83,'По корисницима'!$I$7:$I$16307) -> 0
A84: 613 | B84: Отплата дуга по гаранцијама | C84: =SUMIF('По корисницима'!$F$7:$F$16307,'По основ. нам.'!A84,'По корисницима'!$H$7:$H$16307) -> 0 | D84: 0 | E84: =SUMIF('По корисницима'!$F$7:$F$16307,'По основ. нам.'!A84,'По корисницима'!$I$7:$I$16307) -> 0
A85: 614 | C85: =SUMIF('По корисницима'!$F$7:$F$16307,'По основ. нам.'!A85,'По корисницима'!$H$7:$H$16307) -> 0 | D85: 0 | F85: =C85+E85 -> 0
A86: 621 | B86: Набавка домаће финансијске имовине | C86: =SUMIF('По корисницима'!$F$7:$F$16307,'По основ. нам.'!A86,'По корисницима'!$H$7:$H$16307) -> 0 | D86: 0 | E86: =SUM(E87) -> 0 | F86: =C86+E86 -> 0
A87: 6211 | B87: Набавка домаћих хартија од вредности, изузев акција | C87: =SUMIF('По корисницима'!$F$7:$F$16307,'По основ. нам.'!A87,'По корисницима'!$H$7:$H$16307) -> 0 | D87: 0 | E87: =SUMIF('По корисницима'!$F$7:$F$16307,'По основ. нам.'!A87,'По корисницима'!$I$7:$I$16307) -> 0 | F87: =C87+E87 -> 0
B89: УКУПНИ ЈАВНИ РАСХОДИ | C89: =SUM(C7,C16,C23,C29,C34,C40,C47,C49,C56,C64,C70,C75,C79,C81,C85,C86) -> 423829167 | D89: 1 | E89: =SUM(E64,E47,E49,E16,E7) -> 7623673 | F89: =C89+E89 -> 431452840 | G89: 4

Sheet Програмска
C1: Члан 7.
A2: Укупна средства буџета у износу од 431.452.840 динара, утврђена овом одлуком, распоређена су по програмској класификацији датој у табели.
A3: Шифра | C3: Назив | D3: Средства из буџета | E3: Структ-ура % | F3: Сопствени и други приходи | G3: Укупна средства | H3: Надлежан орган/особа
A4: Програм | B4: Програмска активност/ Пројекат
A5: 1 | B5: 2 | C5: 3 | D5: 4 | E5: 5 | F5: 6 | G5: 7 | H5: 8
A6: 2101 | C6: Програм 16. Политички систем локалне самоуправе | D6: =SUM(D7:D32) -> 18026000 | E6: =IFERROR(D6/$D$617,"-") -> 0.04253128714 | F6: =SUM(F7:F32) -> 0 | G6: =D6+F6 -> 18026000
B7: 2101-0001 | C7: Функционисање Скупштине | D7: =SUM('По корисницима'!H106,'По корисницима'!H405) -> 7506000 | E7: =IFERROR(D7/$D$617,"-") -> 0.01770996568 | F7: =SUMIF('По корисницима'!$G$6:$G$16307,"Свега за програмску активност 1101-0001:",'По корисницима'!$I$6:$I$16307) -> 0 | G7: =D7+F7 -> 7506000
B8: 2101-0002 | C8: Функционисање извршних органа | D8: =SUM('По корисницима'!H847,'По корисницима'!H966) -> 8960000 | E8: =IFERROR(D8/$D$617,"-") -> 0.02114059319 | F8: =SUMIF('По корисницима'!$G$6:$G$16307,"Свега за програмску активност 1101-0002:",'По корисницима'!$I$6:$I$16307) -> 0 | G8: =D8+F8 -> 8960000
B9: 2101-П1 | C9: =IFERROR(VLOOKUP(B9,'По корисницима'!$C$6:$J$16307,5,FALSE),"") -> Прослава Дана општине | D9: =SUMIF('По корисницима'!$G$6:$G$16307,"Свега за пројекат 2101-П1:",'По корисницима'!$H$6:$H$16307) -> 740000 | E9: =IFERROR(D9/$D$617,"-") -> 0.001745986491 | F9: =SUMIF('По корисницима'!$G$6:$G$16307,"Свега за пројекат 1101-П1:",'По корисницима'!$I$6:$I$16307) -> 0 | G9: 740000
B10: 2101-П2 | C10: =IFERROR(VLOOKUP(B10,'По корисницима'!$C$6:$J$16307,5,FALSE),"") -> Прослава Крсне славе општине | D10: =SUMIF('По корисницима'!$G$6:$G$16307,"Свега за пројекат 2101-П2:",'По корисницима'!$H$6:$H$16307) -> 580000 | E10: =IFERROR(D10/$D$617,"-") -> 0.001368475898 | F10: =SUMIF('По корисницима'!$G$6:$G$16307,"Свега за пројекат 1101-П2:",'По корисницима'!$I$6:$I$16307) -> 0 | G10: 580000
B11: 2101-П3 | C11: =IFERROR(VLOOKUP(B11,'По корисницима'!$C$6:$J$16307,5,FALSE),"") -> Меморијални турнир "Љубиша Величковић" | D11: =SUMIF('По корисницима'!$G$6:$G$16307,"Свега за пројекат 2101-П3:",'По корисницима'!$H$6:$H$16307) -> 240000 | E11: 0.0005662658889 | F11: =SUMIF('По корисницима'!$G$6:$G$16307,"Свега за пројекат 1101-П3:",'По корисницима'!$I$6:$I$16307) -> 0 | G11: 240000
B12: 1101-П4 | C12: =IFERROR(VLOOKUP(B12,'По корисницима'!$C$6:$J$16307,5,FALSE),"") ->  | D12: =SUMIF('По корисницима'!$G$6:$G$16307,"Свега за пројекат 1101-П4:",'По корисницима'!$H$6:$H$16307) -> 0 | E12: 0 | F12: =SUMIF('По корисницима'!$G$6:$G$16307,"Свега за пројекат 1101-П4:",'По корисницима'!$I$6:$I$16307) -> 0 | G12: 0
B13: 1101-П5 | C13: =IFERROR(VLOOKUP(B13,'По корисницима'!$C$6:$J$16307,5,FALSE),"") ->  | D13: =SUMIF('По корисницима'!$G$6:$G$16307,"Свега за пројекат 1101-П5:",'По корисницима'!$H$6:$H$16307) -> 0 | E13: 0 | F13: =SUMIF('По корисницима'!$G$6:$G$16307,"Свега за пројекат 1101-П5:",'По корисницима'!$I$6:$I$16307) -> 0 | G13: 0
B14: 1101-П6 | C14: =IFERROR(VLOOKUP(B14,'По корисницима'!$C$6:$J$16307,5,FALSE),"") ->  | D14: =SUMIF('По корисницима'!$G$6:$G$16307,"Свега за пројекат 1101-П6:",'По корисницима'!$H$6:$H$16307) -> 0 | E14: 0 | F14: =SUMIF('По корисницима'!$G$6:$G$16307,"Свега за пројекат 1101-П6:",'По корисницима'!$I$6:$I$16307) -> 0 | G14: =D14+F14 -> 0
B15: 1101-П7 | C15: =IFERROR(VLOOKUP(B15,'По корисницима'!$C$6:$J$16307,5,FALSE),"") ->  | D15: =SUMIF('По корисницима'!$G$6:$G$16307,"Свега за пројекат 1101-П7:",'По корисницима'!$H$6:$H$16307) -> 0 | E15: 0 | F15: =SUMIF('По корисницима'!$G$6:$G$16307,"Свега за пројекат 1101-П7:",'По корисницима'!$I$6:$I$16307) -> 0 | G15: 0
B16: 1101-П8 | C16: =IFERROR(VLOOKUP(B16,'По корисницима'!$C$6:$J$16307,5,FALSE),"") ->  | D16: =SUMIF('По корисницима'!$G$6:$G$16307,"Свега за пројекат 1101-П8:",'По корисницима'!$H$6:$H$16307) -> 0 | E16: 0 | F16: =SUMIF('По корисницима'!$G$6:$G$16307,"Свега за пројекат 1101-П8:",'По корисницима'!$I$6:$I$16307) -> 0 | G16: 0
B17: 1101-П9 | C17: =IFERROR(VLOOKUP(B17,'По корисницима'!$C$6:$J$16307,5,FALSE),"") ->  | D17: =SUMIF('По корисницима'!$G$6:$G$16307,"Свега за пројекат 1101-П9:",'По корисницима'!$H$6:$H$16307) -> 0 | E17: 0 | F17: =SUMIF('По корисницима'!$G$6:$G$16307,"Свега за пројекат 1101-П9:",'По корисницима'!$I$6:$I$16307) -> 0 | G17: 0
B18: 1101-П10 | C18: =IFERROR(VLOOKUP(B18,'По корисницима'!$C$6:$J$16307,5,FALSE),"") ->  | D18: =SUMIF('По корисницима'!$G$6:$G$16307,"Свега за пројекат 1101-П10:",'По корисницима'!$H$6:$H$16307) -> 0 | E18: 0 | F18: =SUMIF('По корисницима'!$G$6:$G$16307,"Свега за пројекат 1101-П10:",'По корисницима'!$I$6:$I$16307) -> 0 | G18: 0
B19: 1101-П11 | C19: =IFERROR(VLOOKUP(B19,'По корисницима'!$C$6:$J$16307,5,FALSE),"") ->  | D19: =SUMIF('По корисницима'!$G$6:$G$16307,"Свега за пројекат 1101-П11:",'По корисницима'!$H$6:$H$16307) -> 0 | E19: 0 | F19: =SUMIF('По корисницима'!$G$6:$G$16307,"Свега за пројекат 1101-П11:",'По корисницима'!$I$6:$I$16307) -> 0 | G19: 0
B20: 1101-П12 | C20: =IFERROR(VLOOKUP(B20,'По корисницима'!$C$6:$J$16307,5,FALSE),"") ->  | D20: =SUMIF('По корисницима'!$G$6:$G$16307,"Свега за пројекат 1101-П12:",'По корисницима'!$H$6:$H$16307) -> 0 | E20: 0 | F20: =SUMIF('По корисницима'!$G$6:$G$16307,"Свега за пројекат 1101-П12:",'По корисницима'!$I$6:$I$16307) -> 0 | G20: 0
B21: 1101-П13 | C21: =IFERROR(VLOOKUP(B21,'По корисницима'!$C$6:$J$16307,5,FALSE),"") ->  | D21: =SUMIF('По корисницима'!$G$6:$G$16307,"Свега за пројекат 1101-П13:",'По корисницима'!$H$6:$H$16307) -> 0 | E21: 0 | F21: =SUMIF('По корисницима'!$G$6:$G$16307,"Свега за пројекат 1101-П13:",'По корисницима'!$I$6:$I$16307) -> 0 | G21: 0
B22: 1101-П14 | C22: =IFERROR(VLOOKUP(B22,'По корисницима'!$C$6:$J$16307,5,FALSE),"") ->  | D22: =SUMIF('По корисницима'!$G$6:$G$16307,"Свега за пројекат 1101-П14:",'По корисницима'!$H$6:$H$16307) -> 0 | E22: 0 | F22: =SUMIF('По корисницима'!$G$6:$G$16307,"Свега за пројекат 1101-П14:",'По корисницима'!$I$6:$I$16307) -> 0 | G22: 0
B23: 1101-П15 | C23: =IFERROR(VLOOKUP(B23,'По корисницима'!$C$6:$J$16307,5,FALSE),"") ->  | D23: =SUMIF('По корисницима'!$G$6:$G$16307,"Свега за пројекат 1101-П15:",'По корисницима'!$H$6:$H$16307) -> 0 | E23: 0 | F23: =SUMIF('По корисницима'!$G$6:$G$16307,"Свега за пројекат 1101-П15:",'По корисницима'!$I$6:$I$16307) -> 0 | G23: 0
B24: 1101-П16 | C24: =IFERROR(VLOOKUP(B24,'По корисницима'!$C$6:$J$16307,5,FALSE),"") ->  | D24: =SUMIF('По корисницима'!$G$6:$G$16307,"Свега за пројекат 1101-П16:",'По корисницима'!$H$6:$H$16307) -> 0 | E24: 0 | F24: =SUMIF('По корисницима'!$G$6:$G$16307,"Свега за пројекат 1101-П16:",'По корисницима'!$I$6:$I$16307) -> 0 | G24: 0
B25: 1101-П17 | C25: =IFERROR(VLOOKUP(B25,'По корисницима'!$C$6:$J$16307,5,FALSE),"") ->  | D25: =SUMIF('По корисницима'!$G$6:$G$16307,"Свега за пројекат 1101-П17:",'По корисницима'!$H$6:$H$16307) -> 0 | E25: 0 | F25: =SUMIF('По корисницима'!$G$6:$G$16307,"Свега за пројекат 1101-П17:",'По корисницима'!$I$6:$I$16307) -> 0 | G25: 0
B26: 1101-П18 | C26: =IFERROR(VLOOKUP(B26,'По корисницима'!$C$6:$J$16307,5,FALSE),"") ->  | D26: =SUMIF('По корисницима'!$G$6:$G$16307,"Свега за пројекат 1101-П18:",'По корисницима'!$H$6:$H$16307) -> 0 | E26: 0 | F26: =SUMIF('По корисницима'!$G$6:$G$16307,"Свега за пројекат 1101-П18:",'По корисницима'!$I$6:$I$16307) -> 0 | G26: 0
B27: 1101-П19 | C27: =IFERROR(VLOOKUP(B27,'По корисницима'!$C$6:$J$16307,5,FALSE),"") ->  | D27: =SUMIF('По корисницима'!$G$6:$G$16307,"Свега за пројекат 1101-П19:",'По корисницима'!$H$6:$H$16307) -> 0 | E27: 0 | F27: =SUMIF('По корисницима'!$G$6:$G$16307,"Свега за пројекат 1101-П19:",'По корисницима'!$I$6:$I$16307) -> 0 | G27: 0
B28: 1101-П20 | C28: =IFERROR(VLOOKUP(B28,'По корисницима'!$C$6:$J$16307,5,FALSE),"") ->  | D28: =SUMIF('По корисницима'!$G$6:$G$16307,"Свега за пројекат 1101-П20:",'По корисницима'!$H$6:$H$16307) -> 0 | E28: 0 | F28: =SUMIF('По корисницима'!$G$6:$G$16307,"Свега за пројекат 1101-П20:",'По корисницима'!$I$6:$I$16307) -> 0 | G28: 0
B29: 1101-П21 | C29: =IFERROR(VLOOKUP(B29,'По корисницима'!$C$6:$J$16307,5,FALSE),"") ->  | D29: =SUMIF('По корисницима'!$G$6:$G$16307,"Свега за пројекат 1101-П21:",'По корисницима'!$H$6:$H$16307) -> 0 | E29: 0 | F29: =SUMIF('По корисницима'!$G$6:$G$16307,"Свега за пројекат 1101-П21:",'По корисницима'!$I$6:$I$16307) -> 0 | G29: 0
B30: 1101-П22 | C30: =IFERROR(VLOOKUP(B30,'По корисницима'!$C$6:$J$16307,5,FALSE),"") ->  | D30: =SUMIF('По корисницима'!$G$6:$G$16307,"Свега за пројекат 1101-П22:",'По корисницима'!$H$6:$H$16307) -> 0 | E30: 0 | F30: =SUMIF('По корисницима'!$G$6:$G$16307,"Свега за пројекат 1101-П22:",'По корисницима'!$I$6:$I$16307) -> 0 | G30: 0
B31: 1101-П23 | C31: =IFERROR(VLOOKUP(B31,'По корисницима'!$C$6:$J$16307,5,FALSE),"") ->  | D31: =SUMIF('По корисницима'!$G$6:$G$16307,"Свега за пројекат 1101-П23:",'По корисницима'!$H$6:$H$16307) -> 0 | E31: 0 | F31: =SUMIF('По корисницима'!$G$6:$G$16307,"Свега за пројекат 1101-П23:",'По корисницима'!$I$6:$I$16307) -> 0 | G31: 0
B32: 1101-П24 | C32: =IFERROR(VLOOKUP(B32,'По корисницима'!$C$6:$J$16307,5,FALSE),"") ->  | D32: =SUMIF('По корисницима'!$G$6:$G$16307,"Свега за пројекат 1101-П24:",'По корисницима'!$H$6:$H$16307) -> 0 | E32: 0 | F32: =SUMIF('По корисницима'!$G$6:$G$16307,"Свега за пројекат 1101-П24:",'По корисницима'!$I$6:$I$16307) -> 0 | G32: 0
A33: 1101 | C33: Програм 1. Урбанизам и просторно планирање | D33: =SUM(D34:D35) -> 4120000 | E33: =IFERROR(D33/$D$617,"-") -> 0.00972089776 | F33: =SUM(F34:F35) -> 0 | G33: =SUM(D33+F33) -> 4120000
B34: 1101-0003 | C34: Управљање грађевинским земљиштем | D34: =SUM('По корисницима'!H2709) -> 3000000 | E34: =IFERROR(D34/$D$617,"-") -> 0.007078323611 | F34: =SUMIF('По корисницима'!$G$6:$G$16307,"Свега за програмску активност 1101-0001:",'По корисницима'!$I$6:$I$16307) -> 0 | G34: =SUM(F34+D34) -> 3000000
B35: 1101-П1 | C35: Социјално становање | D35: =SUM('По корисницима'!H2807) -> 1120000 | E35: 0.002642574148 | F35: =SUMIF('По корисницима'!$G$6:$G$16307,"Свега за програмску активност 1101-0004:",'По корисницима'!$I$6:$I$16307) -> 0 | G35: =SUM(D35+F35) -> 1120000
A36: 1102 | C36: Програм 2. Комуналнe делатности | D36: =SUM(D37:D100) -> 35940000 | E36: =IFERROR(D36/$D$617,"-") -> 0.08479831687 | F36: =SUM(F37:F100) -> 0 | G36: =D36+F36 -> 35940000
B37: 1102-0001 | C37: Управљање/одржавање јавним осветљењем | D37: =SUM('По корисницима'!H4795) -> 2000000 | E37: 0.004718882408 | F37: =SUMIF('По корисницима'!$G$6:$G$16307,"Свега за програмску активност 0601-0001:",'По корисницима'!$I$6:$I$16307) -> 0 | G37: 2000000
B38: 1102-0002 | C38: Одржавање јавних зелених површина | D38: =SUM('По корисницима'!H4109) -> 800000 | E38: 0.001887552963 | F38: =SUMIF('По корисницима'!$G$6:$G$16307,"Свега за програмску активност 0601-0002:",'По корисницима'!$I$6:$I$16307) -> 0 | G38: 800000
B39: 1102-0003 | C39: Одржавање чистоће на површинама јавне намене | D39: =SUMIF('По корисницима'!$G$6:$G$16307,"Свега за програмску активност 1102-0003:",'По корисницима'!$H$6:$H$16307) -> 550000 | E39: 0.001297692662 | F39: =SUMIF('По корисницима'!$G$6:$G$16307,"Свега за програмску активност 0601-0003:",'По корисницима'!$I$6:$I$16307) -> 0 | G39: 550000
B40: 1102-0004 | C40: Зоохигијена | D40: =SUMIF('По корисницима'!$G$6:$G$16307,"Свега за програмску активност 1102-0004:",'По корисницима'!$H$6:$H$16307) -> 2850000 | E40: 0.006724407431 | F40: =SUMIF('По корисницима'!$G$6:$G$16307,"Свега за програмску активност 0601-0004:",'По корисницима'!$I$6:$I$16307) -> 0 | G40: 2850000
B41: 1102-0005 | C41: уређење, одржавање и коришћење пијаца | D41: =SUMIF('По корисницима'!$G$6:$G$16307,"Свега за програмску активност 1102-0005:",'По корисницима'!$H$6:$H$16307) -> 0 | E41: 0 | F41: =SUMIF('По корисницима'!$G$6:$G$16307,"Свега за програмску активност 0601-0005:",'По корисницима'!$I$6:$I$16307) -> 0 | G41: 0
B42: 1102-0006 | C42: Одржавање гробаља и погребне услуге | D42: =SUMIF('По корисницима'!$G$6:$G$16307,"Свега за програмску активност 1102-0006:",'По корисницима'!$H$6:$H$16307) -> 500000 | E42: 0.001179720602 | F42: =SUMIF('По корисницима'!$G$6:$G$16307,"Свега за програмску активност 0601-0006:",'По корисницима'!$I$6:$I$16307) -> 0 | G42: 500000
B43: 1102-0007 | C43: Производња и дистрибуција топлотне енергије | D43: =SUMIF('По корисницима'!$G$6:$G$16307,"Свега за програмску активност 1102-0007:",'По корисницима'!$H$6:$H$16307) -> 6280000 | E43: 0.01481729076 | F43: =SUMIF('По корисницима'!$G$6:$G$16307,"Свега за програмску активност 0601-0007:",'По корисницима'!$I$6:$I$16307) -> 0 | G43: 6280000
B44: 1102-0008 | C44: Управљање и снабдевање водом за пиће | D44: =SUMIF('По корисницима'!$G$6:$G$16307,"Свега за програмску активност 1102-0008:",'По корисницима'!$H$6:$H$16307) -> 19700000 | E44: 0.04648099172 | F44: =SUMIF('По корисницима'!$G$6:$G$16307,"Свега за програмску активност 0601-0008:",'По корисницима'!$I$6:$I$16307) -> 0 | G44: 19700000
B45: 1102-0009 | C45: Остале комуналне услуге | D45: =SUMIF('По корисницима'!$G$6:$G$16307,"Свега за програмску активност 1102-0009:",'По корисницима'!$H$6:$H$16307) -> 0 | E45: 0 | F45: =SUMIF('По корисницима'!$G$6:$G$16307,"Свега за програмску активност 0601-0009:",'По корисницима'!$I$6:$I$16307) -> 0 | G45: 0
B46: 1102-П1 | C46: Изградња азила за псе | D46: =SUM('По корисницима'!H4011) -> 3260000 | E46: 0.007691778324 | F46: =SUMIF('По корисницима'!$G$6:$G$16307,"Свега за програмску активност 0601-0010:",'По корисницима'!$I$6:$I$16307) -> 0 | G46: 3260000
B47: 1102-П2 | D47: =SUM('По корисницима'!H8237) -> 0 | E47: 0 | F47: =SUMIF('По корисницима'!$G$6:$G$16307,"Свега за програмску активност 0601-0011:",'По корисницима'!$I$6:$I$16307) -> 0 | G47: 0
B48: 1102-П2 | E48: 0 | F48: =SUMIF('По корисницима'!$G$6:$G$16307,"Свега за програмску активност 0601-0012:",'По корисницима'!$I$6:$I$16307) -> 0 | G48: 0
D49: =SUMIF('По корисницима'!$G$6:$G$16307,"Свега за програмску активност 0601-0013:",'По корисницима'!$H$6:$H$16307) -> 0 | E49: 0 | F49: =SUMIF('По корисницима'!$G$6:$G$16307,"Свега за програмску активност 0601-0013:",'По корисницима'!$I$6:$I$16307) -> 0 | G49: 0
D50: =SUMIF('По корисницима'!$G$6:$G$16307,"Свега за програмску активност 0601-0014:",'По корисницима'!$H$6:$H$16307) -> 0 | E50: 0 | F50: =SUMIF('По корисницима'!$G$6:$G$16307,"Свега за програмску активност 0601-0014:",'По корисницима'!$I$6:$I$16307) -> 0 | G50: 0
B51: 0601-П1 | C51: =IFERROR(VLOOKUP(B51,'По корисницима'!$C$6:$J$16307,5,FALSE),"") ->  | D51: =SUMIF('По корисницима'!$G$6:$G$16307,"Свега за пројекат 0601-П1:",'По корисницима'!$H$6:$H$16307) -> 0 | E51: 0 | F51: =SUMIF('По корисницима'!$G$6:$G$16307,"Свега за пројекат 0601-П1:",'По корисницима'!$I$6:$I$16307) -> 0 | G51: 0
B52: 0601-П2 | C52: =IFERROR(VLOOKUP(B52,'По корисницима'!$C$6:$J$16307,5,FALSE),"") ->  | D52: =SUMIF('По корисницима'!$G$6:$G$16307,"Свега за пројекат 0601-П2:",'По корисницима'!$H$6:$H$16307) -> 0 | E52: 0 | F52: =SUMIF('По корисницима'!$G$6:$G$16307,"Свега за пројекат 0601-П2:",'По корисницима'!$I$6:$I$16307) -> 0 | G52: 0
B53: 0601-П3 | C53: =IFERROR(VLOOKUP(B53,'По корисницима'!$C$6:$J$16307,5,FALSE),"") ->  | D53: =SUMIF('По корисницима'!$G$6:$G$16307,"Свега за пројекат 0601-П3:",'По корисницима'!$H$6:$H$16307) -> 0 | E53: 0 | F53: =SUMIF('По корисницима'!$G$6:$G$16307,"Свега за пројекат 0601-П3:",'По корисницима'!$I$6:$I$16307) -> 0 | G53: 0
B54: 0601-П4 | C54: =IFERROR(VLOOKUP(B54,'По корисницима'!$C$6:$J$16307,5,FALSE),"") ->  | D54: =SUMIF('По корисницима'!$G$6:$G$16307,"Свега за пројекат 0601-П4:",'По корисницима'!$H$6:$H$16307) -> 0 | E54: 0 | F54: =SUMIF('По корисницима'!$G$6:$G$16307,"Свега за пројекат 0601-П4:",'По корисницима'!$I$6:$I$16307) -> 0 | G54: 0
B55: 0601-П5 | C55: =IFERROR(VLOOKUP(B55,'По корисницима'!$C$6:$J$16307,5,FALSE),"") ->  | D55: =SUMIF('По корисницима'!$G$6:$G$16307,"Свега за пројекат 0601-П5:",'По корисницима'!$H$6:$H$16307) -> 0 | E55: 0 | F55: =SUMIF('По корисницима'!$G$6:$G$16307,"Свега за пројекат 0601-П5:",'По корисницима'!$I$6:$I$16307) -> 0 | G55: 0
B56: 0601-П6 | C56: =IFERROR(VLOOKUP(B56,'По корисницима'!$C$6:$J$16307,5,FALSE),"") ->  | D56: =SUMIF('По корисницима'!$G$6:$G$16307,"Свега за пројекат 0601-П6:",'По корисницима'!$H$6:$H$16307) -> 0 | E56: 0 | F56: =SUMIF('По корисницима'!$G$6:$G$16307,"Свега за пројекат 0601-П6:",'По корисницима'!$I$6:$I$16307) -> 0 | G56: 0
B57: 0601-П7 | C57: =IFERROR(VLOOKUP(B57,'По корисницима'!$C$6:$J$16307,5,FALSE),"") ->  | D57: =SUMIF('По корисницима'!$G$6:$G$16307,"Свега за пројекат 0601-П7:",'По корисницима'!$H$6:$H$16307) -> 0 | E57: 0 | F57: =SUMIF('По корисницима'!$G$6:$G$16307,"Свега за пројекат 0601-П7:",'По корисницима'!$I$6:$I$16307) -> 0 | G57: 0
B58: 0601-П8 | C58: =IFERROR(VLOOKUP(B58,'По корисницима'!$C$6:$J$16307,5,FALSE),"") ->  | D58: =SUMIF('По корисницима'!$G$6:$G$16307,"Свега за пројекат 0601-П8:",'По корисницима'!$H$6:$H$16307) -> 0 | E58: 0 | F58: =SUMIF('По корисницима'!$G$6:$G$16307,"Свега за пројекат 0601-П8:",'По корисницима'!$I$6:$I$16307) -> 0 | G58: 0
B59: 0601-П9 | C59: =IFERROR(VLOOKUP(B59,'По корисницима'!$C$6:$J$16307,5,FALSE),"") ->  | D59: =SUMIF('По корисницима'!$G$6:$G$16307,"Свега за пројекат 0601-П9:",'По корисницима'!$H$6:$H$16307) -> 0 | E59: 0 | F59: =SUMIF('По корисницима'!$G$6:$G$16307,"Свега за пројекат 0601-П9:",'По корисницима'!$I$6:$I$16307) -> 0 | G59: 0
B60: 0601-П10 | C60: =IFERROR(VLOOKUP(B60,'По корисницима'!$C$6:$J$16307,5,FALSE),"") ->  | D60: =SUMIF('По корисницима'!$G$6:$G$16307,"Свега за пројекат 0601-П10:",'По корисницима'!$H$6:$H$16307) -> 0 | E60: 0 | F60: =SUMIF('По корисницима'!$G$6:$G$16307,"Свега за пројекат 0601-П10:",'По корисницима'!$I$6:$I$16307) -> 0 | G60: 0
B61: 0601-П11 | C61: =IFERROR(VLOOKUP(B61,'По корисницима'!$C$6:$J$16307,5,FALSE),"") ->  | D61: =SUMIF('По корисницима'!$G$6:$G$16307,"Свега за пројекат 0601-П11:",'По корисницима'!$H$6:$H$16307) -> 0 | E61: 0 | F61: =SUMIF('По корисницима'!$G$6:$G$16307,"Свега за пројекат 0601-П11:",'По корисницима'!$I$6:$I$16307) -> 0 | G61: 0
B62: 0601-П12 | C62: =IFERROR(VLOOKUP(B62,'По корисницима'!$C$6:$J$16307,5,FALSE),"") ->  | D62: =SUMIF('По корисницима'!$G$6:$G$16307,"Свега за пројекат 0601-П12:",'По корисницима'!$H$6:$H$16307) -> 0 | E62: 0 | F62: =SUMIF('По корисницима'!$G$6:$G$16307,"Свега за пројекат 0601-П12:",'По корисницима'!$I$6:$I$16307) -> 0 | G62: 0
B63: 0601-П13 | C63: =IFERROR(VLOOKUP(B63,'По корисницима'!$C$6:$J$16307,5,FALSE),"") ->  | D63: =SUMIF('По корисницима'!$G$6:$G$16307,"Свега за пројекат 0601-П13:",'По корисницима'!$H$6:$H$16307) -> 0 | E63: 0 | F63: =SUMIF('По корисницима'!$G$6:$G$16307,"Свега за пројекат 0601-П13:",'По корисницима'!$I$6:$I$16307) -> 0 | G63: 0
B64: 0601-П14 | C64: =IFERROR(VLOOKUP(B64,'По корисницима'!$C$6:$J$16307,5,FALSE),"") ->  | D64: =SUMIF('По корисницима'!$G$6:$G$16307,"Свега за пројекат 0601-П14:",'По корисницима'!$H$6:$H$16307) -> 0 | E64: 0 | F64: =SUMIF('По корисницима'!$G$6:$G$16307,"Свега за пројекат 0601-П14:",'По корисницима'!$I$6:$I$16307) -> 0 | G64: 0
B65: 0601-П15 | C65: =IFERROR(VLOOKUP(B65,'По корисницима'!$C$6:$J$16307,5,FALSE),"") ->  | D65: =SUMIF('По корисницима'!$G$6:$G$16307,"Свега за пројекат 0601-П15:",'По корисницима'!$H$6:$H$16307) -> 0 | E65: 0 | F65: =SUMIF('По корисницима'!$G$6:$G$16307,"Свега за пројекат 0601-П15:",'По корисницима'!$I$6:$I$16307) -> 0 | G65: 0
B66: 0601-П16 | C66: =IFERROR(VLOOKUP(B66,'По корисницима'!$C$6:$J$16307,5,FALSE),"") ->  | D66: =SUMIF('По корисницима'!$G$6:$G$16307,"Свега за пројекат 0601-П16:",'По корисницима'!$H$6:$H$16307) -> 0 | E66: 0 | F66: =SUMIF('По корисницима'!$G$6:$G$16307,"Свега за пројекат 0601-П16:",'По корисницима'!$I$6:$I$16307) -> 0 | G66: 0
B67: 0601-П17 | C67: =IFERROR(VLOOKUP(B67,'По корисницима'!$C$6:$J$16307,5,FALSE),"") ->  | D67: =SUMIF('По корисницима'!$G$6:$G$16307,"Свега за пројекат 0601-П17:",'По корисницима'!$H$6:$H$16307) -> 0 | E67: 0 | F67: =SUMIF('По корисницима'!$G$6:$G$16307,"Свега за пројекат 0601-П17:",'По корисницима'!$I$6:$I$16307) -> 0 | G67: 0
B68: 0601-П18 | C68: =IFERROR(VLOOKUP(B68,'По корисницима'!$C$6:$J$16307,5,FALSE),"") ->  | D68: =SUMIF('По корисницима'!$G$6:$G$16307,"Свега за пројекат 0601-П18:",'По корисницима'!$H$6:$H$16307) -> 0 | E68: =IFERROR(D68/$D$617,"-") -> 0 | F68: =SUMIF('По корисницима'!$G$6:$G$16307,"Свега за пројекат 0601-П18:",'По корисницима'!$I$6:$I$16307) -> 0 | G68: 0
B69: 0601-П19 | C69: =IFERROR(VLOOKUP(B69,'По корисницима'!$C$6:$J$16307,5,FALSE),"") ->  | D69: =SUMIF('По корисницима'!$G$6:$G$16307,"Свега за пројекат 0601-П19:",'По корисницима'!$H$6:$H$16307) -> 0 | E69: 0 | F69: =SUMIF('По корисницима'!$G$6:$G$16307,"Свега за пројекат 0601-П19:",'По корисницима'!$I$6:$I$16307) -> 0 | G69: 0
B70: 0601-П20 | C70: =IFERROR(VLOOKUP(B70,'По корисницима'!$C$6:$J$16307,5,FALSE),"") ->  | D70: =SUMIF('По корисницима'!$G$6:$G$16307,"Свега за пројекат 0601-П20:",'По корисницима'!$H$6:$H$16307) -> 0 | E70: 0 | F70: =SUMIF('По корисницима'!$G$6:$G$16307,"Свега за пројекат 0601-П20:",'По корисницима'!$I$6:$I$16307) -> 0 | G70: 0
B71: 0601-П21 | C71: =IFERROR(VLOOKUP(B71,'По корисницима'!$C$6:$J$16307,5,FALSE),"") ->  | D71: =SUMIF('По корисницима'!$G$6:$G$16307,"Свега за пројекат 0601-П21:",'По корисницима'!$H$6:$H$16307) -> 0 | E71: 0 | F71: =SUMIF('По корисницима'!$G$6:$G$16307,"Свега за пројекат 0601-П21:",'По корисницима'!$I$6:$I$16307) -> 0 | G71: 0
B72: 0601-П22 | C72: =IFERROR(VLOOKUP(B72,'По корисницима'!$C$6:$J$16307,5,FALSE),"") ->  | D72: =SUMIF('По корисницима'!$G$6:$G$16307,"Свега за пројекат 0601-П22:",'По корисницима'!$H$6:$H$16307) -> 0 | E72: 0 | F72: =SUMIF('По корисницима'!$G$6:$G$16307,"Свега за пројекат 0601-П22:",'По корисницима'!$I$6:$I$16307) -> 0 | G72: 0
B73: 0601-П23 | C73: =IFERROR(VLOOKUP(B73,'По корисницима'!$C$6:$J$16307,5,FALSE),"") ->  | D73: =SUMIF('По корисницима'!$G$6:$G$16307,"Свега за пројекат 0601-П23:",'По корисницима'!$H$6:$H$16307) -> 0 | E73: 0 | F73: =SUMIF('По корисницима'!$G$6:$G$16307,"Свега за пројекат 0601-П23:",'По корисницима'!$I$6:$I$16307) -> 0 | G73: 0
B74: 0601-П24 | C74: =IFERROR(VLOOKUP(B74,'По корисницима'!$C$6:$J$16307,5,FALSE),"") ->  | D74: =SUMIF('По корисницима'!$G$6:$G$16307,"Свега за пројекат 0601-П24:",'По корисницима'!$H$6:$H$16307) -> 0 | E74: 0 | F74: =SUMIF('По корисницима'!$G$6:$G$16307,"Свега за пројекат 0601-П24:",'По корисницима'!$I$6:$I$16307) -> 0 | G74: 0
B75: 0601-П25 | C75: =IFERROR(VLOOKUP(B75,'По корисницима'!$C$6:$J$16307,5,FALSE),"") ->  | D75: =SUMIF('По корисницима'!$G$6:$G$16307,"Свега за пројекат 0601-П25:",'По корисницима'!$H$6:$H$16307) -> 0 | E75: 0 | F75: =SUMIF('По корисницима'!$G$6:$G$16307,"Свега за пројекат 0601-П25:",'По корисницима'!$I$6:$I$16307) -> 0 | G75: 0
B76: 0601-П26 | C76: =IFERROR(VLOOKUP(B76,'По корисницима'!$C$6:$J$16307,5,FALSE),"") ->  | D76: =SUMIF('По корисницима'!$G$6:$G$16307,"Свега за пројекат 0601-П26:",'По корисницима'!$H$6:$H$16307) -> 0 | E76: 0 | F76: =SUMIF('По корисницима'!$G$6:$G$16307,"Свега за пројекат 0601-П26:",'По корисницима'!$I$6:$I$16307) -> 0 | G76: 0
B77: 0601-П27 | C77: =IFERROR(VLOOKUP(B77,'По корисницима'!$C$6:$J$16307,5,FALSE),"") ->  | D77: =SUMIF('По корисницима'!$G$6:$G$16307,"Свега за пројекат 0601-П27:",'По корисницима'!$H$6:$H$16307) -> 0 | E77: 0 | F77: =SUMIF('По корисницима'!$G$6:$G$16307,"Свега за пројекат 0601-П27:",'По корисницима'!$I$6:$I$16307) -> 0 | G77: 0
B78: 0601-П28 | C78: =IFERROR(VLOOKUP(B78,'По корисницима'!$C$6:$J$16307,5,FALSE),"") ->  | D78: =SUMIF('По корисницима'!$G$6:$G$16307,"Свега за пројекат 0601-П28:",'По корисницима'!$H$6:$H$16307) -> 0 | E78: 0 | F78: =SUMIF('По корисницима'!$G$6:$G$16307,"Свега за пројекат 0601-П28:",'По корисницима'!$I$6:$I$16307) -> 0 | G78: 0
B79: 0601-П29 | C79: =IFERROR(VLOOKUP(B79,'По корисницима'!$C$6:$J$16307,5,FALSE),"") ->  | D79: =SUMIF('По корисницима'!$G$6:$G$16307,"Свега за пројекат 0601-П29:",'По корисницима'!$H$6:$H$16307) -> 0 | E79: 0 | F79: =SUMIF('По корисницима'!$G$6:$G$16307,"Свега за пројекат 0601-П29:",'По корисницима'!$I$6:$I$16307) -> 0 | G79: 0
B80: 0601-П30 | C80: =IFERROR(VLOOKUP(B80,'По корисницима'!$C$6:$J$16307,5,FALSE),"") ->  | D80: =SUMIF('По корисницима'!$G$6:$G$16307,"Свега за пројекат 0601-П30:",'По корисницима'!$H$6:$H$16307) -> 0 | E80: 0 | F80: =SUMIF('По корисницима'!$G$6:$G$16307,"Свега за пројекат 0601-П30:",'По корисницима'!$I$6:$I$16307) -> 0 | G80: 0
B81: 0601-П31 | C81: =IFERROR(VLOOKUP(B81,'По корисницима'!$C$6:$J$16307,5,FALSE),"") ->  | D81: =SUMIF('По корисницима'!$G$6:$G$16307,"Свега за пројекат 0601-П31:",'По корисницима'!$H$6:$H$16307) -> 0 | E81: 0 | F81: =SUMIF('По корисницима'!$G$6:$G$16307,"Свега за пројекат 0601-П31:",'По корисницима'!$I$6:$I$16307) -> 0 | G81: 0
B82: 0601-П32 | C82: =IFERROR(VLOOKUP(B82,'По корисницима'!$C$6:$J$16307,5,FALSE),"") ->  | D82: =SUMIF('По корисницима'!$G$6:$G$16307,"Свега за пројекат 0601-П32:",'По корисницима'!$H$6:$H$16307) -> 0 | E82: 0 | F82: =SUMIF('По корисницима'!$G$6:$G$16307,"Свега за пројекат 0601-П32:",'По корисницима'!$I$6:$I$16307) -> 0 | G82: 0
B83: 0601-П33 | C83: =IFERROR(VLOOKUP(B83,'По корисницима'!$C$6:$J$16307,5,FALSE),"") ->  | D83: =SUMIF('По корисницима'!$G$6:$G$16307,"Свега за пројекат 0601-П33:",'По корисницима'!$H$6:$H$16307) -> 0 | E83: 0 | F83: =SUMIF('По корисницима'!$G$6:$G$16307,"Свега за пројекат 0601-П33:",'По корисницима'!$I$6:$I$16307) -> 0 | G83: 0
B84: 0601-П34 | C84: =IFERROR(VLOOKUP(B84,'По корисницима'!$C$6:$J$16307,5,FALSE),"") ->  | D84: =SUMIF('По корисницима'!$G$6:$G$16307,"Свега за пројекат 0601-П34:",'По корисницима'!$H$6:$H$16307) -> 0 | E84: 0 | F84: =SUMIF('По корисницима'!$G$6:$G$16307,"Свега за пројекат 0601-П34:",'По корисницима'!$I$6:$I$16307) -> 0 | G84: 0
B85: 0601-П35 | C85: =IFERROR(VLOOKUP(B85,'По корисницима'!$C$6:$J$16307,5,FALSE),"") ->  | D85: =SUMIF('По корисницима'!$G$6:$G$16307,"Свега за пројекат 0601-П35:",'По корисницима'!$H$6:$H$16307) -> 0 | E85: 0 | F85: =SUMIF('По корисницима'!$G$6:$G$16307,"Свега за пројекат 0601-П35:",'По корисницима'!$I$6:$I$16307) -> 0 | G85: 0
B86: 0601-П36 | C86: =IFERROR(VLOOKUP(B86,'По корисницима'!$C$6:$J$16307,5,FALSE),"") ->  | D86: =SUMIF('По корисницима'!$G$6:$G$16307,"Свега за пројекат 0601-П36:",'По корисницима'!$H$6:$H$16307) -> 0 | E86: 0 | F86: =SUMIF('По корисницима'!$G$6:$G$16307,"Свега за пројекат 0601-П36:",'По корисницима'!$I$6:$I$16307) -> 0 | G86: 0
B87: 0601-П37 | C87: =IFERROR(VLOOKUP(B87,'По корисницима'!$C$6:$J$16307,5,FALSE),"") ->  | D87: =SUMIF('По корисницима'!$G$6:$G$16307,"Свега за пројекат 0601-П37:",'По корисницима'!$H$6:$H$16307) -> 0 | E87: 0 | F87: =SUMIF('По корисницима'!$G$6:$G$16307,"Свега за пројекат 0601-П37:",'По корисницима'!$I$6:$I$16307) -> 0 | G87: 0
B88: 0601-П38 | C88: =IFERROR(VLOOKUP(B88,'По корисницима'!$C$6:$J$16307,5,FALSE),"") ->  | D88: =SUMIF('По корисницима'!$G$6:$G$16307,"Свега за пројекат 0601-П38:",'По корисницима'!$H$6:$H$16307) -> 0 | E88: 0 | F88: =SUMIF('По корисницима'!$G$6:$G$16307,"Свега за пројекат 0601-П38:",'По корисницима'!$I$6:$I$16307) -> 0 | G88: 0
B89: 0601-П39 | C89: =IFERROR(VLOOKUP(B89,'По корисницима'!$C$6:$J$16307,5,FALSE),"") ->  | D89: =SUMIF('По корисницима'!$G$6:$G$16307,"Свега за пројекат 0601-П39:",'По корисницима'!$H$6:$H$16307) -> 0 | E89: 0 | F89: =SUMIF('По корисницима'!$G$6:$G$16307,"Свега за пројекат 0601-П39:",'По корисницима'!$I$6:$I$16307) -> 0 | G89: 0
B90: 0601-П40 | C90: =IFERROR(VLOOKUP(B90,'По корисницима'!$C$6:$J$16307,5,FALSE),"") ->  | D90: =SUMIF('По корисницима'!$G$6:$G$16307,"Свега за пројекат 0601-П40:",'По корисницима'!$H$6:$H$16307) -> 0 | E90: 0 | F90: =SUMIF('По корисницима'!$G$6:$G$16307,"Свега за пројекат 0601-П40:",'По корисницима'!$I$6:$I$16307) -> 0 | G90: 0
B91: 0601-П41 | C91: =IFERROR(VLOOKUP(B91,'По корисницима'!$C$6:$J$16307,5,FALSE),"") ->  | D91: =SUMIF('По корисницима'!$G$6:$G$16307,"Свега за пројекат 0601-П41:",'По корисницима'!$H$6:$H$16307) -> 0 | E91: 0 | F91: =SUMIF('По корисницима'!$G$6:$G$16307,"Свега за пројекат 0601-П41:",'По корисницима'!$I$6:$I$16307) -> 0 | G91: 0
B92: 0601-П42 | C92: =IFERROR(VLOOKUP(B92,'По корисницима'!$C$6:$J$16307,5,FALSE),"") ->  | D92: =SUMIF('По корисницима'!$G$6:$G$16307,"Свега за пројекат 0601-П42:",'По корисницима'!$H$6:$H$16307) -> 0 | E92: 0 | F92: =SUMIF('По корисницима'!$G$6:$G$16307,"Свега за пројекат 0601-П42:",'По корисницима'!$I$6:$I$16307) -> 0 | G92: 0
B93: 0601-П43 | C93: =IFERROR(VLOOKUP(B93,'По корисницима'!$C$6:$J$16307,5,FALSE),"") ->  | D93: =SUMIF('По корисницима'!$G$6:$G$16307,"Свега за пројекат 0601-П43:",'По корисницима'!$H$6:$H$16307) -> 0 | E93: 0 | F93: =SUMIF('По корисницима'!$G$6:$G$16307,"Свега за пројекат 0601-П43:",'По корисницима'!$I$6:$I$16307) -> 0 | G93: 0
B94: 0601-П44 | C94: =IFERROR(VLOOKUP(B94,'По корисницима'!$C$6:$J$16307,5,FALSE),"") ->  | D94: =SUMIF('По корисницима'!$G$6:$G$16307,"Свега за пројекат 0601-П44:",'По корисницима'!$H$6:$H$16307) -> 0 | E94: 0 | F94: =SUMIF('По корисницима'!$G$6:$G$16307,"Свега за пројекат 0601-П44:",'По корисницима'!$I$6:$I$16307) -> 0 | G94: 0
B95: 0601-П45 | C95: =IFERROR(VLOOKUP(B95,'По корисницима'!$C$6:$J$16307,5,FALSE),"") ->  | D95: =SUMIF('По корисницима'!$G$6:$G$16307,"Свега за пројекат 0601-П45:",'По корисницима'!$H$6:$H$16307) -> 0 | E95: 0 | F95: =SUMIF('По корисницима'!$G$6:$G$16307,"Свега за пројекат 0601-П45:",'По корисницима'!$I$6:$I$16307) -> 0 | G95: 0
B96: 0601-П46 | C96: =IFERROR(VLOOKUP(B96,'По корисницима'!$C$6:$J$16307,5,FALSE),"") ->  | D96: =SUMIF('По корисницима'!$G$6:$G$16307,"Свега за пројекат 0601-П46:",'По корисницима'!$H$6:$H$16307) -> 0 | E96: 0 | F96: =SUMIF('По корисницима'!$G$6:$G$16307,"Свега за пројекат 0601-П46:",'По корисницима'!$I$6:$I$16307) -> 0 | G96: 0
B97: 0601-П47 | C97: =IFERROR(VLOOKUP(B97,'По корисницима'!$C$6:$J$16307,5,FALSE),"") ->  | D97: =SUMIF('По корисницима'!$G$6:$G$16307,"Свега за пројекат 0601-П47:",'По корисницима'!$H$6:$H$16307) -> 0 | E97: 0 | F97: =SUMIF('По корисницима'!$G$6:$G$16307,"Свега за пројекат 0601-П47:",'По корисницима'!$I$6:$I$16307) -> 0 | G97: 0
B98: 0601-П48 | C98: =IFERROR(VLOOKUP(B98,'По корисницима'!$C$6:$J$16307,5,FALSE),"") ->  | D98: =SUMIF('По корисницима'!$G$6:$G$16307,"Свега за пројекат 0601-П48:",'По корисницима'!$H$6:$H$16307) -> 0 | E98: 0 | F98: =SUMIF('По корисницима'!$G$6:$G$16307,"Свега за пројекат 0601-П48:",'По корисницима'!$I$6:$I$16307) -> 0 | G98: 0
B99: 0601-П49 | C99: =IFERROR(VLOOKUP(B99,'По корисницима'!$C$6:$J$16307,5,FALSE),"") ->  | D99: =SUMIF('По корисницима'!$G$6:$G$16307,"Свега за пројекат 0601-П49:",'По корисницима'!$H$6:$H$16307) -> 0 | E99: 0 | F99: =SUMIF('По корисницима'!$G$6:$G$16307,"Свега за пројекат 0601-П49:",'По корисницима'!$I$6:$I$16307) -> 0 | G99: 0
B100: 0601-П50 | C100: =IFERROR(VLOOKUP(B100,'По корисницима'!$C$6:$J$16307,5,FALSE),"") ->  | D100: =SUMIF('По корисницима'!$G$6:$G$16307,"Свега за пројекат 0601-П50:",'По корисницима'!$H$6:$H$16307) -> 0 | E100: =IFERROR(D100/$D$617,"-") -> 0 | F100: =SUMIF('По корисницима'!$G$6:$G$16307,"Свега за пројекат 0601-П50:",'По корисницима'!$I$6:$I$16307) -> 0 | G100: 0
A101: 1501 | C101: Програм 3. Локални економски развој | D101: =SUM(D102:D130) -> 1000000 | E101: 0.002359441204 | F101: =SUM(F102:F130) -> 0 | G101: 1000000
B102: 1501-0001 | C102: Подршка постојећој привреди | D102: =SUMIF('По корисницима'!$G$6:$G$16307,"Свега за програмску активност 1501-0001:",'По корисницима'!$H$6:$H$16307) -> 0 | E102: 0 | F102: =SUMIF('По корисницима'!$G$6:$G$16307,"Свега за програмску активност 1501-0001:",'По корисницима'!$I$6:$I$16307) -> 0 | G102: 0
B103: 1501-0002 | C103: Унапређење привредног амбијента | D103: =SUMIF('По корисницима'!$G$6:$G$16307,"Свега за програмску активност 1501-0002:",'По корисницима'!$H$6:$H$16307) -> 1000000 | E103: 0.002359441204 | F103: =SUMIF('По корисницима'!$G$6:$G$16307,"Свега за програмску активност 1501-0002:",'По корисницима'!$I$6:$I$16307) -> 0 | G103: 1000000
B104: 1501-0003 | C104: Подстицаји за развој предузетништва | D104: =SUMIF('По корисницима'!$G$6:$G$16307,"Свега за програмску активност 1501-0003:",'По корисницима'!$H$6:$H$16307) -> 0 | E104: 0 | F104: =SUMIF('По корисницима'!$G$6:$G$16307,"Свега за програмску активност 1501-0003:",'По корисницима'!$I$6:$I$16307) -> 0 | G104: 0
B105: 1501-0004 | C105: Одржавање економске инфраструктуре | D105: =SUMIF('По корисницима'!$G$6:$G$16307,"Свега за програмску активност 1501-0004:",'По корисницима'!$H$6:$H$16307) -> 0 | E105: 0 | F105: =SUMIF('По корисницима'!$G$6:$G$16307,"Свега за програмску активност 1501-0004:",'По корисницима'!$I$6:$I$16307) -> 0 | G105: 0
B106: 1501-0005 | C106: Финансијска подршка локалном економском развоју | D106: =SUMIF('По корисницима'!$G$6:$G$16307,"Свега за програмску активност 1501-0005:",'По корисницима'!$H$6:$H$16307) -> 0 | E106: 0 | F106: =SUMIF('По корисницима'!$G$6:$G$16307,"Свега за програмску активност 1501-0005:",'По корисницима'!$I$6:$I$16307) -> 0 | G106: 0
B107: 1501-П1 | C107: =IFERROR(VLOOKUP(B107,'По корисницима'!$C$6:$J$16307,5,FALSE),"") ->  | D107: =SUMIF('По корисницима'!$G$6:$G$16307,"Свега за пројекат 1501-П1:",'По корисницима'!$H$6:$H$16307) -> 0 | E107: 0 | F107: =SUMIF('По корисницима'!$G$6:$G$16307,"Свега за пројекат 1501-П1:",'По корисницима'!$I$6:$I$16307) -> 0 | G107: =D107+F107 -> 0
B108: 1501-П2 | C108: =IFERROR(VLOOKUP(B108,'По корисницима'!$C$6:$J$16307,5,FALSE),"") ->  | D108: =SUMIF('По корисницима'!$G$6:$G$16307,"Свега за пројекат 1501-П2:",'По корисницима'!$H$6:$H$16307) -> 0 | E108: =IFERROR(D108/$D$617,"-") -> 0 | F108: =SUMIF('По корисницима'!$G$6:$G$16307,"Свега за пројекат 1501-П2:",'По корисницима'!$I$6:$I$16307) -> 0 | G108: 0
B109: 1501-П3 | C109: =IFERROR(VLOOKUP(B109,'По корисницима'!$C$6:$J$16307,5,FALSE),"") ->  | D109: =SUMIF('По корисницима'!$G$6:$G$16307,"Свега за пројекат 1501-П3:",'По корисницима'!$H$6:$H$16307) -> 0 | E109: 0 | F109: =SUMIF('По корисницима'!$G$6:$G$16307,"Свега за пројекат 1501-П3:",'По корисницима'!$I$6:$I$16307) -> 0 | G109: 0
B110: 1501-П4 | D110: =SUMIF('По корисницима'!$G$6:$G$16307,"Свега за пројекат 1501-П4:",'По корисницима'!$H$6:$H$16307) -> 0 | E110: 0 | F110: =SUMIF('По корисницима'!$G$6:$G$16307,"Свега за пројекат 1501-П4:",'По корисницима'!$I$6:$I$16307) -> 0 | G110: 0
B111: 1501-П5 | D111: =SUMIF('По корисницима'!$G$6:$G$16307,"Свега за пројекат 1501-П5:",'По корисницима'!$H$6:$H$16307) -> 0 | E111: 0 | F111: =SUMIF('По корисницима'!$G$6:$G$16307,"Свега за пројекат 1501-П5:",'По корисницима'!$I$6:$I$16307) -> 0 | G111: 0
B112: 1501-П6 | D112: =SUMIF('По корисницима'!$G$6:$G$16307,"Свега за пројекат 1501-П6:",'По корисницима'!$H$6:$H$16307) -> 0 | E112: 0 | F112: =SUMIF('По корисницима'!$G$6:$G$16307,"Свега за пројекат 1501-П6:",'По корисницима'!$I$6:$I$16307) -> 0 | G112: 0
B113: 1501-П7 | D113: =SUMIF('По корисницима'!$G$6:$G$16307,"Свега за пројекат 1501-П7:",'По корисницима'!$H$6:$H$16307) -> 0 | E113: 0 | F113: =SUMIF('По корисницима'!$G$6:$G$16307,"Свега за пројекат 1501-П7:",'По корисницима'!$I$6:$I$16307) -> 0 | G113: 0
B114: 1501-П8 | D114: =SUMIF('По корисницима'!$G$6:$G$16307,"Свега за пројекат 1501-П8:",'По корисницима'!$H$6:$H$16307) -> 0 | E114: 0 | F114: =SUMIF('По корисницима'!$G$6:$G$16307,"Свега за пројекат 1501-П8:",'По корисницима'!$I$6:$I$16307) -> 0 | G114: 0
B115: 1501-П9 | D115: =SUMIF('По корисницима'!$G$6:$G$16307,"Свега за пројекат 1501-П9:",'По корисницима'!$H$6:$H$16307) -> 0 | E115: 0 | F115: =SUMIF('По корисницима'!$G$6:$G$16307,"Свега за пројекат 1501-П9:",'По корисницима'!$I$6:$I$16307) -> 0 | G115: 0
B116: 1501-П10 | D116: =SUMIF('По корисницима'!$G$6:$G$16307,"Свега за пројекат 1501-П10:",'По корисницима'!$H$6:$H$16307) -> 0 | E116: 0 | F116: =SUMIF('По корисницима'!$G$6:$G$16307,"Свега за пројекат 1501-П10:",'По корисницима'!$I$6:$I$16307) -> 0 | G116: 0
B117: 1501-П11 | D117: =SUMIF('По корисницима'!$G$6:$G$16307,"Свега за пројекат 1501-П11:",'По корисницима'!$H$6:$H$16307) -> 0 | E117: 0 | F117: =SUMIF('По корисницима'!$G$6:$G$16307,"Свега за пројекат 1501-П11:",'По корисницима'!$I$6:$I$16307) -> 0 | G117: 0
B118: 1501-П12 | D118: =SUMIF('По корисницима'!$G$6:$G$16307,"Свега за пројекат 1501-П12:",'По корисницима'!$H$6:$H$16307) -> 0 | E118: 0 | F118: =SUMIF('По корисницима'!$G$6:$G$16307,"Свега за пројекат 1501-П12:",'По корисницима'!$I$6:$I$16307) -> 0 | G118: 0
B119: 1501-П13 | D119: =SUMIF('По корисницима'!$G$6:$G$16307,"Свега за пројекат 1501-П13:",'По корисницима'!$H$6:$H$16307) -> 0 | E119: 0 | F119: =SUMIF('По корисницима'!$G$6:$G$16307,"Свега за пројекат 1501-П13:",'По корисницима'!$I$6:$I$16307) -> 0 | G119: 0
B120: 1501-П14 | D120: =SUMIF('По корисницима'!$G$6:$G$16307,"Свега за пројекат 1501-П14:",'По корисницима'!$H$6:$H$16307) -> 0 | E120: 0 | F120: =SUMIF('По корисницима'!$G$6:$G$16307,"Свега за пројекат 1501-П14:",'По корисницима'!$I$6:$I$16307) -> 0 | G120: 0
B121: 1501-П15 | D121: =SUMIF('По корисницима'!$G$6:$G$16307,"Свега за пројекат 1501-П15:",'По корисницима'!$H$6:$H$16307) -> 0 | E121: 0 | F121: =SUMIF('По корисницима'!$G$6:$G$16307,"Свега за пројекат 1501-П15:",'По корисницима'!$I$6:$I$16307) -> 0 | G121: 0
B122: 1501-П16 | D122: =SUMIF('По корисницима'!$G$6:$G$16307,"Свега за пројекат 1501-П16:",'По корисницима'!$H$6:$H$16307) -> 0 | E122: 0 | F122: =SUMIF('По корисницима'!$G$6:$G$16307,"Свега за пројекат 1501-П16:",'По корисницима'!$I$6:$I$16307) -> 0 | G122: 0
B123: 1501-П17 | D123: =SUMIF('По корисницима'!$G$6:$G$16307,"Свега за пројекат 1501-П17:",'По корисницима'!$H$6:$H$16307) -> 0 | E123: 0 | F123: =SUMIF('По корисницима'!$G$6:$G$16307,"Свега за пројекат 1501-П17:",'По корисницима'!$I$6:$I$16307) -> 0 | G123: 0
B124: 1501-П18 | D124: =SUMIF('По корисницима'!$G$6:$G$16307,"Свега за пројекат 1501-П18:",'По корисницима'!$H$6:$H$16307) -> 0 | E124: 0 | F124: =SUMIF('По корисницима'!$G$6:$G$16307,"Свега за пројекат 1501-П18:",'По корисницима'!$I$6:$I$16307) -> 0 | G124: 0
B125: 1501-П19 | D125: =SUMIF('По корисницима'!$G$6:$G$16307,"Свега за пројекат 1501-П19:",'По корисницима'!$H$6:$H$16307) -> 0 | E125: 0 | F125: =SUMIF('По корисницима'!$G$6:$G$16307,"Свега за пројекат 1501-П19:",'По корисницима'!$I$6:$I$16307) -> 0 | G125: 0
B126: 1501-П20 | D126: =SUMIF('По корисницима'!$G$6:$G$16307,"Свега за пројекат 1501-П20:",'По корисницима'!$H$6:$H$16307) -> 0 | E126: 0 | F126: =SUMIF('По корисницима'!$G$6:$G$16307,"Свега за пројекат 1501-П20:",'По корисницима'!$I$6:$I$16307) -> 0 | G126: 0
B127: 1501-П21 | D127: =SUMIF('По корисницима'!$G$6:$G$16307,"Свега за пројекат 1501-П21:",'По корисницима'!$H$6:$H$16307) -> 0 | E127: 0 | F127: =SUMIF('По корисницима'!$G$6:$G$16307,"Свега за пројекат 1501-П21:",'По корисницима'!$I$6:$I$16307) -> 0 | G127: 0
B128: 1501-П22 | D128: =SUMIF('По корисницима'!$G$6:$G$16307,"Свега за пројекат 1501-П22:",'По корисницима'!$H$6:$H$16307) -> 0 | E128: 0 | F128: =SUMIF('По корисницима'!$G$6:$G$16307,"Свега за пројекат 1501-П22:",'По корисницима'!$I$6:$I$16307) -> 0 | G128: 0
B129: 1501-П23 | D129: =SUMIF('По корисницима'!$G$6:$G$16307,"Свега за пројекат 1501-П23:",'По корисницима'!$H$6:$H$16307) -> 0 | E129: 0 | F129: =SUMIF('По корисницима'!$G$6:$G$16307,"Свега за пројекат 1501-П23:",'По корисницима'!$I$6:$I$16307) -> 0 | G129: 0
B130: 1501-П24 | D130: =SUMIF('По корисницима'!$G$6:$G$16307,"Свега за пројекат 1501-П24:",'По корисницима'!$H$6:$H$16307) -> 0 | E130: 0 | F130: =SUMIF('По корисницима'!$G$6:$G$16307,"Свега за пројекат 1501-П24:",'По корисницима'!$I$6:$I$16307) -> 0 | G130: 0
A131: 1502 | C131: Програм 4. Развој туризма | D131: =SUM(D132:D157) -> 3908000 | E131: =IFERROR(D131/$D$617,"-") -> 0.009220696225 | F131: =SUM(F132:F157) -> 320000 | G131: 4228000
B132: 1502-0001 | C132: Управљање развојем туризма | D132: =SUMIF('По корисницима'!$G$6:$G$16307,"Свега за програмску активност 1502-0001:",'По корисницима'!$H$6:$H$16307) -> 3323000 | E132: =IFERROR(D132/$D$617,"-") -> 0.00784042312 | F132: =SUMIF('По корисницима'!$G$6:$G$16307,"Свега за програмску активност 1502-0001:",'По корисницима'!$I$6:$I$16307) -> 0 | G132: 3323000
B133: 1502-0002 | C133: Промоција туристичке понуде | D133: =SUMIF('По корисницима'!$G$6:$G$16307,"Свега за програмску активност 1502-0002:",'По корисницима'!$H$6:$H$16307) -> 0 | E133: =IFERROR(D133/$D$617,"-") -> 0 | F133: =SUMIF('По корисницима'!$G$6:$G$16307,"Свега за програмску активност 1502-0002:",'По корисницима'!$I$6:$I$16307) -> 0 | G133: 0
B134: 1502-П1 | C134: =IFERROR(VLOOKUP(B134,'По корисницима'!$C$6:$J$16307,5,FALSE),"") -> Стишко посело | D134: =SUMIF('По корисницима'!$G$6:$G$16307,"Свега за пројекат 1502-П1:",'По корисницима'!$H$6:$H$16307) -> 585000 | E134: =IFERROR(D134/$D$617,"-") -> 0.001380273104 | F134: =SUMIF('По корисницима'!$G$6:$G$16307,"Свега за пројекат 1502-П1:",'По корисницима'!$I$6:$I$16307) -> 320000 | G134: 905000
B135: 1502-П2 | C135: =IFERROR(VLOOKUP(B135,'По корисницима'!$C$6:$J$16307,5,FALSE),"") ->  | D135: =SUMIF('По корисницима'!$G$6:$G$16307,"Свега за пројекат 1502-П2:",'По корисницима'!$H$6:$H$16307) -> 0 | E135: =IFERROR(D135/$D$617,"-") -> 0 | F135: =SUMIF('По корисницима'!$G$6:$G$16307,"Свега за пројекат 1502-П2:",'По корисницима'!$I$6:$I$16307) -> 0 | G135: 0
B136: 1502-П3 | D136: =SUMIF('По корисницима'!$G$6:$G$16307,"Свега за пројекат 1502-П3:",'По корисницима'!$H$6:$H$16307) -> 0 | E136: 0 | F136: =SUMIF('По корисницима'!$G$6:$G$16307,"Свега за пројекат 1502-П3:",'По корисницима'!$I$6:$I$16307) -> 0 | G136: 0
B137: 1502-П4 | D137: =SUMIF('По корисницима'!$G$6:$G$16307,"Свега за пројекат 1502-П4:",'По корисницима'!$H$6:$H$16307) -> 0 | E137: 0 | F137: =SUMIF('По корисницима'!$G$6:$G$16307,"Свега за пројекат 1502-П4:",'По корисницима'!$I$6:$I$16307) -> 0 | G137: 0
B138: 1502-П5 | D138: =SUMIF('По корисницима'!$G$6:$G$16307,"Свега за пројекат 1502-П5:",'По корисницима'!$H$6:$H$16307) -> 0 | E138: 0 | F138: =SUMIF('По корисницима'!$G$6:$G$16307,"Свега за пројекат 1502-П5:",'По корисницима'!$I$6:$I$16307) -> 0 | G138: 0
B139: 1502-П6 | D139: =SUMIF('По корисницима'!$G$6:$G$16307,"Свега за пројекат 1502-П6:",'По корисницима'!$H$6:$H$16307) -> 0 | E139: 0 | F139: =SUMIF('По корисницима'!$G$6:$G$16307,"Свега за пројекат 1502-П6:",'По корисницима'!$I$6:$I$16307) -> 0 | G139: 0
B140: 1502-П7 | C140: =IFERROR(VLOOKUP(B140,'По корисницима'!$C$6:$J$16307,5,FALSE),"") ->  | D140: =SUMIF('По корисницима'!$G$6:$G$16307,"Свега за пројекат 1502-П7:",'По корисницима'!$H$6:$H$16307) -> 0 | E140: 0 | F140: =SUMIF('По корисницима'!$G$6:$G$16307,"Свега за пројекат 1502-П7:",'По корисницима'!$I$6:$I$16307) -> 0 | G140: 0
B141: 1502-П8 | C141: =IFERROR(VLOOKUP(B141,'По корисницима'!$C$6:$J$16307,5,FALSE),"") ->  | D141: =SUMIF('По корисницима'!$G$6:$G$16307,"Свега за пројекат 1502-П8:",'По корисницима'!$H$6:$H$16307) -> 0 | E141: 0 | F141: =SUMIF('По корисницима'!$G$6:$G$16307,"Свега за пројекат 1502-П8:",'По корисницима'!$I$6:$I$16307) -> 0 | G141: 0
B142: 1502-П9 | C142: =IFERROR(VLOOKUP(B142,'По корисницима'!$C$6:$J$16307,5,FALSE),"") ->  | D142: =SUMIF('По корисницима'!$G$6:$G$16307,"Свега за пројекат 1502-П9:",'По корисницима'!$H$6:$H$16307) -> 0 | E142: 0 | F142: =SUMIF('По корисницима'!$G$6:$G$16307,"Свега за пројекат 1502-П9:",'По корисницима'!$I$6:$I$16307) -> 0 | G142: 0
B143: 1502-П10 | C143: =IFERROR(VLOOKUP(B143,'По корисницима'!$C$6:$J$16307,5,FALSE),"") ->  | D143: =SUMIF('По корисницима'!$G$6:$G$16307,"Свега за пројекат 1502-П10:",'По корисницима'!$H$6:$H$16307) -> 0 | E143: 0 | F143: =SUMIF('По корисницима'!$G$6:$G$16307,"Свега за пројекат 1502-П10:",'По корисницима'!$I$6:$I$16307) -> 0 | G143: 0
B144: 1502-П11 | C144: =IFERROR(VLOOKUP(B144,'По корисницима'!$C$6:$J$16307,5,FALSE),"") ->  | D144: =SUMIF('По корисницима'!$G$6:$G$16307,"Свега за пројекат 1502-П11:",'По корисницима'!$H$6:$H$16307) -> 0 | E144: 0 | F144: =SUMIF('По корисницима'!$G$6:$G$16307,"Свега за пројекат 1502-П11:",'По корисницима'!$I$6:$I$16307) -> 0 | G144: 0
B145: 1502-П12 | C145: =IFERROR(VLOOKUP(B145,'По корисницима'!$C$6:$J$16307,5,FALSE),"") ->  | D145: =SUMIF('По корисницима'!$G$6:$G$16307,"Свега за пројекат 1502-П12:",'По корисницима'!$H$6:$H$16307) -> 0 | E145: 0 | F145: =SUMIF('По корисницима'!$G$6:$G$16307,"Свега за пројекат 1502-П12:",'По корисницима'!$I$6:$I$16307) -> 0 | G145: 0
B146: 1502-П13 | C146: =IFERROR(VLOOKUP(B146,'По корисницима'!$C$6:$J$16307,5,FALSE),"") ->  | D146: =SUMIF('По корисницима'!$G$6:$G$16307,"Свега за пројекат 1502-П13:",'По корисницима'!$H$6:$H$16307) -> 0 | E146: 0 | F146: =SUMIF('По корисницима'!$G$6:$G$16307,"Свега за пројекат 1502-П13:",'По корисницима'!$I$6:$I$16307) -> 0 | G146: 0
B147: 1502-П14 | C147: =IFERROR(VLOOKUP(B147,'По корисницима'!$C$6:$J$16307,5,FALSE),"") ->  | D147: =SUMIF('По корисницима'!$G$6:$G$16307,"Свега за пројекат 1502-П14:",'По корисницима'!$H$6:$H$16307) -> 0 | E147: 0 | F147: =SUMIF('По корисницима'!$G$6:$G$16307,"Свега за пројекат 1502-П14:",'По корисницима'!$I$6:$I$16307) -> 0 | G147: 0
B148: 1502-П15 | C148: =IFERROR(VLOOKUP(B148,'По корисницима'!$C$6:$J$16307,5,FALSE),"") ->  | D148: =SUMIF('По корисницима'!$G$6:$G$16307,"Свега за пројекат 1502-П15:",'По корисницима'!$H$6:$H$16307) -> 0 | E148: 0 | F148: =SUMIF('По корисницима'!$G$6:$G$16307,"Свега за пројекат 1502-П15:",'По корисницима'!$I$6:$I$16307) -> 0 | G148: 0
B149: 1502-П16 | C149: =IFERROR(VLOOKUP(B149,'По корисницима'!$C$6:$J$16307,5,FALSE),"") ->  | D149: =SUMIF('По корисницима'!$G$6:$G$16307,"Свега за пројекат 1502-П16:",'По корисницима'!$H$6:$H$16307) -> 0 | E149: 0 | F149: =SUMIF('По корисницима'!$G$6:$G$16307,"Свега за пројекат 1502-П16:",'По корисницима'!$I$6:$I$16307) -> 0 | G149: 0
B150: 1502-П17 | C150: =IFERROR(VLOOKUP(B150,'По корисницима'!$C$6:$J$16307,5,FALSE),"") ->  | D150: =SUMIF('По корисницима'!$G$6:$G$16307,"Свега за пројекат 1502-П17:",'По корисницима'!$H$6:$H$16307) -> 0 | E150: 0 | F150: =SUMIF('По корисницима'!$G$6:$G$16307,"Свега за пројекат 1502-П17:",'По корисницима'!$I$6:$I$16307) -> 0 | G150: 0
B151: 1502-П18 | C151: =IFERROR(VLOOKUP(B151,'По корисницима'!$C$6:$J$16307,5,FALSE),"") ->  | D151: =SUMIF('По корисницима'!$G$6:$G$16307,"Свега за пројекат 1502-П18:",'По корисницима'!$H$6:$H$16307) -> 0 | E151: 0 | F151: =SUMIF('По корисницима'!$G$6:$G$16307,"Свега за пројекат 1502-П18:",'По корисницима'!$I$6:$I$16307) -> 0 | G151: 0
B152: 1502-П19 | C152: =IFERROR(VLOOKUP(B152,'По корисницима'!$C$6:$J$16307,5,FALSE),"") ->  | D152: =SUMIF('По корисницима'!$G$6:$G$16307,"Свега за пројекат 1502-П19:",'По корисницима'!$H$6:$H$16307) -> 0 | E152: 0 | F152: =SUMIF('По корисницима'!$G$6:$G$16307,"Свега за пројекат 1502-П19:",'По корисницима'!$I$6:$I$16307) -> 0 | G152: 0
B153: 1502-П20 | C153: =IFERROR(VLOOKUP(B153,'По корисницима'!$C$6:$J$16307,5,FALSE),"") ->  | D153: =SUMIF('По корисницима'!$G$6:$G$16307,"Свега за пројекат 1502-П20:",'По корисницима'!$H$6:$H$16307) -> 0 | E153: 0 | F153: =SUMIF('По корисницима'!$G$6:$G$16307,"Свега за пројекат 1502-П20:",'По корисницима'!$I$6:$I$16307) -> 0 | G153: 0
B154: 1502-П21 | C154: =IFERROR(VLOOKUP(B154,'По корисницима'!$C$6:$J$16307,5,FALSE),"") ->  | D154: =SUMIF('По корисницима'!$G$6:$G$16307,"Свега за пројекат 1502-П21:",'По корисницима'!$H$6:$H$16307) -> 0 | E154: 0 | F154: =SUMIF('По корисницима'!$G$6:$G$16307,"Свега за пројекат 1502-П21:",'По корисницима'!$I$6:$I$16307) -> 0 | G154: 0
B155: 1502-П22 | C155: =IFERROR(VLOOKUP(B155,'По корисницима'!$C$6:$J$16307,5,FALSE),"") ->  | D155: =SUMIF('По корисницима'!$G$6:$G$16307,"Свега за пројекат 1502-П22:",'По корисницима'!$H$6:$H$16307) -> 0 | E155: 0 | F155: =SUMIF('По корисницима'!$G$6:$G$16307,"Свега за пројекат 1502-П22:",'По корисницима'!$I$6:$I$16307) -> 0 | G155: 0
B156: 1502-П23 | C156: =IFERROR(VLOOKUP(B156,'По корисницима'!$C$6:$J$16307,5,FALSE),"") ->  | D156: =SUMIF('По корисницима'!$G$6:$G$16307,"Свега за пројекат 1502-П23:",'По корисницима'!$H$6:$H$16307) -> 0 | E156: 0 | F156: =SUMIF('По корисницима'!$G$6:$G$16307,"Свега за пројекат 1502-П23:",'По корисницима'!$I$6:$I$16307) -> 0 | G156: 0
B157: 1502-П24 | C157: =IFERROR(VLOOKUP(B157,'По корисницима'!$C$6:$J$16307,5,FALSE),"") ->  | D157: =SUMIF('По корисницима'!$G$6:$G$16307,"Свега за пројекат 1502-П24:",'По корисницима'!$H$6:$H$16307) -> 0 | E157: 0 | F157: =SUMIF('По корисницима'!$G$6:$G$16307,"Свега за пројекат 1502-П24:",'По корисницима'!$I$6:$I$16307) -> 0 | G157: 0
A158: 0101 | C158: Програм 5. Пољопривреда и рурални развој | D158: =SUM(D159:D176) -> 22780000 | E158: =IFERROR(D158/$D$617,"-") -> 0.05374807062 | F158: =SUM(F159:F176) -> 0 | G158: 22780000
B159: 0101-0001 | C159: Подршка за спровођење пољопривредне политике у локалној заједници | D159: =SUMIF('По корисницима'!$G$6:$G$16307,"Свега за програмску активност 0101-0001:",'По корисницима'!$H$6:$H$16307) -> 12000000 | E159: =IFERROR(D159/$D$617,"-") -> 0.02831329445 | F159: =SUMIF('По корисницима'!$G$6:$G$16307,"Свега за програмску активност 0101-0001:",'По корисницима'!$I$6:$I$16307) -> 0 | G159: 12000000
B160: 0101-0002 | C160: Мере подршке руралном развоју | D160: =SUMIF('По корисницима'!$G$6:$G$16307,"Свега за програмску активност 0101-0002:",'По корисницима'!$H$6:$H$16307) -> 9480000 | E160: =IFERROR(D160/$D$617,"-") -> 0.02236750261 | F160: =SUMIF('По корисницима'!$G$6:$G$16307,"Свега за програмску активност 0101-0002:",'По корисницима'!$I$6:$I$16307) -> 0 | G160: 9480000
B161: 0101-П1 | C161: Стратегија развоја пољопривреде | D161: =SUMIF('По корисницима'!$G$6:$G$16307,"Свега за пројекат 0101-П1:",'По корисницима'!$H$6:$H$16307) -> 500000 | E161: =IFERROR(D161/$D$617,"-") -> 0.001179720602 | F161: =SUMIF('По корисницима'!$G$6:$G$16307,"Свега за пројекат 0101-П1:",'По корисницима'!$I$6:$I$16307) -> 0 | G161: =D161+F161 -> 500000
B162: 0101-П2 | C162: =IFERROR(VLOOKUP(B162,'По корисницима'!$C$6:$J$16307,5,FALSE),"") -> Едукација пољопривредника | D162: =SUMIF('По корисницима'!$G$6:$G$16307,"Свега за пројекат 0101-П2:",'По корисницима'!$H$6:$H$16307) -> 600000 | E162: =IFERROR(D162/$D$617,"-") -> 0.001415664722 | F162: =SUMIF('По корисницима'!$G$6:$G$16307,"Свега за пројекат 0101-П2:",'По корисницима'!$I$6:$I$16307) -> 0 | G162: 600000
B163: 0101-П3 | C163: =IFERROR(VLOOKUP(B163,'По корисницима'!$C$6:$J$16307,5,FALSE),"") -> Уређење земљишта у КО Топоница | D163: =SUMIF('По корисницима'!$G$6:$G$16307,"Свега за пројекат 0101-П3:",'По корисницима'!$H$6:$H$16307) -> 200000 | E163: 0.0004718882408 | F163: =SUMIF('По корисницима'!$G$6:$G$16307,"Свега за пројекат 0101-П3:",'По корисницима'!$I$6:$I$16307) -> 0 | G163: 200000
B164: 0101-П4 | C164: =IFERROR(VLOOKUP(B164,'По корисницима'!$C$6:$J$16307,5,FALSE),"") ->  | D164: =SUMIF('По корисницима'!$G$6:$G$16307,"Свега за пројекат 0101-П4:",'По корисницима'!$H$6:$H$16307) -> 0 | E164: 0 | F164: =SUMIF('По корисницима'!$G$6:$G$16307,"Свега за пројекат 0101-П4:",'По корисницима'!$I$6:$I$16307) -> 0 | G164: 0
B165: 0101-П5 | C165: =IFERROR(VLOOKUP(B165,'По корисницима'!$C$6:$J$16307,5,FALSE),"") ->  | D165: =SUMIF('По корисницима'!$G$6:$G$16307,"Свега за пројекат 0101-П5:",'По корисницима'!$H$6:$H$16307) -> 0 | E165: 0 | F165: =SUMIF('По корисницима'!$G$6:$G$16307,"Свега за пројекат 0101-П5:",'По корисницима'!$I$6:$I$16307) -> 0 | G165: 0
B166: 0101-П6 | C166: =IFERROR(VLOOKUP(B166,'По корисницима'!$C$6:$J$16307,5,FALSE),"") ->  | D166: =SUMIF('По корисницима'!$G$6:$G$16307,"Свега за пројекат 0101-П6:",'По корисницима'!$H$6:$H$16307) -> 0 | E166: 0 | F166: =SUMIF('По корисницима'!$G$6:$G$16307,"Свега за пројекат 0101-П6:",'По корисницима'!$I$6:$I$16307) -> 0 | G166: 0
B167: 0101-П7 | C167: =IFERROR(VLOOKUP(B167,'По корисницима'!$C$6:$J$16307,5,FALSE),"") ->  | D167: =SUMIF('По корисницима'!$G$6:$G$16307,"Свега за пројекат 0101-П7:",'По корисницима'!$H$6:$H$16307) -> 0 | E167: 0 | F167: =SUMIF('По корисницима'!$G$6:$G$16307,"Свега за пројекат 0101-П7:",'По корисницима'!$I$6:$I$16307) -> 0 | G167: 0
B168: 0101-П8 | C168: =IFERROR(VLOOKUP(B168,'По корисницима'!$C$6:$J$16307,5,FALSE),"") ->  | D168: =SUMIF('По корисницима'!$G$6:$G$16307,"Свега за пројекат 0101-П8:",'По корисницима'!$H$6:$H$16307) -> 0 | E168: 0 | F168: =SUMIF('По корисницима'!$G$6:$G$16307,"Свега за пројекат 0101-П8:",'По корисницима'!$I$6:$I$16307) -> 0 | G168: 0
B169: 0101-П9 | C169: =IFERROR(VLOOKUP(B169,'По корисницима'!$C$6:$J$16307,5,FALSE),"") ->  | D169: =SUMIF('По корисницима'!$G$6:$G$16307,"Свега за пројекат 0101-П9:",'По корисницима'!$H$6:$H$16307) -> 0 | E169: 0 | F169: =SUMIF('По корисницима'!$G$6:$G$16307,"Свега за пројекат 0101-П9:",'По корисницима'!$I$6:$I$16307) -> 0 | G169: 0
B170: 0101-П10 | C170: =IFERROR(VLOOKUP(B170,'По корисницима'!$C$6:$J$16307,5,FALSE),"") ->  | D170: =SUMIF('По корисницима'!$G$6:$G$16307,"Свега за пројекат 0101-П10:",'По корисницима'!$H$6:$H$16307) -> 0 | E170: 0 | F170: =SUMIF('По корисницима'!$G$6:$G$16307,"Свега за пројекат 0101-П10:",'По корисницима'!$I$6:$I$16307) -> 0 | G170: 0
B171: 0101-П11 | C171: =IFERROR(VLOOKUP(B171,'По корисницима'!$C$6:$J$16307,5,FALSE),"") ->  | D171: =SUMIF('По корисницима'!$G$6:$G$16307,"Свега за пројекат 0101-П11:",'По корисницима'!$H$6:$H$16307) -> 0 | E171: 0 | F171: =SUMIF('По корисницима'!$G$6:$G$16307,"Свега за пројекат 0101-П11:",'По корисницима'!$I$6:$I$16307) -> 0 | G171: 0
B172: 0101-П12 | C172: =IFERROR(VLOOKUP(B172,'По корисницима'!$C$6:$J$16307,5,FALSE),"") ->  | D172: =SUMIF('По корисницима'!$G$6:$G$16307,"Свега за пројекат 0101-П12:",'По корисницима'!$H$6:$H$16307) -> 0 | E172: 0 | F172: =SUMIF('По корисницима'!$G$6:$G$16307,"Свега за пројекат 0101-П12:",'По корисницима'!$I$6:$I$16307) -> 0 | G172: 0
B173: 0101-П13 | C173: =IFERROR(VLOOKUP(B173,'По корисницима'!$C$6:$J$16307,5,FALSE),"") ->  | D173: =SUMIF('По корисницима'!$G$6:$G$16307,"Свега за пројекат 0101-П13:",'По корисницима'!$H$6:$H$16307) -> 0 | E173: 0 | F173: =SUMIF('По корисницима'!$G$6:$G$16307,"Свега за пројекат 0101-П13:",'По корисницима'!$I$6:$I$16307) -> 0 | G173: 0
B174: 0101-П14 | C174: =IFERROR(VLOOKUP(B174,'По корисницима'!$C$6:$J$16307,5,FALSE),"") ->  | D174: =SUMIF('По корисницима'!$G$6:$G$16307,"Свега за пројекат 0101-П14:",'По корисницима'!$H$6:$H$16307) -> 0 | E174: 0 | F174: =SUMIF('По корисницима'!$G$6:$G$16307,"Свега за пројекат 0101-П14:",'По корисницима'!$I$6:$I$16307) -> 0 | G174: 0
B175: 0101-П15 | C175: =IFERROR(VLOOKUP(B175,'По корисницима'!$C$6:$J$16307,5,FALSE),"") ->  | D175: =SUMIF('По корисницима'!$G$6:$G$16307,"Свега за пројекат 0101-П15:",'По корисницима'!$H$6:$H$16307) -> 0 | E175: 0 | F175: =SUMIF('По корисницима'!$G$6:$G$16307,"Свега за пројекат 0101-П15:",'По корисницима'!$I$6:$I$16307) -> 0 | G175: 0
B176: 0101-П16 | C176: =IFERROR(VLOOKUP(B176,'По корисницима'!$C$6:$J$16307,5,FALSE),"") ->  | D176: =SUMIF('По корисницима'!$G$6:$G$16307,"Свега за пројекат 0101-П16:",'По корисницима'!$H$6:$H$16307) -> 0 | E176: 0 | F176: =SUMIF('По корисницима'!$G$6:$G$16307,"Свега за пројекат 0101-П16:",'По корисницима'!$I$6:$I$16307) -> 0 | G176: 0
A177: 0401 | C177: Програм 6. Заштита животне средине | D177: =SUM(D178:D196) -> 24680000 | E177: =IFERROR(D177/$D$617,"-") -> 0.05823100891 | F177: =SUM(F178:F196) -> 0 | G177: 24680000
B178: 0401-0001 | C178: Управљање заштитом животне средине | D178: =SUMIF('По корисницима'!$G$6:$G$16307,"Свега за програмску активност 0401-0001:",'По корисницима'!$H$6:$H$16307) -> 5500000 | E178: 0.01297692662 | F178: =SUMIF('По корисницима'!$G$6:$G$16307,"Свега за програмску активност 0401-0001:",'По корисницима'!$I$6:$I$16307) -> 0 | G178: 5500000
B179: 0401-0002 | C179: Праћење квалитета елемената животне средине | D179: =SUMIF('По корисницима'!$G$6:$G$16307,"Свега за програмску активност 0401-0002:",'По корисницима'!$H$6:$H$16307) -> 0 | E179: 0 | F179: =SUMIF('По корисницима'!$G$6:$G$16307,"Свега за програмску активност 0401-0002:",'По корисницима'!$I$6:$I$16307) -> 0 | G179: 0
B180: 0401-0003 | C180: Заштита природе | D180: =SUMIF('По корисницима'!$G$6:$G$16307,"Свега за програмску активност 0401-0003:",'По корисницима'!$H$6:$H$16307) -> 0 | E180: 0 | F180: =SUMIF('По корисницима'!$G$6:$G$16307,"Свега за програмску активност 0401-0003:",'По корисницима'!$I$6:$I$16307) -> 0 | G180: 0
B181: 0401-0004 | C181: Управљање отпадним водама | D181: =SUMIF('По корисницима'!$G$6:$G$16307,"Свега за програмску активност 0401-0004:",'По корисницима'!$H$6:$H$16307) -> 0 | E181: 0 | F181: =SUMIF('По корисницима'!$G$6:$G$16307,"Свега за програмску активност 0401-0004:",'По корисницима'!$I$6:$I$16307) -> 0 | G181: 0
B182: 0401-0005 | C182: Управљање комуналним отпадом | D182: =SUMIF('По корисницима'!$G$6:$G$16307,"Свега за програмску активност 0401-0005:",'По корисницима'!$H$6:$H$16307) -> 12560000 | E182: 0.02963458152 | F182: =SUMIF('По корисницима'!$G$6:$G$16307,"Свега за пројекат 0401-П1:",'По корисницима'!$I$6:$I$16307) -> 0 | G182: 12560000
B183: 0401-0006 | C183: Управљање осталим врстама отпада | D183: =SUMIF('По корисницима'!$G$6:$G$16307,"Свега за програмску активност 0401-0006:",'По корисницима'!$H$6:$H$16307) -> 0 | E183: 0 | F183: =SUMIF('По корисницима'!$G$6:$G$16307,"Свега за пројекат 0401-П2:",'По корисницима'!$I$6:$I$16307) -> 0 | G183: 0
B184: 0401-П1 | C184: =IFERROR(VLOOKUP(B184,'По корисницима'!$C$6:$J$16307,5,FALSE),"") -> Уређење корита реке Млаве кроз насеље | D184: =SUMIF('По корисницима'!$G$6:$G$16307,"Свега за програмску активност 0401-П1:",'По корисницима'!$H$6:$H$16307) -> 6620000 | E184: 0.01561950077 | F184: =SUMIF('По корисницима'!$G$6:$G$16307,"Свега за пројекат 0401-П3:",'По корисницима'!$I$6:$I$16307) -> 0 | G184: 6620000
B185: 0401-П2 | E185: =IFERROR(D185/$D$617,"-") -> 0 | F185: =SUMIF('По корисницима'!$G$6:$G$16307,"Свега за пројекат 0401-П4:",'По корисницима'!$I$6:$I$16307) -> 0 | G185: 0
B186: 0401-П5 | C186: =IFERROR(VLOOKUP(B186,'По корисницима'!$C$6:$J$16307,5,FALSE),"") ->  | D186: =SUMIF('По корисницима'!$G$6:$G$16307,"Свега за пројекат 0401-П5:",'По корисницима'!$H$6:$H$16307) -> 0 | E186: 0 | F186: =SUMIF('По корисницима'!$G$6:$G$16307,"Свега за пројекат 0401-П5:",'По корисницима'!$I$6:$I$16307) -> 0 | G186: 0
B187: 0401-П6 | C187: =IFERROR(VLOOKUP(B187,'По корисницима'!$C$6:$J$16307,5,FALSE),"") ->  | D187: =SUMIF('По корисницима'!$G$6:$G$16307,"Свега за пројекат 0401-П6:",'По корисницима'!$H$6:$H$16307) -> 0 | E187: 0 | F187: =SUMIF('По корисницима'!$G$6:$G$16307,"Свега за пројекат 0401-П6:",'По корисницима'!$I$6:$I$16307) -> 0 | G187: 0
B188: 0401-П7 | C188: =IFERROR(VLOOKUP(B188,'По корисницима'!$C$6:$J$16307,5,FALSE),"") ->  | D188: =SUMIF('По корисницима'!$G$6:$G$16307,"Свега за пројекат 0401-П7:",'По корисницима'!$H$6:$H$16307) -> 0 | E188: 0 | F188: =SUMIF('По корисницима'!$G$6:$G$16307,"Свега за пројекат 0401-П7:",'По корисницима'!$I$6:$I$16307) -> 0 | G188: 0
B189: 0401-П8 | C189: =IFERROR(VLOOKUP(B189,'По корисницима'!$C$6:$J$16307,5,FALSE),"") ->  | D189: =SUMIF('По корисницима'!$G$6:$G$16307,"Свега за пројекат 0401-П8:",'По корисницима'!$H$6:$H$16307) -> 0 | E189: 0 | F189: =SUMIF('По корисницима'!$G$6:$G$16307,"Свега за пројекат 0401-П8:",'По корисницима'!$I$6:$I$16307) -> 0 | G189: 0
B190: 0401-П9 | C190: =IFERROR(VLOOKUP(B190,'По корисницима'!$C$6:$J$16307,5,FALSE),"") ->  | D190: =SUMIF('По корисницима'!$G$6:$G$16307,"Свега за пројекат 0401-П9:",'По корисницима'!$H$6:$H$16307) -> 0 | E190: 0 | F190: =SUMIF('По корисницима'!$G$6:$G$16307,"Свега за пројекат 0401-П9:",'По корисницима'!$I$6:$I$16307) -> 0 | G190: 0
B191: 0401-П10 | C191: =IFERROR(VLOOKUP(B191,'По корисницима'!$C$6:$J$16307,5,FALSE),"") ->  | D191: =SUMIF('По корисницима'!$G$6:$G$16307,"Свега за пројекат 0401-П10:",'По корисницима'!$H$6:$H$16307) -> 0 | E191: 0 | F191: =SUMIF('По корисницима'!$G$6:$G$16307,"Свега за пројекат 0401-П10:",'По корисницима'!$I$6:$I$16307) -> 0 | G191: 0
B192: 0401-П11 | C192: =IFERROR(VLOOKUP(B192,'По корисницима'!$C$6:$J$16307,5,FALSE),"") ->  | D192: =SUMIF('По корисницима'!$G$6:$G$16307,"Свега за пројекат 0401-П11:",'По корисницима'!$H$6:$H$16307) -> 0 | E192: 0 | F192: =SUMIF('По корисницима'!$G$6:$G$16307,"Свега за пројекат 0401-П11:",'По корисницима'!$I$6:$I$16307) -> 0 | G192: 0
B193: 0401-П12 | C193: =IFERROR(VLOOKUP(B193,'По корисницима'!$C$6:$J$16307,5,FALSE),"") ->  | D193: =SUMIF('По корисницима'!$G$6:$G$16307,"Свега за пројекат 0401-П12:",'По корисницима'!$H$6:$H$16307) -> 0 | E193: 0 | F193: =SUMIF('По корисницима'!$G$6:$G$16307,"Свега за пројекат 0401-П12:",'По корисницима'!$I$6:$I$16307) -> 0 | G193: 0
B194: 0401-П13 | C194: =IFERROR(VLOOKUP(B194,'По корисницима'!$C$6:$J$16307,5,FALSE),"") ->  | D194: =SUMIF('По корисницима'!$G$6:$G$16307,"Свега за пројекат 0401-П13:",'По корисницима'!$H$6:$H$16307) -> 0 | E194: 0 | F194: =SUMIF('По корисницима'!$G$6:$G$16307,"Свега за пројекат 0401-П13:",'По корисницима'!$I$6:$I$16307) -> 0 | G194: 0
B195: 0401-П14 | C195: =IFERROR(VLOOKUP(B195,'По корисницима'!$C$6:$J$16307,5,FALSE),"") ->  | D195: =SUMIF('По корисницима'!$G$6:$G$16307,"Свега за пројекат 0401-П14:",'По корисницима'!$H$6:$H$16307) -> 0 | E195: 0 | F195: =SUMIF('По корисницима'!$G$6:$G$16307,"Свега за пројекат 0401-П14:",'По корисницима'!$I$6:$I$16307) -> 0 | G195: 0
B196: 0401-П15 | C196: =IFERROR(VLOOKUP(B196,'По корисницима'!$C$6:$J$16307,5,FALSE),"") ->  | D196: =SUMIF('По корисницима'!$G$6:$G$16307,"Свега за пројекат 0401-П15:",'По корисницима'!$H$6:$H$16307) -> 0 | E196: 0 | F196: =SUMIF('По корисницима'!$G$6:$G$16307,"Свега за пројекат 0401-П15:",'По корисницима'!$I$6:$I$16307) -> 0 | G196: =D196+F196 -> 0
A197: 0701 | C197: Програм 7. Организација саобраћаја и саобраћ. Инфраструктура | D197: =SUM(D198:D252) -> 84100000 | E197: =IFERROR(D197/$D$617,"-") -> 0.1984290052 | F197: =SUM(F198:F251) -> 0 | G197: =D197+F197 -> 84100000
B198: 0701-0001 | C198: Управљање саобраћајем | D198: =SUMIF('По корисницима'!$G$6:$G$16307,"Свега за програмску активност 0701-0001:",'По корисницима'!$H$6:$H$16307) -> 0 | E198: =IFERROR(D198/$D$617,"-") -> 0 | F198: =SUMIF('По корисницима'!$G$6:$G$16307,"Свега за програмску активност 0701-0001:",'По корисницима'!$I$6:$I$16307) -> 0 | G198: 0
B199: 0701-0002 | C199: Одржавање саобраћајне инфраструктуре | D199: =SUMIF('По корисницима'!$G$6:$G$16307,"Свега за програмску активност 0701-0002:",'По корисницима'!$H$6:$H$16307) -> 83600000 | E199: =IFERROR(D199/$D$617,"-") -> 0.1972492846 | F199: =SUMIF('По корисницима'!$G$6:$G$16307,"Свега за програмску активност 0701-0002:",'По корисницима'!$I$6:$I$16307) -> 0 | G199: 83600000
B200: 0701-0003 | C200: Управљање јавним паркиралиштима
... 417 more rows

Sheet Расх по функц.
B1: Члан 8.
A2: Расходи и издаци буџета по функционалној класификацији утврђени су и распоређени у следећим износима:
A3: Функциje | B3: Функционална класификација | C3: Средства из буџета | D3: Структура % | E3: Средства из осталих извора | F3: Укупна јавна средства
A4: 1 | B4: 2 | C4: 3 | D4: 4 | E4: 5 | F4: 6
A5: 000 | B5: СОЦИЈАЛНА ЗАШТИТА | C5: =SUM(C6:C14) -> 15913000 | D5: =IFERROR(C5/$C$140,"-") -> 0.03754578788 | E5: =SUM(E6:E14) -> 1932745 | F5: =SUM(F6:F14) -> 17845745
A6: 010 | B6: Болест и инвалидност; | C6: =SUMIF('По корисницима'!$G$6:$G$16307,"Функција 010:",'По корисницима'!$H$6:$H$16307) -> 600000 | D6: 0.001415664722 | E6: =SUMIF('По корисницима'!$G$6:$G$16307,"Функција 010:",'По корисницима'!$I$6:$I$16307) -> 1932745 | F6: =SUM(E6,C6) -> 2532745
A7: 020 | B7: Старост; | C7: =SUMIF('По корисницима'!$G$6:$G$16307,"Функција 020:",'По корисницима'!$H$6:$H$16307) -> 500000 | D7: 0.001179720602 | E7: =SUMIF('По корисницима'!$G$6:$G$16307,"Функција 020:",'По корисницима'!$I$6:$I$16307) -> 0 | F7: =SUM(E7,C7) -> 500000
A8: 030 | B8: Корисници породичне пензије; | C8: =SUMIF('По корисницима'!$G$6:$G$16307,"Функција 030:",'По корисницима'!$H$6:$H$16307) -> 0 | D8: 0 | E8: =SUMIF('По корисницима'!$G$6:$G$16307,"Функција 030:",'По корисницима'!$I$6:$I$16307) -> 0 | F8: 0
A9: 040 | B9: Породица и деца; | C9: =SUMIF('По корисницима'!$G$6:$G$16307,"Функција 040:",'По корисницима'!$H$6:$H$16307) -> 6800000 | D9: 0.01604420019 | E9: =SUMIF('По корисницима'!$G$6:$G$16307,"Функција 040:",'По корисницима'!$I$6:$I$16307) -> 0 | F9: 6800000
A10: 050 | B10: Незапосленост; | C10: =SUMIF('По корисницима'!$G$6:$G$16307,"Функција 050:",'По корисницима'!$H$6:$H$16307) -> 0 | D10: 0 | E10: =SUMIF('По корисницима'!$G$6:$G$16307,"Функција 050:",'По корисницима'!$I$6:$I$16307) -> 0 | F10: 0
A11: 060 | B11: Становање; | C11: =SUMIF('По корисницима'!$G$6:$G$16307,"Функција 060:",'По корисницима'!$H$6:$H$16307) -> 2420000 | D11: 0.005709847713 | E11: =SUMIF('По корисницима'!$G$6:$G$16307,"Функција 060:",'По корисницима'!$I$6:$I$16307) -> 0 | F11: 2420000
A12: 070 | B12: Социјална помоћ угроженом становништву некласификована на другом месту; | C12: =SUMIF('По корисницима'!$G$6:$G$16307,"Функција 070:",'По корисницима'!$H$6:$H$16307) -> 5593000 | D12: 0.01319635465 | E12: =SUMIF('По корисницима'!$G$6:$G$16307,"Функција 070:",'По корисницима'!$I$6:$I$16307) -> 0 | F12: 5593000
A13: 080 | B13: Социјална заштита - истраживање и развој; | C13: =SUMIF('По корисницима'!$G$6:$G$16307,"Функција 080:",'По корисницима'!$H$6:$H$16307) -> 0 | D13: 0 | E13: =SUMIF('По корисницима'!$G$6:$G$16307,"Функција 080:",'По корисницима'!$I$6:$I$16307) -> 0 | F13: 0
A14: 090 | B14: Социјална заштита некласификована на другом месту | C14: =SUMIF('По корисницима'!$G$6:$G$16307,"Функција 090:",'По корисницима'!$H$6:$H$16307) -> 0 | D14: 0 | E14: =SUMIF('По корисницима'!$G$6:$G$16307,"Функција 090:",'По корисницима'!$I$6:$I$16307) -> 0 | F14: 0
A15: 100 | B15: ОПШТЕ ЈАВНЕ УСЛУГЕ | C15: =SUM(C16:C31) -> 112596000 | D15: 0.2656636418 | E15: =SUM(E16:E31) -> 0 | F15: =C15+E15 -> 112596000
A16: 110 | B16: Извршни и законодавни органи, финансијски и фискални послови и спољни послови; | C16: =SUMIF('По корисницима'!$G$6:$G$16307,"Функција 110:",'По корисницима'!$H$6:$H$16307) -> 10066000 | D16: 0.02375013516 | E16: =SUMIF('По корисницима'!$G$6:$G$16307,"Функција 110:",'По корисницима'!$I$6:$I$16307) -> 0 | F16: 10066000
A17: 111 | B17: Извршни и законодавни органи | C17: =SUMIF('По корисницима'!$G$6:$G$16307,"Функција 111:",'По корисницима'!$H$6:$H$16307) -> 7960000 | D17: 0.01878115198 | E17: =SUMIF('По корисницима'!$G$6:$G$16307,"Функција 111:",'По корисницима'!$I$6:$I$16307) -> 0 | F17: 7960000
A18: 112 | B18: Финансијски и фискални послови | C18: =SUMIF('По корисницима'!$G$6:$G$16307,"Функција 112:",'По корисницима'!$H$6:$H$16307) -> 7000000 | D18: 0.01651608843 | E18: =SUMIF('По корисницима'!$G$6:$G$16307,"Функција 112:",'По корисницима'!$I$6:$I$16307) -> 0 | F18: 7000000
A19: 113 | B19: Спољни послови | C19: =SUMIF('По корисницима'!$G$6:$G$16307,"Функција 113:",'По корисницима'!$H$6:$H$16307) -> 0 | D19: 0 | E19: =SUMIF('По корисницима'!$G$6:$G$16307,"Функција 113:",'По корисницима'!$I$6:$I$16307) -> 0 | F19: 0
A20: 120 | B20: Економска помоћ иностранству; | C20: =SUMIF('По корисницима'!$G$6:$G$16307,"Функција 120:",'По корисницима'!$H$6:$H$16307) -> 0 | D20: 0 | E20: =SUMIF('По корисницима'!$G$6:$G$16307,"Функција 120:",'По корисницима'!$I$6:$I$16307) -> 0 | F20: 0
A21: 121 | B21: Економска помоћ земљама у развоју и земљама у транзицији | C21: =SUMIF('По корисницима'!$G$6:$G$16307,"Функција 121:",'По корисницима'!$H$6:$H$16307) -> 0 | D21: 0 | E21: =SUMIF('По корисницима'!$G$6:$G$16307,"Функција 121:",'По корисницима'!$I$6:$I$16307) -> 0 | F21: 0
A22: 122 | B22: Економска помоћ преко међународних организација | C22: =SUMIF('По корисницима'!$G$6:$G$16307,"Функција 122:",'По корисницима'!$H$6:$H$16307) -> 0 | D22: 0 | E22: =SUMIF('По корисницима'!$G$6:$G$16307,"Функција 122:",'По корисницима'!$I$6:$I$16307) -> 0 | F22: 0
A23: 130 | B23: Опште услуге; | C23: =SUMIF('По корисницима'!$G$6:$G$16307,"Функција 130:",'По корисницима'!$H$6:$H$16307) -> 77445000 | D23: 0.182726924 | E23: =SUMIF('По корисницима'!$G$6:$G$16307,"Функција 130:",'По корисницима'!$I$6:$I$16307) -> 0 | F23: 77445000
A24: 131 | B24: Опште кадровске услуге | C24: =SUMIF('По корисницима'!$G$6:$G$16307,"Функција 131:",'По корисницима'!$H$6:$H$16307) -> 0 | D24: 0 | E24: =SUMIF('По корисницима'!$G$6:$G$16307,"Функција 131:",'По корисницима'!$I$6:$I$16307) -> 0 | F24: 0
A25: 132 | B25: Опште услуге планирања и статистике | C25: =SUMIF('По корисницима'!$G$6:$G$16307,"Функција 132:",'По корисницима'!$H$6:$H$16307) -> 0 | D25: 0 | E25: =SUMIF('По корисницима'!$G$6:$G$16307,"Функција 132:",'По корисницима'!$I$6:$I$16307) -> 0 | F25: 0
A26: 133 | B26: Остале опште услуге | C26: =SUMIF('По корисницима'!$G$6:$G$16307,"Функција 133:",'По корисницима'!$H$6:$H$16307) -> 4425000 | D26: 0.01044052733 | E26: =SUMIF('По корисницима'!$G$6:$G$16307,"Функција 133:",'По корисницима'!$I$6:$I$16307) -> 0 | F26: 4425000
A27: 140 | B27: Основно истраживање; | C27: =SUMIF('По корисницима'!$G$6:$G$16307,"Функција 140:",'По корисницима'!$H$6:$H$16307) -> 0 | D27: 0 | E27: =SUMIF('По корисницима'!$G$6:$G$16307,"Функција 140:",'По корисницима'!$I$6:$I$16307) -> 0 | F27: 0
A28: 150 | B28: Опште јавне услуге - истраживање и развој; | C28: =SUMIF('По корисницима'!$G$6:$G$16307,"Функција 150:",'По корисницима'!$H$6:$H$16307) -> 0 | D28: 0 | E28: =SUMIF('По корисницима'!$G$6:$G$16307,"Функција 150:",'По корисницима'!$I$6:$I$16307) -> 0 | F28: 0
A29: 160 | B29: Опште јавне услуге некласификоване на другом месту; | C29: =SUMIF('По корисницима'!$G$6:$G$16307,"Функција 160:",'По корисницима'!$H$6:$H$16307) -> 5700000 | D29: 0.01344881486 | E29: =SUMIF('По корисницима'!$G$6:$G$16307,"Функција 160:",'По корисницима'!$I$6:$I$16307) -> 0 | F29: 5700000
A30: 170 | B30: Трансакције јавног дуга; | C30: =SUMIF('По корисницима'!$G$6:$G$16307,"Функција 170:",'По корисницима'!$H$6:$H$16307) -> 0 | D30: 0 | E30: =SUMIF('По корисницима'!$G$6:$G$16307,"Функција 170:",'По корисницима'!$I$6:$I$16307) -> 0 | F30: 0
A31: 180 | B31: Трансфери општег карактера између различитих нивоа власти | C31: =SUMIF('По корисницима'!$G$6:$G$16307,"Функција 180:",'По корисницима'!$H$6:$H$16307) -> 0 | D31: 0 | E31: =SUMIF('По корисницима'!$G$6:$G$16307,"Функција 180:",'По корисницима'!$I$6:$I$16307) -> 0 | F31: 0
A32: 300 | B32: ЈАВНИ РЕД И БЕЗБЕДНОСТ | C32: =SUM(C33:C38) -> 2244000 | D32: 0.005294586061 | E32: =SUM(E33:E38) -> 0 | F32: 2244000
A33: 310 | B33: Услуге полиције; | C33: =SUMIF('По корисницима'!$G$6:$G$16307,"Функција 310:",'По корисницима'!$H$6:$H$16307) -> 0 | D33: 0 | E33: =SUMIF('По корисницима'!$G$6:$G$16307,"Функција 310:",'По корисницима'!$I$6:$I$16307) -> 0 | F33: 0
A34: 320 | B34: Услуге противпожарне заштите; | C34: =SUMIF('По корисницима'!$G$6:$G$16307,"Функција 320:",'По корисницима'!$H$6:$H$16307) -> 0 | D34: 0 | E34: =SUMIF('По корисницима'!$G$6:$G$16307,"Функција 320:",'По корисницима'!$I$6:$I$16307) -> 0 | F34: 0
A35: 330 | B35: Судови; | C35: =SUMIF('По корисницима'!$G$6:$G$16307,"Функција 330:",'По корисницима'!$H$6:$H$16307) -> 2244000 | D35: 0.005294586061 | E35: =SUMIF('По корисницима'!$G$6:$G$16307,"Функција 330:",'По корисницима'!$I$6:$I$16307) -> 0 | F35: 2244000
A36: 340 | B36: Затвори; | C36: =SUMIF('По корисницима'!$G$6:$G$16307,"Функција 340:",'По корисницима'!$H$6:$H$16307) -> 0 | D36: 0 | E36: =SUMIF('По корисницима'!$G$6:$G$16307,"Функција 340:",'По корисницима'!$I$6:$I$16307) -> 0 | F36: 0
A37: 350 | B37: Јавни ред и безбедност - истраживање и развој; | C37: =SUMIF('По корисницима'!$G$6:$G$16307,"Функција 350:",'По корисницима'!$H$6:$H$16307) -> 0 | D37: =IFERROR(C37/$C$140,"-") -> 0 | E37: =SUMIF('По корисницима'!$G$6:$G$16307,"Функција 350:",'По корисницима'!$I$6:$I$16307) -> 0 | F37: 0
A38: 360 | B38: Јавни ред и безбедност некласификован на другом месту | C38: =SUMIF('По корисницима'!$G$6:$G$16307,"Функција 360:",'По корисницима'!$H$6:$H$16307) -> 0 | D38: 0 | E38: =SUMIF('По корисницима'!$G$6:$G$16307,"Функција 360:",'По корисницима'!$I$6:$I$16307) -> 0 | F38: 0
A39: 400 | B39: ЕКОНОМСКИ ПОСЛОВИ | C39: =SUM(C40:C78) -> 110788000 | D39: 0.2613977721 | E39: =SUM(E40:E78) -> 320000 | F39: 111108000
A40: 410 | B40: Општи економски и комерцијални послови и послови по питању рада; | C40: =SUMIF('По корисницима'!$G$6:$G$16307,"Функција 410:",'По корисницима'!$H$6:$H$16307) -> 0 | D40: 0 | E40: =SUMIF('По корисницима'!$G$6:$G$16307,"Функција 410:",'По корисницима'!$I$6:$I$16307) -> 0 | F40: 0
A41: 411 | B41: Општи економски и комерцијални послови | C41: =SUMIF('По корисницима'!$G$6:$G$16307,"Функција 411:",'По корисницима'!$H$6:$H$16307) -> 0 | D41: 0 | E41: =SUMIF('По корисницима'!$G$6:$G$16307,"Функција 411:",'По корисницима'!$I$6:$I$16307) -> 0 | F41: 0
A42: 412 | B42: Општи послови по питању рада | C42: =SUMIF('По корисницима'!$G$6:$G$16307,"Функција 412:",'По корисницима'!$H$6:$H$16307) -> 0 | D42: 0 | E42: =SUMIF('По корисницима'!$G$6:$G$16307,"Функција 412:",'По корисницима'!$I$6:$I$16307) -> 0 | F42: 0
A43: 420 | B43: Пољопривреда, шумарство, лов и риболов; | C43: =SUMIF('По корисницима'!$G$6:$G$16307,"Функција 420:",'По корисницима'!$H$6:$H$16307) -> 0 | D43: 0 | E43: =SUMIF('По корисницима'!$G$6:$G$16307,"Функција 420:",'По корисницима'!$I$6:$I$16307) -> 0 | F43: 0
A44: 421 | B44: Пољопривреда | C44: =SUMIF('По корисницима'!$G$6:$G$16307,"Функција 421:",'По корисницима'!$H$6:$H$16307) -> 22780000 | D44: 0.05374807062 | E44: =SUMIF('По корисницима'!$G$6:$G$16307,"Функција 421:",'По корисницима'!$I$6:$I$16307) -> 0 | F44: 22780000
A45: 422 | B45: Шумарство | C45: =SUMIF('По корисницима'!$G$6:$G$16307,"Функција 422:",'По корисницима'!$H$6:$H$16307) -> 0 | D45: 0 | E45: =SUMIF('По корисницима'!$G$6:$G$16307,"Функција 422:",'По корисницима'!$I$6:$I$16307) -> 0 | F45: 0
A46: 423 | B46: Лов и риболов | C46: =SUMIF('По корисницима'!$G$6:$G$16307,"Функција 423:",'По корисницима'!$H$6:$H$16307) -> 0 | D46: 0 | E46: =SUMIF('По корисницима'!$G$6:$G$16307,"Функција 423:",'По корисницима'!$I$6:$I$16307) -> 0 | F46: 0
A47: 430 | B47: Гориво и енергија; | C47: =SUMIF('По корисницима'!$G$6:$G$16307,"Функција 430:",'По корисницима'!$H$6:$H$16307) -> 0 | D47: 0 | E47: =SUMIF('По корисницима'!$G$6:$G$16307,"Функција 430:",'По корисницима'!$I$6:$I$16307) -> 0 | F47: 0
A48: 431 | B48: Угаљ и остала чврста минерална горива | C48: =SUMIF('По корисницима'!$G$6:$G$16307,"Функција 431:",'По корисницима'!$H$6:$H$16307) -> 0 | D48: 0 | E48: =SUMIF('По корисницима'!$G$6:$G$16307,"Функција 431:",'По корисницима'!$I$6:$I$16307) -> 0 | F48: 0
A49: 432 | B49: Нафта и природни гас | C49: =SUMIF('По корисницима'!$G$6:$G$16307,"Функција 432:",'По корисницима'!$H$6:$H$16307) -> 0 | D49: 0 | E49: =SUMIF('По корисницима'!$G$6:$G$16307,"Функција 432:",'По корисницима'!$I$6:$I$16307) -> 0 | F49: 0
A50: 433 | B50: Нуклеарно гориво | C50: =SUMIF('По корисницима'!$G$6:$G$16307,"Функција 433:",'По корисницима'!$H$6:$H$16307) -> 0 | D50: 0 | E50: =SUMIF('По корисницима'!$G$6:$G$16307,"Функција 433:",'По корисницима'!$I$6:$I$16307) -> 0 | F50: 0
A51: 434 | B51: Остала горива | C51: =SUMIF('По корисницима'!$G$6:$G$16307,"Функција 434:",'По корисницима'!$H$6:$H$16307) -> 0 | D51: 0 | E51: =SUMIF('По корисницима'!$G$6:$G$16307,"Функција 434:",'По корисницима'!$I$6:$I$16307) -> 0 | F51: 0
A52: 435 | B52: Електрична енергија | C52: =SUMIF('По корисницима'!$G$6:$G$16307,"Функција 435:",'По корисницима'!$H$6:$H$16307) -> 0 | D52: 0 | E52: =SUMIF('По корисницима'!$G$6:$G$16307,"Функција 435:",'По корисницима'!$I$6:$I$16307) -> 0 | F52: 0
A53: 436 | B53: Остала енергија | C53: =SUMIF('По корисницима'!$G$6:$G$16307,"Функција 436:",'По корисницима'!$H$6:$H$16307) -> 0 | D53: 0 | E53: =SUMIF('По корисницима'!$G$6:$G$16307,"Функција 436:",'По корисницима'!$I$6:$I$16307) -> 0 | F53: 0
A54: 440 | B54: Рударство, производња и изградња; | C54: =SUMIF('По корисницима'!$G$6:$G$16307,"Функција 440:",'По корисницима'!$H$6:$H$16307) -> 0 | D54: 0 | E54: =SUMIF('По корисницима'!$G$6:$G$16307,"Функција 440:",'По корисницима'!$I$6:$I$16307) -> 0 | F54: 0
A55: 441 | B55: Ископавање минералних ресурса, изузев минералних горива | C55: =SUMIF('По корисницима'!$G$6:$G$16307,"Функција 441:",'По корисницима'!$H$6:$H$16307) -> 0 | D55: 0 | E55: =SUMIF('По корисницима'!$G$6:$G$16307,"Функција 441:",'По корисницима'!$I$6:$I$16307) -> 0 | F55: 0
A56: 442 | B56: Производња | C56: =SUMIF('По корисницима'!$G$6:$G$16307,"Функција 442:",'По корисницима'!$H$6:$H$16307) -> 0 | D56: 0 | E56: =SUMIF('По корисницима'!$G$6:$G$16307,"Функција 442:",'По корисницима'!$I$6:$I$16307) -> 0 | F56: 0
A57: 443 | B57: Изградња | C57: =SUMIF('По корисницима'!$G$6:$G$16307,"Функција 443:",'По корисницима'!$H$6:$H$16307) -> 0 | D57: 0 | E57: =SUMIF('По корисницима'!$G$6:$G$16307,"Функција 443:",'По корисницима'!$I$6:$I$16307) -> 0 | F57: 0
A58: 450 | B58: Саобраћај; | C58: =SUMIF('По корисницима'!$G$6:$G$16307,"Функција 450:",'По корисницима'!$H$6:$H$16307) -> 0 | D58: 0 | E58: =SUMIF('По корисницима'!$G$6:$G$16307,"Функција 450:",'По корисницима'!$I$6:$I$16307) -> 0 | F58: 0
A59: 451 | B59: Друмски саобраћај | C59: =SUMIF('По корисницима'!$G$6:$G$16307,"Функција 451:",'По корисницима'!$H$6:$H$16307) -> 69410000 | D59: 0.163768814 | E59: =SUMIF('По корисницима'!$G$6:$G$16307,"Функција 451:",'По корисницима'!$I$6:$I$16307) -> 0 | F59: 69410000
A60: 452 | B60: Водени саобраћај | C60: =SUMIF('По корисницима'!$G$6:$G$16307,"Функција 452:",'По корисницима'!$H$6:$H$16307) -> 0 | D60: 0 | E60: =SUMIF('По корисницима'!$G$6:$G$16307,"Функција 452:",'По корисницима'!$I$6:$I$16307) -> 0 | F60: 0
A61: 453 | B61: Железнички саобраћај | C61: =SUMIF('По корисницима'!$G$6:$G$16307,"Функција 453:",'По корисницима'!$H$6:$H$16307) -> 0 | D61: 0 | E61: =SUMIF('По корисницима'!$G$6:$G$16307,"Функција 453:",'По корисницима'!$I$6:$I$16307) -> 0 | F61: 0
A62: 454 | B62: Ваздушни саобраћај | C62: =SUMIF('По корисницима'!$G$6:$G$16307,"Функција 454:",'По корисницима'!$H$6:$H$16307) -> 0 | D62: 0 | E62: =SUMIF('По корисницима'!$G$6:$G$16307,"Функција 454:",'По корисницима'!$I$6:$I$16307) -> 0 | F62: 0
A63: 455 | B63: Цевоводи и други облици саобраћаја | C63: =SUMIF('По корисницима'!$G$6:$G$16307,"Функција 455:",'По корисницима'!$H$6:$H$16307) -> 0 | D63: 0 | E63: =SUMIF('По корисницима'!$G$6:$G$16307,"Функција 455:",'По корисницима'!$I$6:$I$16307) -> 0 | F63: 0
A64: 460 | B64: Комуникације; | C64: =SUMIF('По корисницима'!$G$6:$G$16307,"Функција 460:",'По корисницима'!$H$6:$H$16307) -> 0 | D64: 0 | E64: =SUMIF('По корисницима'!$G$6:$G$16307,"Функција 460:",'По корисницима'!$I$6:$I$16307) -> 0 | F64: 0
A65: 470 | B65: Остале делатности; | C65: =SUMIF('По корисницима'!$G$6:$G$16307,"Функција 470:",'По корисницима'!$H$6:$H$16307) -> 0 | D65: 0 | E65: =SUMIF('По корисницима'!$G$6:$G$16307,"Функција 470:",'По корисницима'!$I$6:$I$16307) -> 0 | F65: 0
A66: 471 | B66: Трговина, смештај и складиштење | C66: =SUMIF('По корисницима'!$G$6:$G$16307,"Функција 471:",'По корисницима'!$H$6:$H$16307) -> 0 | D66: 0 | E66: =SUMIF('По корисницима'!$G$6:$G$16307,"Функција 471:",'По корисницима'!$I$6:$I$16307) -> 0 | F66: 0
A67: 472 | B67: Хотели и ресторани | C67: =SUMIF('По корисницима'!$G$6:$G$16307,"Функција 472:",'По корисницима'!$H$6:$H$16307) -> 0 | D67: 0 | E67: =SUMIF('По корисницима'!$G$6:$G$16307,"Функција 472:",'По корисницима'!$I$6:$I$16307) -> 0 | F67: 0
A68: 473 | B68: Туризам | C68: =SUMIF('По корисницима'!$G$6:$G$16307,"Функција 473:",'По корисницима'!$H$6:$H$16307) -> 3908000 | D68: 0.009220696225 | E68: =SUMIF('По корисницима'!$G$6:$G$16307,"Функција 473:",'По корисницима'!$I$6:$I$16307) -> 320000 | F68: 4228000
A69: 474 | B69: Вишенаменски развојни пројекти | C69: =SUMIF('По корисницима'!$G$6:$G$16307,"Функција 474:",'По корисницима'!$H$6:$H$16307) -> 0 | D69: =IFERROR(C69/$C$140,"-") -> 0 | E69: =SUMIF('По корисницима'!$G$6:$G$16307,"Функција 474:",'По корисницима'!$I$6:$I$16307) -> 0 | F69: 0
A70: 480 | B70: Економски послови - истраживање и развој; | C70: =SUMIF('По корисницима'!$G$6:$G$16307,"Функција 480:",'По корисницима'!$H$6:$H$16307) -> 0 | D70: =IFERROR(C70/$C$140,"-") -> 0 | E70: =SUMIF('По корисницима'!$G$6:$G$16307,"Функција 480:",'По корисницима'!$I$6:$I$16307) -> 0 | F70: 0
A71: 481 | B71: Истраживање и развој - Општи економски и комерцијални послови и послови по питању рада | C71: =SUMIF('По корисницима'!$G$6:$G$16307,"Функција 481:",'По корисницима'!$H$6:$H$16307) -> 0 | D71: 0 | E71: =SUMIF('По корисницима'!$G$6:$G$16307,"Функција 481:",'По корисницима'!$I$6:$I$16307) -> 0 | F71: =SUM(E71,C71) -> 0
A72: 482 | B72: Истраживање и развој - Пољопривреда, шумарство, лов и риболов | C72: =SUMIF('По корисницима'!$G$6:$G$16307,"Функција 482:",'По корисницима'!$H$6:$H$16307) -> 0 | D72: 0 | E72: =SUMIF('По корисницима'!$G$6:$G$16307,"Функција 482:",'По корисницима'!$I$6:$I$16307) -> 0 | F72: 0
A73: 483 | B73: Истраживање и развој - Гориво и енергија | C73: =SUMIF('По корисницима'!$G$6:$G$16307,"Функција 483:",'По корисницима'!$H$6:$H$16307) -> 0 | D73: 0 | E73: =SUMIF('По корисницима'!$G$6:$G$16307,"Функција 483:",'По корисницима'!$I$6:$I$16307) -> 0 | F73: 0
A74: 484 | B74: Истраживање и развој - Рударство, производња и изградња | C74: =SUMIF('По корисницима'!$G$6:$G$16307,"Функција 484:",'По корисницима'!$H$6:$H$16307) -> 0 | D74: 0 | E74: =SUMIF('По корисницима'!$G$6:$G$16307,"Функција 484:",'По корисницима'!$I$6:$I$16307) -> 0 | F74: 0
A75: 485 | B75: Истраживање и развој - Саобраћај | C75: =SUMIF('По корисницима'!$G$6:$G$16307,"Функција 485:",'По корисницима'!$H$6:$H$16307) -> 14690000 | D75: 0.03466019128 | E75: =SUMIF('По корисницима'!$G$6:$G$16307,"Функција 485:",'По корисницима'!$I$6:$I$16307) -> 0 | F75: 14690000
A76: 486 | B76: Истраживање и развој - Комуникације | C76: =SUMIF('По корисницима'!$G$6:$G$16307,"Функција 486:",'По корисницима'!$H$6:$H$16307) -> 0 | D76: 0 | E76: =SUMIF('По корисницима'!$G$6:$G$16307,"Функција 486:",'По корисницима'!$I$6:$I$16307) -> 0 | F76: 0
A77: 487 | B77: Истраживање и развој - Остале делатности | C77: =SUMIF('По корисницима'!$G$6:$G$16307,"Функција 487:",'По корисницима'!$H$6:$H$16307) -> 0 | D77: 0 | E77: =SUMIF('По корисницима'!$G$6:$G$16307,"Функција 487:",'По корисницима'!$I$6:$I$16307) -> 0 | F77: 0
A78: 490 | B78: Економски послови некласификовани на другом месту | C78: =SUMIF('По корисницима'!$G$6:$G$16307,"Функција 490:",'По корисницима'!$H$6:$H$16307) -> 0 | D78: 0 | E78: =SUMIF('По корисницима'!$G$6:$G$16307,"Функција 490:",'По корисницима'!$I$6:$I$16307) -> 0 | F78: 0
A79: 500 | B79: ЗАШТИТА ЖИВОТНЕ СРЕДИНЕ | C79: =SUM(C80:C85) -> 34220000 | D79: 0.08074007799 | E79: =SUM(E80:E85) -> 0 | F79: =C79+E79 -> 34220000
A80: 510 | B80: Управљање отпадом; | C80: =SUMIF('По корисницима'!$G$6:$G$16307,"Функција 510:",'По корисницима'!$H$6:$H$16307) -> 12560000 | D80: 0.02963458152 | E80: =SUMIF('По корисницима'!$G$6:$G$16307,"Функција 510:",'По корисницима'!$I$6:$I$16307) -> 0 | F80: 12560000
A81: 520 | B81: Управљање отпадним водама; | C81: =SUMIF('По корисницима'!$G$6:$G$16307,"Функција 520:",'По корисницима'!$H$6:$H$16307) -> 0 | D81: 0 | E81: =SUMIF('По корисницима'!$G$6:$G$16307,"Функција 520:",'По корисницима'!$I$6:$I$16307) -> 0 | F81: 0
A82: 530 | B82: Смањење загађености; | C82: =SUMIF('По корисницима'!$G$6:$G$16307,"Функција 530:",'По корисницима'!$H$6:$H$16307) -> 0 | D82: 0 | E82: =SUMIF('По корисницима'!$G$6:$G$16307,"Функција 530:",'По корисницима'!$I$6:$I$16307) -> 0 | F82: 0
A83: 540 | B83: Заштита биљног и животињског света и крајолика; | C83: =SUMIF('По корисницима'!$G$6:$G$16307,"Функција 540:",'По корисницима'!$H$6:$H$16307) -> 18400000 | D83: 0.04341371815 | E83: =SUMIF('По корисницима'!$G$6:$G$16307,"Функција 540:",'По корисницима'!$I$6:$I$16307) -> 0 | F83: 18400000
A84: 550 | B84: Заштита животне средине - истраживање и развој; | C84: =SUMIF('По корисницима'!$G$6:$G$16307,"Функција 550:",'По корисницима'!$H$6:$H$16307) -> 0 | D84: 0 | E84: =SUMIF('По корисницима'!$G$6:$G$16307,"Функција 550:",'По корисницима'!$I$6:$I$16307) -> 0 | F84: 0
A85: 560 | B85: Заштита животне средине некласификована на другом месту | C85: =SUMIF('По корисницима'!$G$6:$G$16307,"Функција 560:",'По корисницима'!$H$6:$H$16307) -> 3260000 | D85: 0.007691778324 | E85: =SUMIF('По корисницима'!$G$6:$G$16307,"Функција 560:",'По корисницима'!$I$6:$I$16307) -> 0 | F85: 3260000
A86: 600 | B86: ПОСЛОВИ СТАНОВАЊА И ЗАЈЕДНИЦЕ | C86: =SUM(C87:C92) -> 30950000 | D86: 0.07302470526 | E86: =SUM(E87:E92) -> 0 | F86: 30950000
A87: 610 | B87: Стамбени развој; | C87: =SUMIF('По корисницима'!$G$6:$G$16307,"Функција 610:",'По корисницима'!$H$6:$H$16307) -> 0 | D87: 0 | E87: =SUMIF('По корисницима'!$G$6:$G$16307,"Функција 610:",'По корисницима'!$I$6:$I$16307) -> 0 | F87: 0
A88: 620 | B88: Развој заједнице; | C88: =SUMIF('По корисницима'!$G$6:$G$16307,"Функција 620:",'По корисницима'!$H$6:$H$16307) -> 4250000 | D88: 0.01002762512 | E88: =SUMIF('По корисницима'!$G$6:$G$16307,"Функција 620:",'По корисницима'!$I$6:$I$16307) -> 0 | F88: 4250000
A89: 630 | B89: Водоснабдевање; | C89: =SUMIF('По корисницима'!$G$6:$G$16307,"Функција 630:",'По корисницима'!$H$6:$H$16307) -> 19700000 | D89: 0.04648099172 | E89: =SUMIF('По корисницима'!$G$6:$G$16307,"Функција 630:",'По корисницима'!$I$6:$I$16307) -> 0 | F89: 19700000
A90: 640 | B90: Улична расвета; | C90: =SUMIF('По корисницима'!$G$6:$G$16307,"Функција 640:",'По корисницима'!$H$6:$H$16307) -> 2000000 | D90: 0.004718882408 | E90: =SUMIF('По корисницима'!$G$6:$G$16307,"Функција 640:",'По корисницима'!$I$6:$I$16307) -> 0 | F90: 2000000
A91: 650 | B91: Послови становања и заједнице - истраживање и развој; | C91: =SUMIF('По корисницима'!$G$6:$G$16307,"Функција 650:",'По корисницима'!$H$6:$H$16307) -> 0 | D91: 0 | E91: =SUMIF('По корисницима'!$G$6:$G$16307,"Функција 650:",'По корисницима'!$I$6:$I$16307) -> 0 | F91: 0
A92: 660 | B92: Послови становања и заједнице некласификовани на другом месту | C92: =SUMIF('По корисницима'!$G$6:$G$16307,"Функција 660:",'По корисницима'!$H$6:$H$16307) -> 5000000 | D92: 0.01179720602 | E92: =SUMIF('По корисницима'!$G$6:$G$16307,"Функција 660:",'По корисницима'!$I$6:$I$16307) -> 0 | F92: 5000000
A93: 700 | B93: ЗДРАВСТВО | C93: =SUM(C94:C110) -> 6100000 | D93: 0.01439259134 | E93: =SUM(E94:E110) -> 0 | F93: 6100000
A94: 710 | B94: Медицински производи, помагала и опрема; | C94: =SUMIF('По корисницима'!$G$6:$G$16307,"Функција 710:",'По корисницима'!$H$6:$H$16307) -> 0 | D94: 0 | E94: =SUMIF('По корисницима'!$G$6:$G$16307,"Функција 710:",'По корисницима'!$I$6:$I$16307) -> 0 | F94: 0
A95: 711 | B95: Фармацеутски производи | C95: =SUMIF('По корисницима'!$G$6:$G$16307,"Функција 711:",'По корисницима'!$H$6:$H$16307) -> 0 | D95: 0 | E95: =SUMIF('По корисницима'!$G$6:$G$16307,"Функција 711:",'По корисницима'!$I$6:$I$16307) -> 0 | F95: 0
A96: 712 | B96: Остали медицински производи | C96: =SUMIF('По корисницима'!$G$6:$G$16307,"Функција 712:",'По корисницима'!$H$6:$H$16307) -> 0 | D96: 0 | E96: =SUMIF('По корисницима'!$G$6:$G$16307,"Функција 712:",'По корисницима'!$I$6:$I$16307) -> 0 | F96: 0
A97: 713 | B97: Терапеутска помагала и опрема | C97: =SUMIF('По корисницима'!$G$6:$G$16307,"Функција 713:",'По корисницима'!$H$6:$H$16307) -> 0 | D97: 0 | E97: =SUMIF('По корисницима'!$G$6:$G$16307,"Функција 713:",'По корисницима'!$I$6:$I$16307) -> 0 | F97: 0
A98: 720 | B98: Ванболничке услуге; | C98: =SUMIF('По корисницима'!$G$6:$G$16307,"Функција 720:",'По корисницима'!$H$6:$H$16307) -> 0 | D98: 0 | E98: =SUMIF('По корисницима'!$G$6:$G$16307,"Функција 720:",'По корисницима'!$I$6:$I$16307) -> 0 | F98: 0
A99: 721 | B99: Опште медицинске услуге | C99: =SUMIF('По корисницима'!$G$6:$G$16307,"Функција 721:",'По корисницима'!$H$6:$H$16307) -> 0 | D99: 0 | E99: =SUMIF('По корисницима'!$G$6:$G$16307,"Функција 721:",'По корисницима'!$I$6:$I$16307) -> 0 | F99: 0
A100: 722 | B100: Специјализоване медицинске услуге | C100: =SUMIF('По корисницима'!$G$6:$G$16307,"Функција 722:",'По корисницима'!$H$6:$H$16307) -> 0 | D100: 0 | E100: =SUMIF('По корисницима'!$G$6:$G$16307,"Функција 722:",'По корисницима'!$I$6:$I$16307) -> 0 | F100: 0
A101: 723 | B101: Стоматолошке услуге | C101: =SUMIF('По корисницима'!$G$6:$G$16307,"Функција 723:",'По корисницима'!$H$6:$H$16307) -> 0 | D101: 0 | E101: =SUMIF('По корисницима'!$G$6:$G$16307,"Функција 723:",'По корисницима'!$I$6:$I$16307) -> 0 | F101: 0
A102: 724 | B102: Парамедицинске услуге | C102: =SUMIF('По корисницима'!$G$6:$G$16307,"Функција 724:",'По корисницима'!$H$6:$H$16307) -> 0 | D102: 0 | E102: =SUMIF('По корисницима'!$G$6:$G$16307,"Функција 724:",'По корисницима'!$I$6:$I$16307) -> 0 | F102: 0
A103: 730 | B103: Болничке услуге; | C103: =SUMIF('По корисницима'!$G$6:$G$16307,"Функција 730:",'По корисницима'!$H$6:$H$16307) -> 0 | D103: 0 | E103: =SUMIF('По корисницима'!$G$6:$G$16307,"Функција 730:",'По корисницима'!$I$6:$I$16307) -> 0 | F103: 0
A104: 731 | B104: Опште болничке услуге | C104: =SUMIF('По корисницима'!$G$6:$G$16307,"Функција 731:",'По корисницима'!$H$6:$H$16307) -> 0 | D104: 0 | E104: =SUMIF('По корисницима'!$G$6:$G$16307,"Функција 731:",'По корисницима'!$I$6:$I$16307) -> 0 | F104: 0
A105: 732 | B105: Специјализоване болничке услуге | C105: =SUMIF('По корисницима'!$G$6:$G$16307,"Функција 732:",'По корисницима'!$H$6:$H$16307) -> 0 | D105: 0 | E105: =SUMIF('По корисницима'!$G$6:$G$16307,"Функција 732:",'По корисницима'!$I$6:$I$16307) -> 0 | F105: 0
A106: 733 | B106: Услуге медицинских центара и породилишта | C106: =SUMIF('По корисницима'!$G$6:$G$16307,"Функција 733:",'По корисницима'!$H$6:$H$16307) -> 0 | D106: 0 | E106: =SUMIF('По корисницима'!$G$6:$G$16307,"Функција 733:",'По корисницима'!$I$6:$I$16307) -> 0 | F106: 0
A107: 734 | B107: Услуге домова за негу и опоравак | C107: =SUMIF('По корисницима'!$G$6:$G$16307,"Функција 734:",'По корисницима'!$H$6:$H$16307) -> 0 | D107: 0 | E107: =SUMIF('По корисницима'!$G$6:$G$16307,"Функција 734:",'По корисницима'!$I$6:$I$16307) -> 0 | F107: 0
A108: 740 | B108: Услуге јавног здравства; | C108: =SUMIF('По корисницима'!$G$6:$G$16307,"Функција 740:",'По корисницима'!$H$6:$H$16307) -> 6100000 | D108: 0.01439259134 | E108: =SUMIF('По корисницима'!$G$6:$G$16307,"Функција 740:",'По корисницима'!$I$6:$I$16307) -> 0 | F108: 6100000
A109: 750 | B109: Здравство - истраживање и развој; | C109: =SUMIF('По корисницима'!$G$6:$G$16307,"Функција 750:",'По корисницима'!$H$6:$H$16307) -> 0 | D109: 0 | E109: =SUMIF('По корисницима'!$G$6:$G$16307,"Функција 750:",'По корисницима'!$I$6:$I$16307) -> 0 | F109: 0
A110: 760 | B110: Здравство некласификовано на другом месту. | C110: =SUMIF('По корисницима'!$G$6:$G$16307,"Функција 760:",'По корисницима'!$H$6:$H$16307) -> 0 | D110: 0 | E110: =SUMIF('По корисницима'!$G$6:$G$16307,"Функција 760:",'По корисницима'!$I$6:$I$16307) -> 0 | F110: 0
A111: 800 | B111: РЕКРЕАЦИЈА, СПОРТ, КУЛТУРА И ВЕРЕ | C111: =SUM(C112:C117) -> 41392667 | D111: 0.09766356406 | E111: =SUM(E112:E117) -> 376000 | F111: 41768667
A112: 810 | B112: Услуге рекреације и спорта; | C112: =SUMIF('По корисницима'!$G$6:$G$16307,"Функција 810:",'По корисницима'!$H$6:$H$16307) -> 4000000 | D112: 0.009437764815 | E112: =SUMIF('По корисницима'!$G$6:$G$16307,"Функција 810:",'По корисницима'!$I$6:$I$16307) -> 0 | F112: 4000000
A113: 820 | B113: Услуге културе; | C113: =SUMIF('По корисницима'!$G$6:$G$16307,"Функција 820:",'По корисницима'!$H$6:$H$16307) -> 14186000 | D113: 0.03347103292 | E113: =SUMIF('По корисницима'!$G$6:$G$16307,"Функција 820:",'По корисницима'!$I$6:$I$16307) -> 376000 | F113: 14562000
A114: 830 | B114: Услуге емитовања и штампања; | C114: =SUMIF('По корисницима'!$G$6:$G$16307,"Функција 830:",'По корисницима'!$H$6:$H$16307) -> 2260000 | D114: 0.005332337121 | E114: =SUMIF('По корисницима'!$G$6:$G$16307,"Функција 830:",'По корисницима'!$I$6:$I$16307) -> 0 | F114: 2260000
A115: 840 | B115: Верске и остале услуге заједнице; | C115: =SUMIF('По корисницима'!$G$6:$G$16307,"Функција 840:",'По корисницима'!$H$6:$H$16307) -> 15446667 | D115: 0.03644550258 | E115: =SUMIF('По корисницима'!$G$6:$G$16307,"Функција 840:",'По корисницима'!$I$6:$I$16307) -> 0 | F115: 15446667
A116: 850 | B116: Рекреација, спорт, култура и вере - истраживање и развој; | C116: =SUMIF('По корисницима'!$G$6:$G$16307,"Функција 850:",'По корисницима'!$H$6:$H$16307) -> 0 | D116: 0 | E116: =SUMIF('По корисницима'!$G$6:$G$16307,"Функција 850:",'По корисницима'!$I$6:$I$16307) -> 0 | F116: 0
A117: 860 | B117: Рекреација, спорт, култура и вере, некласификовано на другом месту | C117: =SUMIF('По корисницима'!$G$6:$G$16307,"Функција 860:",'По корисницима'!$H$6:$H$16307) -> 5500000 | D117: 0.01297692662 | E117: =SUMIF('По корисницима'!$G$6:$G$16307,"Функција 860:",'По корисницима'!$I$6:$I$16307) -> 0 | F117: 5500000
A118: 900 | B118: ОБРАЗОВАЊЕ | C118: =SUM(C119:C139) -> 69625500 | D118: 0.1642772735 | E118: =SUM(E119:E139) -> 4994928 | F118: 74620428
A119: 910 | B119: Предшколско и основно образовање; | C119: =SUMIF('По корисницима'!$G$6:$G$16307,"Функција 910:",'По корисницима'!$H$6:$H$16307) -> 0 | D119: 0 | E119: =SUMIF('По корисницима'!$G$6:$G$16307,"Функција 910:",'По корисницима'!$I$6:$I$16307) -> 0 | F119: 0
A120: 911 | B120: Предшколско образовање | C120: =SUMIF('По корисницима'!$G$6:$G$16307,"Функција 911:",'По корисницима'!$H$6:$H$16307) -> 23445000 | D120: 0.05531709902 | E120: =SUMIF('По корисницима'!$G$6:$G$16307,"Функција 911:",'По корисницима'!$I$6:$I$16307) -> 4994928 | F120: 28439928
A121: 912 | B121: Основно образовање | C121: =SUMIF('По корисницима'!$G$6:$G$16307,"Функција 912:",'По корисницима'!$H$6:$H$16307) -> 45480500 | D121: 0.1073085657 | E121: =SUMIF('По корисницима'!$G$6:$G$16307,"Функција 912:",'По корисницима'!$I$6:$I$16307) -> 0 | F121: 45480500
A122: 913 | B122: Основно образовање са домом ученика | C122: =SUMIF('По корисницима'!$G$6:$G$16307,"Функција 913:",'По корисницима'!$H$6:$H$16307) -> 0 | D122: 0 | E122: =SUMIF('По корисницима'!$G$6:$G$16307,"Функција 913:",'По корисницима'!$I$6:$I$16307) -> 0 | F122: 0
A123: 914 | B123: Основно образовање са средњом школом | C123: =SUMIF('По корисницима'!$G$6:$G$16307,"Функција 914:",'По корисницима'!$H$6:$H$16307) -> 0 | D123: 0 | E123: =SUMIF('По корисницима'!$G$6:$G$16307,"Функција 914:",'По корисницима'!$I$6:$I$16307) -> 0 | F123: 0
A124: 915 | B124: Специјално основно образовање | C124: =SUMIF('По корисницима'!$G$6:$G$16307,"Функција 915:",'По корисницима'!$H$6:$H$16307) -> 0 | D124: 0 | E124: =SUMIF('По корисницима'!$G$6:$G$16307,"Функција 915:",'По корисницима'!$I$6:$I$16307) -> 0 | F124: 0
A125: 916 | B125: Основно образовање са средњом школом и домом ученика | C125: =SUMIF('По корисницима'!$G$6:$G$16307,"Функција 916:",'По корисницима'!$H$6:$H$16307) -> 0 | D125: 0 | E125: =SUMIF('По корисницима'!$G$6:$G$16307,"Функција 916:",'По корисницима'!$I$6:$I$16307) -> 0 | F125: 0
A126: 920 | B126: Средње образовање; | C126: =SUMIF('По корисницима'!$G$6:$G$16307,"Функција 920:",'По корисницима'!$H$6:$H$16307) -> 0 | D126: 0 | E126: =SUMIF('По корисницима'!$G$6:$G$16307,"Функција 920:",'По корисницима'!$I$6:$I$16307) -> 0 | F126: 0
A127: 921 | B127: Ниже средње образовање | C127: =SUMIF('По корисницима'!$G$6:$G$16307,"Функција 921:",'По корисницима'!$H$6:$H$16307) -> 0 | D127: 0 | E127: =SUMIF('По корисницима'!$G$6:$G$16307,"Функција 921:",'По корисницима'!$I$6:$I$16307) -> 0 | F127: 0
A128: 922 | B128: Више средње образовање | C128: =SUMIF('По корисницима'!$G$6:$G$16307,"Функција 922:",'По корисницима'!$H$6:$H$16307) -> 0 | D128: 0 | E128: =SUMIF('По корисницима'!$G$6:$G$16307,"Функција 922:",'По корисницима'!$I$6:$I$16307) -> 0 | F128: 0
A129: 923 | B129: Средње образовање са домом ученика | C129: =SUMIF('По корисницима'!$G$6:$G$16307,"Функција 923:",'По корисницима'!$H$6:$H$16307) -> 0 | D129: 0 | E129: =SUMIF('По корисницима'!$G$6:$G$16307,"Функција 923:",'По корисницима'!$I$6:$I$16307) -> 0 | F129: 0
A130: 930 | B130: Више образовање; | C130: =SUMIF('По корисницима'!$G$6:$G$16307,"Функција 930:",'По корисницима'!$H$6:$H$16307) -> 0 | D130: 0 | E130: =SUMIF('По корисницима'!$G$6:$G$16307,"Функција 930:",'По корисницима'!$I$6:$I$16307) -> 0 | F130: 0
A131: 931 | B131: Више образовање | C131: =SUMIF('По корисницима'!$G$6:$G$16307,"Функција 931:",'По корисницима'!$H$6:$H$16307) -> 0 | D131: 0 | E131: =SUMIF('По корисницима'!$G$6:$G$16307,"Функција 931:",'По корисницима'!$I$6:$I$16307) -> 0 | F131: 0
A132: 932 | B132: Више образовање са студентским домом | C132: =SUMIF('По корисницима'!$G$6:$G$16307,"Функција 932:",'По корисницима'!$H$6:$H$16307) -> 0 | D132: 0 | E132: =SUMIF('По корисницима'!$G$6:$G$16307,"Функција 932:",'По корисницима'!$I$6:$I$16307) -> 0 | F132: 0
A133: 940 | B133: Високо образовање; | C133: =SUMIF('По корисницима'!$G$6:$G$16307,"Функција 940:",'По корисницима'!$H$6:$H$16307) -> 0 | D133: 0 | E133: =SUMIF('По корисницима'!$G$6:$G$16307,"Функција 940:",'По корисницима'!$I$6:$I$16307) -> 0 | F133: 0
A134: 941 | B134: Високо образовање - први степен | C134: =SUMIF('По корисницима'!$G$6:$G$16307,"Функција 941:",'По корисницима'!$H$6:$H$16307) -> 0 | D134: =IFERROR(C134/$C$140,"-") -> 0 | E134: =SUMIF('По корисницима'!$G$6:$G$16307,"Функција 941:",'По корисницима'!$I$6:$I$16307) -> 0 | F134: 0
A135: 942 | B135: Високо образовање - други степен | C135: =SUMIF('По корисницима'!$G$6:$G$16307,"Функција 942:",'По корисницима'!$H$6:$H$16307) -> 0 | D135: 0 | E135: =SUMIF('По корисницима'!$G$6:$G$16307,"Функција 942:",'По корисницима'!$I$6:$I$16307) -> 0 | F135: =SUM(E135,C135) -> 0
A136: 950 | B136: Образовање које није дефинисано нивоом; | C136: =SUMIF('По корисницима'!$G$6:$G$16307,"Функција 950:",'По корисницима'!$H$6:$H$16307) -> 0 | D136: 0 | E136: =SUMIF('По корисницима'!$G$6:$G$16307,"Функција 950:",'По корисницима'!$I$6:$I$16307) -> 0 | F136: 0
A137: 960 | B137: Помоћне услуге образовању; | C137: =SUMIF('По корисницима'!$G$6:$G$16307,"Функција 960:",'По корисницима'!$H$6:$H$16307) -> 0 | D137: 0 | E137: =SUMIF('По корисницима'!$G$6:$G$16307,"Функција 960:",'По корисницима'!$I$6:$I$16307) -> 0 | F137: 0 | G137: 7
A138: 970 | B138: Образовање - истраживање и развој; | C138: =SUMIF('По корисницима'!$G$6:$G$16307,"Функција 970:",'По корисницима'!$H$6:$H$16307) -> 0 | D138: 0 | E138: =SUMIF('По корисницима'!$G$6:$G$16307,"Функција 970:",'По корисницима'!$I$6:$I$16307) -> 0 | F138: 0
A139: 980 | B139: Образовање некласификовано на другом месту | C139: =SUMIF('По корисницима'!$G$6:$G$16307,"Функција 980:",'По корисницима'!$H$6:$H$16307) -> 700000 | D139: 0.001651608843 | E139: =SUMIF('По корисницима'!$G$6:$G$16307,"Функција 980:",'По корисницима'!$I$6:$I$16307) -> 0 | F139: 700000
B140: УКУПНО | C140: =SUM(C5,C15,C32,C39,C79,C86,C93,C111,C118) -> 423829167 | D140: 1 | E140: =SUM(E5,E15,E32,E39,E79,E86,E93,E111,E118) -> 7623673 | F140: =SUM(E140,C140) -> 431452840 | G140: 7
C141: =C140-'По основ. нам.'!C89 -> 0

Sheet Циљеви и индик.
C1: II ПОСЕБАН ДЕО
C3: Члан 9.
A4: Средства буџета у износу од 423.829.167 динара и средства из осталих извора у износу од 7.623.673 динара, утврђени су и распоређени по програмској класификацији, и то:
A8: ПРОГРАМ / ПA / Пројекат | B8: Шифра | C8: Циљ | D8: Индикатор | F8: Циљана вредност 2018. | G8: Циљана вредн. 2019. | H8: Циљ. вредн. 2020. | I8: Средства из буџета | J8: Сопств. и др. прих. | K8: Укупна средства | L8: Надлежан орган/функција/лице
E9: Вредн. у базној год. (2017)
A12: 1 | B12: 2 | C12: 3 | D12: 4 | E12: 5 | F12: 6 | G12: 7 | H12: 8 | I12: 9 | J12: 10 | K12: 11 | L12: 12
A13: Програм 1-урбанизам,становање и просторно планирање | B13: 1101 | C13: Просторни развој у складу са плановима | D13: %грађевинског земљишта опремњеног комуналном инфраструктуром | E13: 10 | F13: 21.5 | G13: 21.5 | H13: 21.5 | I13: 1000 | J13: 20500 | K13: 21500 | L13: Општинска управа/ Начелник општинске управе
A15: Управљање грађевинским земљиштем | B15: 0003 | C15: Стављање у функцију грађевинског земљишта | D15: Број локација комунално опремљеног земљишта | E15: 0 | F15: 1 | I15: 3000000 | K15: 3000000 | L15: Општинска управа/ Начелник општинске управе
A16: Социјално становање | B16: 1101-П1 | C16: Унапређење стамбеног положаја грађана | D16: број лица којима је решено стамбеног питање | E16: 5 | F16: 5 | G16: 5 | H16: 6 | I16: 1120000 | K16: 1120000
A17: Програм 2-комунална делатност | B17: 1102 | C17: Повећање покривености територије комуналним делатностима | D17: Број м2 површине јавне намене где се одржава чистоћа у односу на укупан број м2 јавне намене | E17: 10000 | F17: 11000 | G17: 12000 | H17: 12000 | I17: 30450 | K17: 30450 | L17: Општинска управа/ Начелник општинске управе
A20: Управљање/одржавање јавним осветљењем | B20: 0001 | C20: Адекватно управљање јавним осветљењем | D20: укупан број замена светиљки након пуцања лампи | E20: 200 | F20: 220 | G20: 230 | H20: 240 | I20: 2000000 | J20: 0 | K20: 2000000 | L20: Општинска управа/ Начелник општинске управе
A21: Одржавање јавних зелених површина | B21: 0002 | C21: Адекватан квалитет пружених услуга | D21: динамика уређења зелених јавних површина | E21: 3 | F21: 6 | G21: 8 | H21: 10 | I21: 800000 | K21: 800000
A27: Одржање чистоће на површинама јавне намене | B27: 0003 | C27: Максимална могућа покривеност насеља и територије услугама одржавања чистоће јавних површина | D27: Степен покривености, број улица које се одржавају у односу на укупан број улица | E27: 0.1 | F27: 0.15 | G27: 0.2 | H27: 0.25 | I27: 550000 | K27: 550000 | L27: Општинска управа/ Начелник општинске управе | M27: 8
A28: Зоохигијена | B28: 0004 | C28: Унапређење заштите од заразних болести | D28: Проценат третираних површина ѕа сузбијање глодара и инсеката | E28: 0.6 | F28: 0.7 | G28: 0.9 | H28: 1 | I28: 2850000 | K28: 2850000
A29: Одржавање гробаља и погребне услуге | B29: 0006 | C29: Адекватан квалитет пружених услуга одржавања гробља | D29: број очишћених гробаља | E29: 0 | F29: 0.5 | G29: 1 | H29: 1 | I29: 500000 | K29: 500000
A30: Производња и дистрибуција топлотне енергије | B30: 0007 | C30: Развој дистрибутивног система | D30: Број обновљених далековода | E30: 1 | F30: 1 | G30: 1 | H30: 1 | I30: 6280000 | K30: 6280000
A31: Пројекат број 1: Адаптација простора за смештај паса луталица | B31: 1102-П1 | C31: Опремање простора за смештај паса луталица | D31: Површина уређеног простора | I31: 1000 | K31: 1000 | L31: Општинска управа/Начелник општинске управе
A32: Зохигијена | B32: 0004 | C32: Максимално могућа покривеност насеља услугама | D32: Укупан број м2 јавних и зелених површина који се одржавају | I32: 2600 | K32: 2600 | L32: ЈКП ''Чистоћа''
A33: Управљање и снабдевање водом за пиће | B33: 0008 | C33: Адекватан квалитет пружених услуга водоснабдевања | D33: Проценат покривености територије услугама водоснавдевања | E33: 0.21 | F33: 0.26 | G33: 0.32 | H33: 0.5 | I33: 19700000 | K33: 19700000 | L33: Општинска управа/Начелник општинске управе
L34: стр.11
B35: 1502 | C35: Унапређење развоја туризма | D35: Развој туристичке понуде | I35: 3463 | K35: 3463 | L35: Општинска управа/Начелник општинске управе
A36: Изградња азила за псе | B36: 1102-П1 | C36: Решити питање паса луталица | D36: Смањен број случајева од уједа паса луталица | E36: 50 | F36: 30 | G36: 10 | H36: 5 | I36: 3260000 | K36: 3260000
A37: Програм 3-локални економски развој | B37: 1501 | C37: Повећање запослености на територији општине | D37: Број лица који је прошао обуку за стручно усавршавање | E37: 20 | F37: 50 | G37: 50 | H37: 50 | I37: 1000000 | K37: 1000000 | L37: Општинска управа/Начелник општинске управе
A38: Мере активне политике запошљавања | B38: 0002 | C38: Повећање броја запослених кроз мере активне политике запошљавања | D38: Број новозапослених | E38: 10 | F38: 20 | G38: 20 | H38: 20 | I38: 1000000 | K38: 1000000 | L38: Општинска управа/Начелник општинске управе
A39: Програм 4-развој туризма | B39: 1502 | C39: Повећање прихода од туризма | D39: Проценат повећања броја ноћења | E39: 5 | F39: 6 | G39: 7 | H39: 10 | I39: 3908000 | J39: 320000 | K39: =SUM(I39:J39) -> 4228000 | L39: Туристичка организација
A40: Управљање развоја туризма | B40: 0001 | C40: Повећање квалитета туристичке понуде и услуга | D40: Број уређених и на адекватан начин обележених туристичких локалитета | E40: 1 | F40: 1 | G40: 1 | H40: 1 | I40: 3323000 | K40: 3323000 | L40: Туристичка организација
A41: Стишко посело | B41: 1502-П1 | C41: Развој туристичке ппонуде | D41: број посетилаца на поселу | E41: 1000 | F41: 12000 | G41: 150000 | H41: 16000 | I41: 585000 | J41: 320000 | K41: =SUM(I41:J41) -> 905000 | L41: Туристичка организација
A43: Туристичка промоција | B43: 0002 | C43: Промоција туристичке понуде Општине | D43: Број догађаја који промовишу туристичку понуду Општине | E43: 2 | F43: 3 | G43: 4 | H43: 5 | I43: 2888 | K43: 2888 | L43: Туристичка организација општине/Директор туристичке организације
A44: Пројекат број 1: ''Стишко посело'' | B44: П1 | C44: Унапређење туристичких манифестација | D44: Број учесника | E44: 530 | F44: 575 | G44: 600 | H44: 600 | I44: 575 | J44: 350 | K44: 925 | L44: Туристичка организација општине/Директор туристичке организације
A47: Програм 5-развој пољопривреде | B47: 0101 | C47: Раст производње и стабилност дохотка произвођача | D47: Удео регистрованих пољопривредних газдинстава у укупном броју пољопривредних газдинстава | E47: 0.6 | F47: 0.7 | G47: 0.8 | H47: 0.9 | I47: 22780000 | J47: 0 | K47: 22780000 | L47: Општинска управа/ Начелник општинске управе
A48: Подршка за спровођење пољопривредне политике | B48: 0001 | C48: Стварање услова за развој и унапређење пољопривредне политике | D48: Број ппољопривредних газдинстава која су користила подршку | E48: 20 | F48: 25 | G48: 30 | H48: 35 | I48: 12000000 | K48: 12000000 | L48: Општинска управа/ Начелник општинске управе | M48: 9
A49: Мере подршке руралном развоју | B49: 0002 | C49: Унапређење руралног развоја | D49: проценат коришћења пољопривредног земљишта обухваћених годишњим програмом заштите, уређења и коришћења пољ. Земљишта | E49: 50 | F49: 60 | G49: 70 | H49: 80 | I49: 9480000 | K49: 9480000 | L49: Општинска управа/ Начелник општинске управе
A50: Стратегија развоја пољопривреде | B50: 0101-П1 | C50: Израдити документ стратегије | D50: Број израђених докумената | E50: 1 | F50: 1 | G50: 2 | H50: 3 | I50: 500000 | K50: 500000 | L50: Општинска управа/ Начелник општинске управе
L51: Општинска управа/ Начелник општинске управе
A52: Подршка ѕа спровођење пољопривредне политике | B52: 0001 | C52: Стварање услова за раѕвој и унапређење пољопривредне производње | D52: уређени атарски путеви | E52: 0.25 | F52: 0.5 | G52: 0.6 | H52: 0.8 | I52: 12701 | K52: 12701 | L52: Општинска управа/ Начелник општинске управе
A53: Едукација пољопривредника | B53: 0101-П2 | C53: Посета сајму за пољопривреду | D53: број посетилаца сајма | E53: 200 | F53: 2500 | G53: 300 | H53: 350 | I53: 600000 | K53: 600000 | L53: Општинска управа/ Начелник општинске управе
A54: Уређење земљишта у КО Топоница | B54: 0101-П3 | C54: Спровести поступак комасације | D54: Проценат уређеног земљишта у односу на укупно планирану површину | E54: 0 | F54: 0.5 | G54: 0.6 | H54: 0.8 | I54: 200000 | K54: 200000 | L54: Општинска управа/ Начелник општинске управе
A55: Програм 6 - Заштита животне средине | B55: 0401 | C55: Унапрежђење квалитета животне средине | D55: Проценат територије под заштитом | E55: 0.6 | F55: 0.7 | G55: 0.8 | H55: 1 | I55: 24680000 | K55: 24680000 | L55: Општинска управа/ Начелник општинске управе
M59: 9
A69: Управљање комуналним отпадом | B69: 0004 | C69: Управљање отпадним водама | D69: Број санираних отпадних вода | E69: 0 | F69: 10 | G69: 20 | H69: 30 | I69: 200 | K69: 200 | L69: Општинска управа / Начелник општинске управе
A70: Управљање заштитом животне средине | B70: 0001 | C70: Испуњење обавеза у складу са законима | D70: Усвојен програм заштите животне средине са акционим планом | E70: 1 | F70: 1 | G70: 2 | H70: 2 | I70: 5500000 | K70: 5500000 | L70: Општинска управа/ Начелник општинске управе
L71: Општинска управа/ Начелник општинске управе
L72: Општинска управа/ Начелник општинске управе
L73: Општинска управа/ Начелник општинске управе
A74: Управљање комуналним отпадом | B74: 0005 | C74: Санација дивљих депонија | D74: Број санираних дивљих депонија | E74: 3 | F74: 4 | G74: 5 | H74: 6 | I74: 12560000 | K74: 12560000 | L74: Општинска управа/ Начелник општинске управе
A75: Уређење корита реке Млаве кроз насеље Мало Црниће | B75: 0401-П1 | C75: Уређен канал кроз насеље | D75: дужина уређеног канала | E75: 0 | F75: 50м | G75: 50м | I75: 6620000 | K75: 6620000 | L75: Општинска управа/ Начелник општинске управе
A77: Програм 7- Организација саобраћаја и саобраћајна инфраструктура | B77: 0701 | C77: Развој инфраструктуре | D77: Дужина изграђених саобраћајница које су у надлежности општине у км | E77: 10 | F77: 10 | G77: 10 | H77: 10 | I77: 8500 | J77: 71000 | K77: 79500 | L77: Општинска управа/ Начелник општинске управе
A79: Одржавање саобраћајне инфраструктуре | B79: 0002 | C79: Развијеност инфраструктуре у контексту доприноса социо-економском развоју | D79: Број км санираних или реконструисаних путева | E79: 10 | F79: 25 | G79: 25 | H79: 25 | J79: 51600 | K79: 51600 | L79: Општинска управа/ Начелник општинске управе
A80: Одржавање саобраћајне инфраструктуре ради подизања нивоа безбедности саобраћаја из наменских средстава од саобраћајних казни | B80: 0002 | C80: Одржавање квалитета асфалтног покривача и опремање и одржавање саобраћајне инфраструктуре | D80: Број поправљених и новопостављених саобраћајних знакова и сигнализације | E80: 5 | F80: 5 | G80: 5 | H80: 6 | J80: 6400 | K80: 6400 | L80: Општинска управа/ Начелник општинске управе
A81: Одржавање саобраћајне инфраструктуре као поверених послова и зимско одржавање путева | B81: 0002 | C81: Одржавање улица и путева и пољских путева | D81: број км новоизграђених или ревитализованих улица и пољских путева | I81: 8500 | J81: 13000 | K81: 21500 | L81: ЈКП ''Чистоћа''
A82: Програм 8 – Предшколско васпитање | B82: 2001 | C82: Свеобухватан број деце предшколским васпитањем | D82: Број деце обухваћен предшколским образовањем | E82: 130 | F82: 130 | G82: 130 | H82: 130 | I82: 19313 | J82: 7295 | K82: 26608
M85: 11
A90: Програм 7-Организација саобраћаја и саобраћајна инфраструктура | B90: 0701 | C90: Развијеност инфраструктуре у контексту доприноса социо економском развоју | D90: Дужина изграђених саобраћајница | I90: 84100000 | K90: 84100000 | L90: Општинска управа/ Начелник општинске управе
A91: Одржавање саобраћајне инфраструктуре | B91: 0002 | C91: Одржавање путне мреже кроз одржавање асфалтног покривача | D91: дужина обновљених саобраћајница | I91: 83600000 | K91: 83600000 | L91: Општинска управа/ Начелник општинске управе | M91: 10
A92: Уређење моста на Витовници у Калишту | B92: 0701-П1 | C92: реконструкција моста ради појачане безбедности | D92: број обновљрних мостова | E92: 0 | F92: 1 | G92: 1 | H92: 1 | I92: 500000 | K92: 500000 | L92: Општинска управа/ Начелник општинске управе
A93: Програм 8- Предшколско образовање и васпитање | B93: 2001 | C93: Повећање обухвата деце предшколским васпитањем и образовањем | D93: Проценат деце која су уписана у предшколску установу | I93: 23445000 | J93: 4994928 | K93: =SUM(I93:J93) -> 28439928 | L93: Предшколска установа/ Директор предшкшколске установе
A94: Функционисање предшколских установа | B94: 0001 | C94: Унапређење квалитета предшколског образовања и васпитања | D94: % стручних сарадника који су добили најмање 24 бода за стручно усавршавање | E94: 80 | F94: 85 | G94: 90 | H94: 90 | I94: 19313 | J94: 7295 | K94: 26608 | L94: Предшколска установа/ Директор предшкшколске установе
B95: 2002 | C95: Доступност основног образовања свој деци | D95: Проценат деце којој је обезбеђен бесплатан превоз | I95: 45480000 | K95: 45480000
A96: Програм 9 – Основно образовање
A97: Функционисање основних школа | B97: 0001 | C97: унапређење квалитета образовања | D97: Број стручних лица која су добила најмање 24 бода за стручно усавршавање | I97: 45480000 | K97: 45480000 | L97: Основна школа/ Директор основне школе
A98: Програм 11 - Социјална и дечја заштита | B98: 0901 | C98: Повећање доступности права и услуга социјалне заштите | D98: % корисника социјалне и дечје заштите из буџета | E98: 0.15 | F98: 0.2 | G98: 0.25 | H98: 0.25 | I98: 14793000 | J98: 1932745 | K98: =SUM(I98:J100) -> 16725745 | L98: Општинска управа | N98: =SUM(I98:K98) -> 33451490
A101: Социјалне помоћи | B101: 0001 | C101: Унапређење заштите сиромашних | D101: Број корисника једнократне новчане помоћи | I101: 5013 | K101: 5013 | L101: Центар за социјални рад/ Директор
A102: Прихватилишта, и дуге врсте смештаја | B102: 0002 | C102: Обезбеђење услуге смештаја | D102: Број корисника услуге смештаја | I102: 300 | K102: 300 | L102: Центар за социјални рад/ Директор
A103: Подршка социо-хуманитарним организацијама | B103: 0003 | C103: Подстицање развоја разноврсних социјалних услуга у заједници и укључивање у сферу пружања услуга што више различитих социјалних актера | D103: Број удружења / хуманитарних организација које добијају средства из буџета ЛС | E103: 4 | F103: 4 | G103: 4 | H103: 4 | I103: 300 | K103: 300 | L103: Општинска управа/ Начелник општинске управе
A104: Социјалне помоћи | B104: 0001 | C104: Унапређење заштите сиромашних | D104: %сиромашних који добијају новчане накнаде | E104: 50 | F104: 55 | G104: 60 | H104: 65 | I104: 5013000 | K104: 5013000 | L104: ОО Црвеног крста
A105: Прихватилишта, прихватне станице | B105: 0002 | C105: Обезбеђење услуге смештаја | D105: број корисника услуга прихватилишта | E105: 1 | F105: 1 | G105: 2 | H105: 2 | I105: 1300000 | K105: 1300000 | L105: Општинска управа/ Начелник општинске управе
A106: Дневне услуге у заједници | B106: 0003 | C106: Подстицање развоја разноврсних социјалних и дневних услуга у заједници | D106: Број корисника услуга | E106: 4 | F106: 5 | G106: 5 | H106: 5 | I106: 600000 | J106: 1932745 | K106: =SUM(I106:J108) -> 2532745 | L106: Општинска управа/ Начелник општинске управе
L107: Општинска управа/ Начелник општинске управе
L108: Општинска управа/ Начелник општинске управе
L109: Општинска управа/ Начелник општинске управе
L110: Општинска управа/ Начелник општинске управе
A111: Програм 12 - Примарна здравствена заштита | B111: 1801 | C111: Унапређење здравља становништва | D111: Покривеност становништва примарном здравственом заштитом | I111: 10989 | K111: 10989 | L111: Општинска управа/ Начелник општинске управе
L112: Општинска управа/ Начелник општинске управе
L113: Општинска управа/ Начелник општинске управе
L114: Општинска управа/ Начелник општинске управе
L115: Општинска управа/ Начелник општинске управе
A116: Подршка реализацији програма Црвеног крста | B116: 0005 | C116: Социјално деловање, ублажавање људске патње, пружање ургентне помоћи | D116: број акција за прикупљање различите врсте помоћи | E116: 4 | F116: 5 | G116: 5 | H116: 5 | I116: 580000 | K116: 580000 | L116: Општинска управа/ Начелник општинске управе
A117: Подршка деци и породици с децом | B117: 0006 | C117: Обезбеђење финансијске подршке за децу и породицу | D117: број деце која примају финансијску подршку | E117: 15 | F117: 20 | G117: 20 | H117: 20 | I117: 6800000 | K117: 6800000 | L117: Општинска управа/ Начелник општинске управе | M117: 11
A118: Подршка материјално угрожених лица/породица | B118: 0007 | C118: Подршка породицама са одређеним бројем деце | D118: број деце корисника давања у укупном броју деце | E118: 0.02 | F118: 0.05 | G118: 0.1 | H118: 0.1 | I118: 500000 | K118: 500000 | L118: Општинска управа/ Начелник општинске управе
A119: Програм 12- Примарна здравствена заштита | B119: 1801 | I119: 6100000 | K119: 6100000
A120: Функционисање установа примарне здравствене заштите | B120: 0001 | C120: Унапређење квалитета примарне здравствене заштите | D120: Број лекара финансираних из буџета | E120: 4 | F120: 4 | G120: 4 | H120: 4 | I120: 6100000 | K120: 6100000 | L120: Дом здравља / Директор
A121: Програм 13-Развој културе и информисања | B121: 1201 | C121: Култура, комуникације и медији | D121: Очување и представљање локалног културног наслеђа | I121: 31892667 | J121: 376000 | K121: =SUM(I121:J123) -> 32268667
A124: Функционисање локалних установа културе | B124: 0001 | C124: Обезбеђивање редовног функционисања установа културе | D124: Број запослених у установама културе | E124: 4 | F124: 4 | G124: 5 | H124: 5 | I124: 9036000 | J124: 25000 | K124: =SUM(I124:J124) -> 9061000 | L124: Библиотека/Центар за културу
A125: Унапређење система очувања културно историјског наслеђа | B125: 0003 | C125: Унапређење очувања културно историјског наслеђа | D125: Број споменика културе код којих су извршена инвестициона улагања у односу на укупан број споменика | E125: 3 | F125: 4 | G125: 5 | H125: 5 | I125: 16446667 | K125: 16446667 | L125: Општинска управа
A126: Остваривање јавног интереса у области јавног информисања | B126: 0004 | C126: Повећана понуда медијских садржаја из области друштвеног живота локалне заједнице | D126: Број различитих тематских типова програма за боље информисање | E126: 2 | F126: 2 | G126: 2 | H126: 2 | I126: 2000000 | K126: 2000000 | L126: Општинска управа
A127: Пројекат број 1: подстицаји популарисању књижевног стваралаштва | B127: 1201-П1 | C127: Подстицаји популарисању књиге и књижевног стваралаштва | D127: % учешћа издвајања за културне програме у буџету | E127: 0.002 | F127: 0.003 | G127: 0.003 | H127: 0.003 | I127: 405000 | K127: 405000 | L127: Општинска управа
A128: Пројекат број 2: Издавачка делатност | B128: 1201-П2 | C128: Издавачка делатност | D128: Број издатих књига | E128: 4 | F128: 5 | G128: 5 | H128: 5 | I128: 260000 | K128: 260000 | L128: Библиотека
A129: Пројекат број 3: Доградња летње позорнице | B129: 1201-П3 | C129: Јачање капацитета културних објеката | D129: Уређена летња позорница | E129: 1 | F129: 1 | G129: 1 | H129: 1 | I129: 800000 | K129: 800000 | L129: Библиотека
A130: Пројекат број 4: Организација ФЕДРАСА | B130: 1201-П4 | C130: Развој културног садржаја | D130: Број одиграних представа | L130: Центар за културу
A131: Пројекат број 4: Припрема позоришне представе | B131: 1201-П4 | C131: Развој културног садржаја | D131: % издвајања из буџета за припрему позоришних представа | E131: 0.1 | F131: 0.1 | G131: 0.1 | H131: 0.1 | I131: 1315000 | J131: 301000 | K131: =SUM(I131:J131) -> 1616000 | L131: Центар за културу
A132: Пројекат број 5: ''Крени коло да кренемо'' | B132: 1201-П5 | C132: Омасовљење културног аматеризма | D132: Процењени број посетилаца | E132: 1000 | F132: 1100 | G132: 1120 | H132: 1120 | I132: 995000 | K132: 995000 | L132: Центар за културу
A133: Пројекат број 6: Часопис ''Стиг'' | B133: 1201-П6 | C133: Афирмација књижевног стваралаштва кроз часопис ''Стиг'' | D133: Објављени часописи | E133: 4 | F133: 4 | G133: 4 | H133: 4 | I133: 300000 | K133: 300000 | L133: Центар за културу | M133: 12
A134: Пројекат број 7: набавка опреме | B134: 1201-П7 | C134: Јачање услова за рад установа културе | D134: Набављена опрема | E134: 3 | F134: 3 | G134: 3 | H134: 3 | I134: 335000 | K134: 335000 | L134: Библиотека/Центар за културу
A135: Програм 14 - Развој спорта и омладине | B135: 1301 | C135: Стварање услова за бављењем спортом свих грађана | D135: Број спортских организација преко којих се остварују јавни интереси у области спорта | I135: 9650000 | K135: 9650000 | L135: Општинска управа
A137: ПА - Подршка локалним спортским организацијама, удружењима и савезима | B137: 0001 | C137: Обезбеђивање услова за рад и унапређење капацитета спортских организација преко којих се остварује јавни интерес у области спорта у општини | D137: број годишњих програма спортских организације финансираних од стране општине | E137: 12 | F137: 12 | G137: 12 | H137: 12 | I137: 4000000 | K137: 4000000 | L137: Општинска управа
A138: Подршка предшколском , школском и рекреативном спорту | B138: 0002 | C138: Унапређење предшколског и школског спорта | D138: Број пројеката преко којих се реализују активности | E138: 1 | F138: 2 | G138: 2 | H138: 2 | I138: 5500000 | K138: 5500000 | L138: Општинска управа
A139: Спровођење омладинске политике | B139: 0005 | C139: Подршка активном укључивању младих у различите друштвене активности | D139: Број младих корисника услуга мера омладинске политике | E139: 0 | F139: 10 | G139: 10 | H139: 15 | I139: 150000 | K139: 150000 | L139: Општинска управа
A140: Програм 15 – локална самоуправа | B140: 0602 | C140: Одрживо управно и финансијско функционисање града/општине у складу надлежностима и пословима локалне самоуправе | D140: Стабилност и интегритет локалног буџета (суфицит, дефицит) | E140: 0.236 | F140: 0.2543 | G140: 0.25 | H140: 0.2 | I140: 97914000 | K140: 97914000 | L140: Општинска управа
A143: Функционисање локалне самоуправе | B143: 0001 | C143: Обезбеђено континурано функционисање оргаа ЈЛС | D143: Проценат попуњености радних места која подразумевају вођење управног поступка | L143: Општинска управа / Начелник општинске управе
A144: Пројекат број 1: Реконстуркција зграде општинске управе | B144: 0602-П1 | C144: Обезбедити оптималне услове за рад органа општине | D144: Урађен пројекат | F144: 1 | I144: 300000 | J144: 0 | K144: 300000 | L144: Општинска управа
A145: Пројекат број 2: Санација крова на згради млина | B145: 0602-П2 | C145: Адаптација објекта за смештај архивске грађе и регистратурског материјала | D145: адаптиран објекат | F145: 1 | I145: 1810000 | J145: 0 | K145: 1810000 | L145: Општинска управа
A146: Пројекат број 3: Реконструкција сале ФЕДРАС-а | B146: 0602-П3 | C146: Унапређење рада јавне управе | D146: инсталиран софтвер за е-управу | F146: 1 | I146: 3500000 | K146: 3500000 | L146: Општинска управа
A147: Пројекат број 4. Уређење зграде архиве | B147: 0601-П4 | C147: Унапређење рада јавне управе | D147: Опремљена зграда архиве | F147: 1 | I147: 1140000 | K147: 1140000 | L147: Општинска управа
A148: Функционисање локалне самоуправе | B148: 0001 | C148: Одрживо управно функционисање општине | D148: суфицит дефицит буџета | F148: 0.04 | G148: 0.02 | H148: 0.02 | I148: 74620000 | K148: 74620000
A149: Месне заједнице | B149: 0002 | C149: Обезбеђено задовољавање потреба и интереса локалног становништва деловањем МЗ | D149: % буџета који се издваја за финансирање месних заједница | E149: 0.015 | F149: 0.015 | G149: 0.015 | H149: 0.015 | I149: 5000000 | J149: 0 | K149: 5000000 | L149: Месна заједница
A150: Општинско јавно правобранилаштво | B150: 0004 | C150: Општинско јавно правобранилаштво | D150: Број решених предмета у односу на укупан број предмета | E150: 0.5 | F150: 0.6 | G150: 0.65 | H150: 0.7 | I150: 2244000 | K150: 2244000 | L150: Општинско правобранилаштво | M150: 13
A151: Програми националних мањина | B151: 0007 | C151: Остваривање права националних мањина | D151: Број реализованих пројеката националних мањина | E151: 0 | F151: 1 | G151: 1 | H151: 1 | I151: 100000 | K151: 100000 | L151: Општинска управа
A152: Текућа буџетска резерва | B152: 0009 | C152: Обезбеђење снабдевености и стабилности на тржишту општине | D152: Проценат искоришћености текуће резерве у току године | E152: 0.77 | F152: 0.7 | G152: 0.7 | H152: 0.7 | I152: 6000000 | K152: 6000000 | L152: Општинска управа
A153: Стална буџетска резерва | B153: 0010 | C153: Обезбеђење стабилности буџета у складу са потребама | D153: Проценат искоришћености сталне резерве у току године | E153: 1 | F153: 1 | G153: 1 | H153: 1 | I153: 1000000 | K153: 1000000 | L153: Општинска управа
A154: Ванредне ситуације | B154: 0014 | C154: Изградња превентивног система заштите и спасавања од елементарних и других непогода | D154: Број идентификованих објеката критичне инфраструктуре | E154: 1 | F154: 2 | G154: 2 | H154: 2 | I154: 2200000 | K154: 2200000 | L154: Штаб за ванредне ситуације и Општинска управа
A155: Програм 16-политички систем локалне самоуправе | B155: 2101 | C155: Ефикасно и ефективно функционисање политичког система локалне самоуправе | D155: Обављање основних функција изборних органа ЈЛС | I155: 15.014 | K155: 15.014
A156: Политички систем-Скупштина општине | B156: 0001 | C156: Функционисање локалне скупштине | D156: Број седница скупштине | E156: 10 | F156: 10 | G156: 10 | H156: 10 | I156: 7506000 | K156: 7506000 | L156: Председник СО-е
A157: Пројекат бр.1-Прослава Дана Општине | B157: 2101-П1 | C157: Очување историјске традиције | D157: Број присутних грађана | E157: 1000 | F157: 1000 | G157: 1200 | H157: 1300 | I157: 740000 | K157: 740000 | L157: Председник СО-е
A158: Пројекат бр.2. Прослава крсне славе општине | B158: 2101-П2 | C158: Очување историјске традиције | D158: Број присутних грађана | E158: 50 | F158: 55 | G158: 55 | H158: 55 | I158: 580000 | K158: 580000 | L158: Председник СО-е
A159: Пројекат бр.3. Меморијални турнир Љубиша Величковић | B159: 2101-П3 | C159: Очување историјске традиције | D159: Број присутних грађана | E159: 100 | F159: 120 | G159: 120 | H159: 130 | I159: 240000 | K159: 240000 | L159: Председник СО-е
A160: Политички систем-Председник Општине и Општинско веће | B160: 0002 | C160: Функционисање извршних органа | D160: Број седница извршних органа | E160: 20 | F160: 20 | G160: 20 | H160: 20 | I160: 8960000 | K160: 8960000 | L160: Председник Општине | M160: 14

Sheet Капитални расходи
A2: Издаци за капиталне пројекте, планирани за буџетску 2018. и наредне две године, исказане су у табели.
A7: Прилог 2a
A8: Преглед капиталних пројеката у периоду 2018 - 2020. године
A9: Шифра ЈЛС:
A10: 66 | B10: Мало Црниће
J12: =[2]spisak!K$6 -> 0 | K12: =[2]spisak!L$6 -> 97260000 | L12: =[2]spisak!M$6 -> 0 | M12: =[2]spisak!N$6 -> 0 | N12: =[2]spisak!O$6 -> 0
J13: =SUM(J18:J76) -> 0 | K13: =SUM(K18:K59) -> 93040000 | L13: =SUM(L18:L76) -> 0 | M13: =SUM(M18:M76) -> 0 | N13: =SUM(N18:N76) -> 0
A14: =27*[2]spisak!A14 -> 108 | J14: у дин (заокружено на 000)
A15: Р.бр. | B15: Назив капиталног пројекта | C15: Шифра програма | D15: Шифра програмске активности/ Пројекта | E15: Конто 3. ниво | F15: Конто 4. ниво | G15: Извор | H15: Реализовано закључно са 31.12.2016. године | I15: 2017- план | J15: 2017 - процена реализације | K15: 2018 | L15: 2019 | M15: 2020 | N15: Након 2020 | O15: Грађевинска дозвола (датум издавања - дан/месец/година) | P15: Датум објављивања јавног позива набавке (дан/месец/година) | Q15: Уговор (број уговора и датум закључења - дан/месец/година) | R15: Уговорена вредност по основном уговору (у дин.) | S15: Додатно уговорена вредност (у дин.) | T15: Рок реализације по основном уговору ( у данима) | U15: Анексима продужен рок (продужења рока у данима и крајњи датум по анексу - дан/месец/година) | V15: Реално очекивани рок реализације (датум - дан/месец/година) | W15: Статус пројекта (1, 2, 3, 4 ,5, 6 или 7) | X15: Напомена
A16: 1 | B16: 2 | C16: 3 | D16: 4 | E16: 5 | F16: 6 | G16: 7 | H16: 8 | I16: 9 | J16: 10 | K16: 11 | L16: 12 | M16: 13 | N16: 14 | O16: 15 | P16: 16 | Q16: 17 | R16: 18 | S16: 19 | T16: 20 | U16: 21 | V16: 22 | W16: 23 | X16: 24
B17: namena | E17: k-3 | F17: k-4 | G17: Izvor | J17: budžet 2010 | K17: 2011
A18: 1 | B18: Асфалтирање пута у насељу Аљудово | C18: 7 | D18: 0701-0002 | E18: 511 | F18: 5113 | G18: 13 | K18: 900000
A19: =A18+1 -> 2 | B19: Асфалтирање пута у насељу Батуша | C19: 7 | D19: 0701-0002 | E19: 511 | F19: 5113 | G19: 13 | K19: 3000000
A20: =A19+1 -> 3 | B20: Асфалтирање пута у насељу Божевац | C20: 7 | D20: 0701-0002 | E20: 511 | F20: 5113 | G20: 13 | K20: 4700000
A21: 4 | B21: Асфалтирање пута у насељу Велико Село | C21: 7 | D21: 0701-0002 | E21: 511 | F21: 5113 | G21: 13 | K21: 2000000
A22: 5 | B22: Асфалтирање пута у насељу Велико Црниће | C22: 7 | D22: 0701-0002 | E22: 511 | F22: 5113 | G22: 13 | K22: 3000000
A23: 6 | B23: Асфалтирање пута у насељу Врбница | C23: 7 | D23: 0701-0002 | E23: 511 | F23: 5113 | G23: 13 | K23: 2400000
A24: 7 | B24: Асфалтирање пута у насељу Забрега | C24: 7 | D24: 0701-0002 | E24: 511 | F24: 5113 | G24: 13 | K24: 380000
A25: 8 | B25: Aсфалтирање пута и израда тротоара и ивичњака у насељу Кобиље | C25: 7 | D25: 0701-0002 | E25: 511 | F25: 5113 | G25: 13 | K25: 2500000
A26: 9 | B26: Асфалтирање пута у насељу Кула | C26: 7 | D26: 0701-0002 | E26: 511 | F26: 5113 | G26: 13 | K26: 3500000
A27: 10 | B27: Асфалтирање пута у насељу Крављи До | C27: 7 | D27: 0701-0002 | E27: 511 | F27: 5113 | G27: 13 | K27: 1200000 | Y27: 15
A28: 11 | B28: Асфалтирање пута у насељу Калиште | C28: 7 | D28: 0701-0002 | E28: 511 | F28: 5113 | G28: 13 | K28: 2000000
A29: 12 | B29: Асфалтирање пута у насељу Мало Црниће | C29: 7 | D29: 0701-0002 | E29: 511 | F29: 5113 | G29: 13 | K29: 3000000
A30: 13 | B30: Асфалтирање пута у насељу Мало Градиште | C30: 7 | D30: 0701-0002 | E30: 511 | F30: 5113 | G30: 13 | K30: 1500000
A31: 14 | B31: Асфалтирање пута у насељу Салаковац | C31: 7 | D31: 0701-0002 | E31: 511 | F31: 5113 | G31: 13 | K31: 4000000
A32: 15 | B32: Асфалтирање пута у насељу Смољинац | C32: 7 | D32: 0701-0002 | E32: 511 | F32: 5113 | G32: 13 | K32: 3500000
A33: 16 | B33: Асфалтирање пута у насељу Топоница | C33: 7 | D33: 0701-0002 | E33: 511 | F33: 5113 | G33: 13 | K33: 3000000
A34: 17 | B34: Асфалтирање пута у насељу Црљенац | C34: 7 | D34: 0701-0002 | E34: 511 | F34: 5113 | G34: 13 | K34: 3000000
A35: 18 | B35: Асфалтирање пута у насељу Шапине | C35: 7 | D35: 0701-0002 | E35: 511 | F35: 5113 | G35: 13 | K35: 2500000
A36: 19 | B36: Асфалтирање пута у насељу Шљивовац | C36: 7 | D36: 0701-0002 | E36: 511 | F36: 5113 | G36: 13 | K36: 2500000
A37: 20 | B37: Пројектно планирање(пројектна документација и стручни надзор за капитално одржавање путева) | C37: 7 | D37: 0701-0002 | E37: 511 | F37: 5114 | G37: 13 | K37: 2490000
A38: 21 | B38: Изградња пута Кобиље-Божевац | C38: 7 | D38: 0701-0002 | E38: 511 | F38: 5112 | G38: 13 | K38: 12000000
A39: 22 | B39: Стручни надзор на извођењу радова пута Кобиље-Божевац | C39: 7 | D39: 0701-0002 | E39: 511 | F39: 5114 | G39: 13 | K39: 240000
A40: 23 | B40: Пројектна документација за изградњу моста на Витовници у Калишту | C40: 7 | D40: 0701-П1 | E40: 511 | F40: 5114 | G40: 13 | K40: 500000
A41: 24 | B41: Пројектно планирање(пројектна документација за уређење Домова култура и стручни надзор) | C41: 13 | D41: 1201-0003 | E41: 511 | F41: 5114 | G41: 13 | K41: 2000000
A42: 25 | B42: Изградња магистралног цевовода У Топоници | C42: 2 | D42: 1102-0008 | E42: 511 | F42: 5111 | G42: 13 | K42: 8000000
A43: 26 | B43: Изградња бунара у Божевцу | C43: 2 | D43: 1102-0008 | E43: 511 | F43: 5111 | G43: 13 | K43: 1000000
A44: 27 | B44: Пројектна документација за изградњу водоводних објеката (магистралног цевовода у Топоници и бунар у Божевцу) | C44: 2 | D44: 1102-0008 | E44: 511 | F44: 5114 | G44: 13 | K44: 800000
A45: 28 | B45: Стручни надзор за извођење радова у на изградњи магистралног цевовода у Топоници и бунара у Божевцу | C45: 2 | D45: 1102-0008 | E45: 511 | F45: 5114 | G45: 13 | K45: 500000 | Y45: 16
A46: 29 | B46: Изградња азила за псе | C46: 2 | D46: 1102-П1 | E46: 511 | F46: 5111 | G46: 13 | K46: 3000000
A47: 30 | B47: Пројектно планирање(пројекат и стручни надзор за изградњу азила за псе) | C47: 2 | D47: 1102-П1 | E47: 511 | F47: 51114 | G47: 13 | K47: 260000
A48: 31 | B48: Пројектна документација за отпадне воде | C48: 6 | D48: 0401-0001 | E48: 511 | F48: 5114 | G48: 1 | K48: 200000
A49: 32 | B49: Уређење корита реке Млаве(део корита у Малом Црнићу) | C49: 6 | D49: 0401-П1 | E49: 511 | F49: 5112 | G49: 13 | K49: 6000000
A50: 33 | B50: Пројектно планирање(пројектна документација и стручни надзор за уређење корита реке Млаве) | C50: 6 | D50: 0401-П1 | E50: 511 | F50: 5114 | G50: 13 | K50: 620000
A51: 34 | B51: Пројекто планирање (пројектна документација и стручни надзор на текућим поправкама фудбалских игралишта) | C51: 14 | D51: 1301-0002 | E51: 511 | F51: 5114 | G51: 13 | K51: 400000
A52: 35 | B52: Pеконструкција зграде општине | C52: 15 | D52: 0602-П1 | E52: 511 | F52: 5112 | G52: 13 | K52: 0
A53: 36 | B53: Пројектно планирање (пројекат и стручни надзор) на реконструкцији зграде општине | C53: 15 | D53: 0602-П1 | E53: 511 | F53: 5114 | G53: 13 | K53: 300000
A54: 37 | B54: Санација крова на згради Млина | C54: 15 | D54: 0602-П2 | E54: 511 | F54: 5112 | G54: 13 | K54: 1700000
A55: 38 | B55: Пројектно планирање (пројекат и стручни надзор на санацији крова на згради Млина) | C55: 15 | D55: 0602-П2 | E55: 511 | F55: 5114 | G55: 13 | K55: 110000
A56: 39 | B56: Реконструкција сале федраса | C56: 15 | D56: 0602-П3 | E56: 511 | F56: 5112 | G56: 13 | K56: 3440000
A57: 40 | B57: Стручни надзор на радовима реконструкције сале Федраса | C57: 15 | D57: 0602-П3 | E57: 511 | F57: 5114 | G57: 13 | K57: 60000
A58: 41 | B58: Уређење зграде архиве-санација крова | C58: 15 | D58: 0602-П4 | E58: 511 | F58: 5112 | G58: 13 | K58: 700000
A59: 42 | B59: Пројектно планирање(пројекат и стручни надзор за радове на санацији крова архиве) | C59: 15 | D59: 0602-П4 | E59: 511 | F59: 5114 | G59: 13 | K59: 140000 | Y59: 17
B62: Место, Датум | K62: Потпис одговорног лица

Sheet По корисницима
G2: Члан 10.
B3: Средства буџета у износу од 423.829.167 динара и средства из осталих извора корисника буџета у износу од 7.623.673динара, распоређују се по корисницима и врстама издатака и то:
A4: Раздео | B4: Глава | C4: Програм-ска Класиф. | D4: Функција | E4: Позиција | F4: Економ. Класиф. | G4: Опис | H4: Средства из буџета | I4: Средства из осталих извора | J4: Укупна јавна средства
A5: 1 | B5: 2 | C5: 3 | D5: 4 | E5: 5 | F5: 6 | G5: 7 | H5: 8 | I5: 9 | J5: 10
A6: 1 | B6: 1 | G6: СКУПШТИНА ОПШТИНЕ
C7: 2101 | G7: ПРОГРАМ 16: ПОЛИТИЧКИ СИСТЕМ ЛОКАЛНЕ САМОУПРАВЕ
C8: 2101-0001 | G8: Функционисање Скупштине
D9: 110 | G9: Извршни и законодавни органи, финансијски и фискални послови и спољни послови
E10: 1 | F10: 411 | G10: Плате, додаци и накнаде запослених (зараде) | H10: 2450000 | J10: =SUM(H10:I10) -> 2450000
E11: 2 | F11: 412 | G11: Социјални доприноси на терет послодавца | H11: 485000 | J11: =SUM(H11:I11) -> 485000
F12: 413 | G12: Накнаде у натури | J12: 0
E13: 3 | F13: 414 | G13: Социјална давања запосленима | H13: 200000 | J13: 200000
E14: 4 | F14: 415 | G14: Накнаде трошкова за запослене | H14: 171000 | J14: 171000
E15: 5 | F15: 416 | G15: Награде запосленима и остали посебни расходи | H15: 100000 | J15: 100000
E16: 3 | F16: 417 | G16: Посланички додатак | J16: 0
E17: 3 | F17: 418 | G17: Судијски додатак. | J17: 0
E18: 3 | F18: 421 | G18: Стални трошкови | J18: 0
E19: 6 | F19: 422 | G19: Трошкови путовања | H19: 50000 | J19: 50000
E20: 7 | F20: 423 | G20: Услуге по уговору | H20: 3330000 | J20: 3330000
E21: 3
E22: 3 | F22: 424 | G22: Специјализоване услуге | J22: 0
E23: 8 | F23: 426 | G23: Материјал | H23: 50000 | J23: 50000
E24: 9 | F24: 465 | G24: Остале донације, дотације и трансфери | H24: 370000 | J24: 370000
E25: 3 | F25: 431 | G25: Амортизација некретнина и опреме | J25: 0
E26: 3 | F26: 432 | G26: Амортизација култивисане имовине | J26: 0
E27: 3 | F27: 433 | G27: Употреба драгоцености | J27: 0
E28: 3 | F28: 434 | G28: Употреба природне имовине | J28: 0
E29: 3 | F29: 435 | G29: Амортизација нематеријалне имовине | J29: 0
E30: 3 | F30: 441 | G30: Отплата домаћих камата | J30: 0
E31: 3 | F31: 442 | G31: Отплата страних камата | J31: 0
E32: 3 | F32: 443 | G32: Отплата камата по гаранцијама | J32: 0
E33: 3 | F33: 444 | G33: Пратећи трошкови задуживања | J33: 0
E34: 3 | F34: 4511 | G34: Текуће субвенције јавним нефинансијским предузећима и организацијама | J34: 0
E35: 3 | F35: 4512 | G35: Капиталне субвенције јавним нефинансијским предузећима и организацијама | J35: 0
E36: 3 | F36: 452 | G36: Субвенције приватним финансијским институцијама | J36: 0
E37: 3 | F37: 453 | G37: Субвенције јавним финансијским институцијама | J37: 0
E38: 3 | F38: 454 | G38: Субвенције приватним предузећима | J38: 0
E39: 3 | F39: 461 | G39: Донације страним владама | J39: 0
E40: 3 | F40: 462 | G40: Донације и дотације међународним организацијама | J40: 0
E41: 3 | F41: 4631 | G41: Текући трансфери осталим нивоима власти | J41: 0
E42: 3 | F42: 4632 | G42: Капитални трансфери осталим нивоима власти | J42: 0
E43: 3 | F43: 464 | G43: Дотације организацијама обавезног социјалног осигурања | J43: 0
E44: 3 | F44: 465 | G44: Остале донације, дотације и трансфери | J44: 0
E45: 3 | F45: 472 | G45: Накнаде за социјалну заштиту из буџета | J45: 0
E46: 10 | F46: 481 | G46: Дотације невладиним организацијама | H46: 80000 | J46: 80000
F47: 482 | G47: Порези, обавезне таксе, казне и пенали | J47: 0
F48: 483 | G48: Новчане казне и пенали по решењу судова | J48: 0
F49: 484 | G49: Накнада штете за повреде или штету насталу услед елементарних непогода или других природних узрока | J49: 0
F50: 485 | G50: Накнада штете за повреде или штету нанету од стране државних органа | J50: 0
F51: 489 | G51: Расходи који се финансирају из средстава за реализацију националног инвестиционог плана | J51: 0
F52: 494 | G52: Административни трансфери из буџета - Текући расходи | J52: 0
F53: 495 | G53: Административни трансфери из буџета - Издаци за нефинансијску имовину | J53: 0
F54: 496 | G54: Административни трансфери из буџета - Издаци за отплату главнице и набавку финансијске имовине | J54: 0
F55: 499 | G55: Административни трансфери из буџета - Средства резерве | J55: 0
F56: 511 | G56: Зграде и грађевински објекти | J56: 0
E57: 11 | F57: 512 | G57: Машине и опрема | H57: 120000 | J57: 120000
F58: 513 | G58: Остале некретнине и опрема | J58: 0
F59: 514 | G59: Култивисана имовина | J59: 0
F60: 515 | G60: Нематеријална имовина | J60: 0
F61: 521 | G61: Робне резерве | J61: 0
F62: 522 | G62: Залихе производње | J62: 0
F63: 523 | G63: Залихе робе за даљу продају | J63: 0
F64: 531 | G64: Драгоцености | J64: 0
F65: 541 | G65: Земљиште | J65: 0
F66: 542 | G66: Рудна богатства | J66: 0
F67: 543 | G67: Шуме и воде | J67: 0
F68: 551 | G68: Нефинансијска имовина која се финансира из средстава за реализацију националног инвестиционог плана | J68: 0
F69: 611 | G69: Отплата главнице домаћим кредиторима | J69: 0
F70: 620 | G70: Набавка финансијске имовине | J70: 0
G71: Извори финансирања за функцију 110:
F72: 01 | G72: Приходи из буџета | H72: =SUM(H10:H57) -> 7406000 | J72: =SUM(H72:I72) -> 7406000
F73: 02 | G73: Трансфери између корисника на истом нивоу | J73: 0
F74: 03 | G74: Социјални доприноси | J74: 0
F75: 04 | G75: Сопствени приходи буџетских корисника | J75: 0
F76: 05 | G76: Донације од иностраних земаља | J76: 0
F77: 06 | G77: Донације од међународних организација | J77: 0
F78: 07 | G78: Трансфери од других нивоа власти | J78: 0
F79: 08 | G79: Добровољни трансфери од физичких и правних лица | J79: 0
F80: 09 | G80: Примања од продаје нефинансијске имовине | J80: 0
F81: 10 | G81: Примања од домаћих задуживања | J81: 0
F82: 11 | G82: Примања од иностраних задуживања | J82: 0
F83: 12 | G83: Примања од отплате датих кредита и продаје финансијске имовине | J83: 0
F84: 13 | G84: Нераспоређени вишак прихода из ранијих година | J84: 0
F85: 14 | G85: Неутрошена средства од приватизације из претходних година | J85: 0
F86: 15 | G86: Неутрошена средства донација из претходних година | J86: 0
F87: 16 | G87: Родитељски динар за ваннаставне активности | J87: 0
G88: Функција 110: | H88: =SUM(H72:H87) -> 7406000 | I88: =SUM(I73:I87) -> 0 | J88: =SUM(J72:J87) -> 7406000
G89: Извори финансирања за програмску активност 2101-0001:
F90: 01 | G90: Приходи из буџета | H90: =SUM(H10:H70) -> 7406000 | J90: =SUM(H90:I90) -> 7406000
F91: 02 | G91: Трансфери између корисника на истом нивоу | J91: =SUM(H91:I91) -> 0
F92: 03 | G92: Социјални доприноси | J92: 0
F93: 04 | G93: Сопствени приходи буџетских корисника | J93: 0
F94: 05 | G94: Донације од иностраних земаља | J94: 0
F95: 06 | G95: Донације од међународних организација | J95: 0
F96: 07 | G96: Трансфери од других нивоа власти | J96: 0
F97: 08 | G97: Добровољни трансфери од физичких и правних лица | J97: 0
F98: 09 | G98: Примања од продаје нефинансијске имовине | J98: 0
F99: 10 | G99: Примања од домаћих задуживања | J99: 0
F100: 11 | G100: Примања од иностраних задуживања | J100: 0
F101: 12 | G101: Примања од отплате датих кредита и продаје финансијске имовине | J101: 0
F102: 13 | G102: Нераспоређени вишак прихода из ранијих година | J102: 0
F103: 14 | G103: Неутрошена средства од приватизације из претходних година | J103: 0
F104: 15 | G104: Неутрошена средства донација из претходних година | J104: 0
F105: 16 | G105: Родитељски динар за ваннаставне активности | J105: 0
G106: Свега за програмску активност 2101-0001: | H106: =SUM(H90:H105) -> 7406000 | I106: =SUM(I91:I105) -> 0 | J106: =SUM(J90:J105) -> 7406000
C108: 0602-П1 | G108: Прослава Дана особођења Града
D109: 110 | G109: Извршни и законодавни органи, финансијски и фискални послови и спољни послови
F110: 411 | G110: Плате, додаци и накнаде запослених (зараде) | J110: =SUM(H110:I110) -> 0
F111: 412 | G111: Социјални доприноси на терет послодавца | J111: =SUM(H111:I111) -> 0
F112: 413 | G112: Накнаде у натури | J112: 0
F113: 414 | G113: Социјална давања запосленима | J113: 0
F114: 415 | G114: Накнаде трошкова за запослене | J114: 0
F115: 416 | G115: Награде запосленима и остали посебни расходи | J115: 0
F116: 417 | G116: Посланички додатак | J116: 0
F117: 418 | G117: Судијски додатак. | J117: 0
F118: 421 | G118: Стални трошкови | J118: 0
F119: 422 | G119: Трошкови путовања | J119: 0
F120: 423 | G120: Услуге по уговору | J120: 0
F121: 424 | G121: Специјализоване услуге | J121: 0
F122: 425 | G122: Текуће поправке и одржавање | J122: 0
F123: 426 | G123: Материјал | J123: 0
F124: 431 | G124: Амортизација некретнина и опреме | J124: 0
F125: 432 | G125: Амортизација култивисане имовине | J125: 0
F126: 433 | G126: Употреба драгоцености | J126: 0
F127: 434 | G127: Употреба природне имовине | J127: 0
F128: 435 | G128: Амортизација нематеријалне имовине | J128: 0
F129: 441 | G129: Отплата домаћих камата | J129: 0
F130: 442 | G130: Отплата страних камата | J130: 0
F131: 443 | G131: Отплата камата по гаранцијама | J131: 0
F132: 444 | G132: Пратећи трошкови задуживања | J132: 0
F133: 4511 | G133: Текуће субвенције јавним нефинансијским предузећима и организацијама | J133: 0
F134: 4512 | G134: Капиталне субвенције јавним нефинансијским предузећима и организацијама | J134: 0
F135: 452 | G135: Субвенције приватним финансијским институцијама | J135: 0
F136: 453 | G136: Субвенције јавним финансијским институцијама | J136: 0
F137: 454 | G137: Субвенције приватним предузећима | J137: 0
F138: 461 | G138: Донације страним владама | J138: 0
F139: 462 | G139: Донације и дотације међународним организацијама | J139: 0
F140: 4631 | G140: Текући трансфери осталим нивоима власти | J140: 0
F141: 4632 | G141: Капитални трансфери осталим нивоима власти | J141: 0
F142: 464 | G142: Дотације организацијама обавезног социјалног осигурања | J142: 0
F143: 465 | G143: Остале донације, дотације и трансфери | J143: 0
F144: 472 | G144: Накнаде за социјалну заштиту из буџета | J144: 0
F145: 481 | G145: Дотације невладиним организацијама | J145: 0
F146: 482 | G146: Порези, обавезне таксе, казне и пенали | J146: 0
F147: 483 | G147: Новчане казне и пенали по решењу судова | J147: 0
F148: 484 | G148: Накнада штете за повреде или штету насталу услед елементарних непогода или других природних узрока | J148: 0
F149: 485 | G149: Накнада штете за повреде или штету нанету од стране државних органа | J149: 0
F150: 489 | G150: Расходи који се финансирају из средстава за реализацију националног инвестиционог плана | J150: 0
F151: 494 | G151: Административни трансфери из буџета - Текући расходи | J151: 0
F152: 495 | G152: Административни трансфери из буџета - Издаци за нефинансијску имовину | J152: 0
F153: 496 | G153: Административни трансфери из буџета - Издаци за отплату главнице и набавку финансијске имовине | J153: 0
F154: 499 | G154: Административни трансфери из буџета - Средства резерве | J154: 0
F155: 511 | G155: Зграде и грађевински објекти | J155: 0
F156: 512 | G156: Машине и опрема | J156: 0
F157: 513 | G157: Остале некретнине и опрема | J157: 0
F158: 514 | G158: Култивисана имовина | J158: 0
F159: 515 | G159: Нематеријална имовина | J159: 0
F160: 521 | G160: Робне резерве | J160: 0
F161: 522 | G161: Залихе производње | J161: 0
F162: 523 | G162: Залихе робе за даљу продају | J162: 0
F163: 531 | G163: Драгоцености | J163: 0
F164: 541 | G164: Земљиште | J164: 0
F165: 542 | G165: Рудна богатства | J165: 0
F166: 543 | G166: Шуме и воде | J166: 0
F167: 551 | G167: Нефинансијска имовина која се финансира из средстава за реализацију националног инвестиционог плана | J167: 0
F168: 611 | G168: Отплата главнице домаћим кредиторима | J168: 0
F169: 620 | G169: Набавка финансијске имовине | J169: 0
G170: Извори финансирања за функцију 110:
F171: 01 | G171: Приходи из буџета | H171: =SUM(H110:H169) -> 0 | J171: =SUM(H171:I171) -> 0
F172: 02 | G172: Трансфери између корисника на истом нивоу | J172: =SUM(H172:I172) -> 0
F173: 03 | G173: Социјални доприноси | J173: 0
F174: 04 | G174: Сопствени приходи буџетских корисника | J174: 0
F175: 05 | G175: Донације од иностраних земаља | J175: 0
F176: 06 | G176: Донације од међународних организација | J176: 0
F177: 07 | G177: Трансфери од других нивоа власти | J177: 0
F178: 08 | G178: Добровољни трансфери од физичких и правних лица | J178: 0
F179: 09 | G179: Примања од продаје нефинансијске имовине | J179: 0
F180: 10 | G180: Примања од домаћих задуживања | J180: 0
F181: 11 | G181: Примања од иностраних задуживања | J181: 0
F182: 12 | G182: Примања од отплате датих кредита и продаје финансијске имовине | J182: 0
F183: 13 | G183: Нераспоређени вишак прихода из ранијих година | J183: 0
F184: 14 | G184: Неутрошена средства од приватизације из претходних година | J184: 0
F185: 15 | G185: Неутрошена средства донација из претходних година | J185: 0
F186: 16 | G186: Родитељски динар за ваннаставне активности | J186: 0
G187: Функција 110: | H187: =SUM(H171:H186) -> 0 | I187: =SUM(I172:I186) -> 0 | J187: =SUM(J171:J186) -> 0
G188: Извори финансирања за пројекат 0602-П1:
F189: 01 | G189: Приходи из буџета | H189: =SUM(H110:H169) -> 0 | J189: =SUM(H189:I189) -> 0
F190: 02 | G190: Трансфери између корисника на истом нивоу | J190: =SUM(H190:I190) -> 0
F191: 03 | G191: Социјални доприноси | J191: 0
F192: 04 | G192: Сопствени приходи буџетских корисника | J192: 0
F193: 05 | G193: Донације од иностраних земаља | J193: 0
F194: 06 | G194: Донације од међународних организација | J194: 0
F195: 07 | G195: Трансфери од других нивоа власти | J195: 0
F196: 08 | G196: Добровољни трансфери од физичких и правних лица | J196: 0
F197: 09 | G197: Примања од продаје нефинансијске имовине | J197: 0
F198: 10 | G198: Примања од домаћих задуживања | J198: 0
F199: 11 | G199: Примања од иностраних задуживања | J199: 0
F200: 12 | G200: Примања од отплате датих кредита и продаје финансијске имовине | J200: 0
F201: 13 | G201: Нераспоређени вишак прихода из ранијих година | J201: 0
F202: 14 | G202: Неутрошена средства од приватизације из претходних година | J202: 0
... 4117 more rows

Sheet Класификације
A1: ФУНКЦИОНАЛНА КЛАСИФИКАЦИЈА | G1: КЛАСИФИКАЦИЈА ПО ИЗВОРИМА ФИНАНСИРАЊА | L1: ЕКОНОМСКА КЛАСИФИКАЦИЈА | P1: ПРОГРАМСКА КЛАСИФИКАЦИЈА
A2: 0 | B2: СОЦИЈАЛНА ЗАШТИТА | G2: 01 | H2: Приходи из буџета | L2: КОНТО | M2: ОПИС | P2: Програм: | Q2: Шифра | R2: Сврха
A3: 10 | B3: Болест и инвалидност | G3: 02 | H3: Трансфери између корисника на истом нивоу | L3: 0 | M3: Нефинансијска имовина | P3: Програм 1. Локални развој и просторно планирање | Q3: 1101 | R3: Планско одређивање праваца развоја локалне средине и ефикасно администрирање захтева за издавање грађевинских дозвола
A4: 20 | B4: Старост | G4: 03 | H4: Социјални доприноси | L4: 10000 | M4: Нефинансијска имовина у сталним средствима | P4: Програм 2. Комунална делатност | Q4: 0601 | R4: Обезбеђивање рационалног обављања комуналних делатности са што већом обухватношћу територије и становништва ЈЛС и побољшање квалитета живота становништва успостављањем ефикасног система комуналних услуга
A5: 30 | B5: Корисници породичне пензије | G5: 04 | H5: Сопствени приходи буџетских корисника | L5: 11000 | M5: Некретнине и опрема | P5: Програм 3. Локални економски развој | Q5: 1501 | R5: Обезбеђивање стимулативног оквира за пословање и адекватног привредног амбијента за привлачење инвестиција
A6: 40 | B6: Породица и деца | G6: 05 | H6: Донације од иностраних земаља | L6: 11100 | M6: Зграде и грађевински објекти | P6: Програм 4. Развој туризма | Q6: 1502 | R6: Унапређење туристичке понуде у ЈЛС
A7: 50 | B7: Незапосленост | G7: 06 | H7: Донације од међународних организација | L7: 11110 | M7: Стамбене зграде и станови | P7: Програм 5. Развој пољопривреде | Q7: 0101 | R7: Унапређење пољопривредне производње у ЈЛС
A8: 60 | B8: Становање | G8: 07 | H8: Трансфери од осталих нивоа власти | L8: 11111 | M8: Стамбене зграде за јавне службенике | P8: Програм 6. Заштита животне средине | Q8: 0401 | R8: Обезбеђивање услова за одрживи развој локалне заједнице одговорним односом према животној средини
A9: 70 | B9: Социјална помоћ угроженом становништву, некласификована на другом месту | G9: 08 | H9: Добровољни трансфери од физичких и правних лица | L9: 11112 | M9: Стамбени простор за социјалне групе | P9: Програм 7. Путна инфраструктура | Q9: 0701 | R9: Унапређење путне инфраструктуре у ЈЛС
A10: 80 | B10: Социјална заштита - истраживање и развој | G10: 09 | H10: Примања од продаје нефинансијске имовине | L10: 11113 | M10: Стамбени простор за избеглице | P10: Програм 8. Предшколско васпитање | Q10: 2001 | R10: Омогућавање обухвата предшколске деце у вртићима
A11: 90 | B11: Социјална заштита некласификована на другом месту | G11: 10 | H11: Примања од домаћих задуживања | L11: 11115 | M11: Остале стамбене зграде | P11: Програм 9. Основно образовање | Q11: 2002 | R11: Доступност основног образовања свој деци са територије ЈЛС у складу са прописаним стандардима
A12: 100 | B12: ОПШТЕ ЈАВНЕ УСЛУГЕ | G12: 11 | H12: Примања од иностраних задуживања | L12: 11116 | M12: Лизинг стамбених зграда и станова | P12: Програм 10. Средње образовање | Q12: 2003 | R12: Доступност средњег образовања у складу са прописаним стандардима и потребама за образовним профилима који одговарају циљевима развоја ЈЛС и привреде
A13: 110 | B13: Извршни и законодавни органи, финансијски и фискални послови и спољни послови | G13: 12 | H13: Примања од отплате датих кредита и продаје финансијске имовине | L13: 11117 | M13: Добити које су резултат промене вредности стамбених зграда и станова | P13: Програм 11. Социјална и дечја заштита | Q13: 0901 | R13: Обезбеђивање свеобухватне социјалне заштите и помоћи најугроженијем становништву ЈЛС
A14: 111 | B14: Извршни и законодавни органи | G14: 13 | H14: Нераспоређени вишак прихода из ранијих година | L14: 11118 | M14: Друге промене у обиму стамбених зграда и станова | P14: Програм 12. Примарна здравствена заштита | Q14: 1801 | R14: Доступност примарне здравствене заштите у складу са националним стандардима
A15: 112 | B15: Финансијски и фискални послови | G15: 14 | H15: Неутрошена средства од приватизације из претходних година | L15: 11119 | M15: Исправка вредности стамбених зграда и станова | P15: Програм 13. Развој културе | Q15: 1201 | R15: Очување, унапређење и представљање локалног културног наслеђа, добара и баштине
A16: 113 | B16: Спољни послови | G16: 15 | H16: Неутрошена средства донација из претходних година | L16: 11120 | M16: Пословне зграде | P16: Програм 14. Развој спорта и омладине | Q16: 1301 | R16: Обезбеђивање приступа спорту и подршка пројектима везаним развој омладине и спорта
A17: 120 | B17: Економска помоћ иностранству | G17: 16 | H17: Родитељски динар за ваннаставне активности | L17: 11121 | M17: Болнице, домови здравља и старачки домови | P17: Програм 15. Локална самоуправа | Q17: 0602 | R17: Обезбеђивање услова за остварење права грађана на лакши и бржи начин у ЈЛС
A18: 121 | B18: Економска помоћ земљама у развоју и земљама у транзицији | L18: 11125 | M18: Остале пословне зграде
A19: 122 | B19: Економска помоћ преко међународних организација | L19: 11126 | M19: Лизинг пословних зграда
A20: 130 | B20: Опште услуге | L20: 11127 | M20: Добити које су резултат промене вредности пословних зграда
A21: 131 | B21: Опште кадровске услуге | L21: 11128 | M21: Друге промене у обиму пословних зграда
A22: 132 | B22: Опште услуге планирања и статистике | L22: 11129 | M22: Исправка вредности пословних зграда
A23: 133 | B23: Остале опште услуге | L23: 11130 | M23: Пословни простор и други објекти | P23: Програм_1__Локални_развој_и_просторно_планирање | Q23: 1101-0001 Стратешко, просторно и урбанистичко планирање | R23: 1101-0002 Уређивање грађевинског земљишта
A24: 140 | B24: Основно истраживање | L24: 11131 | M24: Објекти за потребе образовања | P24: Програм_2__Комунална_делатност | Q24: 0601-0001 Водоснабдевање | R24: 0601-0002 Управљање отпадним водама | S24: 0601-0003 Одржавање депонија | T24: 0601-0004 Даљинско грејање | U24: 0601-0005 Јавни превоз | V24: 0601-0006 Паркинг сервис | W24: 0601-0007 Уређивање, одржавање и коришћење пијаца | X24: 0601-0008 Јавна хигијена | Y24: 0601-0009 Уређење и одржавање зеленила | Z24: 0601-0010 Јавна расвета | AA24: 0601-0011 Одржавање гробаља и погребне услуге | AB24: 0601-0012 Одржавање стамбених зграда | AC24: 0601-0013 Ауто-такси превоз путника | AD24: 0601-0014 Остале комуналне услуге
A25: 150 | B25: Опште јавне услуге - истраживање и развој | L25: 11132 | M25: Ресторани, одмаралишта | P25: Програм_3__Локални_економски_развој | Q25: 1501-0001 Подршка постојећој привреди | R25: 1501-0002 Унапређење привредног амбијента | S25: 1501-0003 Подстицаји за развој предузетништва | T25: 1501-0004 Одржавање економске инфраструктуре | U25: 1501-0005 Финансијска подршка локалном економском развоју
A26: 160 | B26: Опште јавне услуге некласификоване на другом месту | L26: 11133 | M26: Складишта, силоси, гараже и сл. | P26: Програм_4__Развој_туризма | Q26: 1502-0001 Управљање развојем туризма | R26: 1502-0002 Туристичка промоција
A27: 170 | B27: Трансакције јавног дуга | L27: 11134 | M27: Гранични прелази | P27: Програм_5__Развој_пољопривреде | Q27: 0101-0001 Унапређење услова за пољопривредну делатност | R27: 0101-0002 Подстицаји пољопривредној производњи
A28: 180 | B28: Трансфери општег карактера између различитих нивоа власти | L28: 11135 | M28: Фабричке хале | P28: Програм_6__Заштита_животне_средине | Q28: 0401-0001 Управљање заштитом животне средине и природних вредности | R28: 0401-0002 Управљање комуналним отпадом | S28: 0401-0003 Праћење квалитета елемената животне средине | T28: 0401-0004 Заштита природних вредности и унапређење подручја са природним својствима
A29: 200 | B29: ОДБРАНА | L29: 11136 | M29: Лизинг пословног простора и других објеката | P29: Програм_7__Путна_инфраструктура | Q29: 0701-0001 Управљање саобраћајном инфраструктуром | R29: 0701-0002 Одржавање путева
A30: 210 | B30: Војна одбрана | L30: 11137 | M30: Добити које су резултат промене вредности пословног простора и других објеката | P30: Програм_8__Предшколско_васпитање | Q30: 2001-0001 Функционисање предшколских установа
A31: 220 | B31: Цивилна одбрана | L31: 11138 | M31: Друге промене у обиму пословног простора и других објеката | P31: Програм_9__Основно_образовање | Q31: 2002-0001 Функционисање основних школа
A32: 230 | B32: Војна помоћ иностранству | L32: 11139 | M32: Исправка вредности пословног простора и других објеката | P32: Програм_10_Средње_образовање | Q32: 2003-0001 Функционисање средњих школа
A33: 240 | B33: Одбрана - истраживање и развој | L33: 11140 | M33: Саобраћајни објекти | P33: Програм_11__Социјална__и_дечја_заштита | Q33: 0901-0001 Социјалне помоћи | R33: 0901-0002 Прихватилишта, прихватне станице и друге врсте смештаја | S33: 0901-0003 Подршка социо-хуманитарним организацијама | T33: 0901-0004 Саветодавно-терапијске и социјално-едукативне услуге | U33: 0901-0005 Активности Црвеног крста | V33: 0901-0006 Дечја заштита
A34: 250 | B34: Одбрана некласификована на другом месту | L34: 11141 | M34: Аутопутеви, мостови, надвожњаци и тунели | P34: Програм_12__Примарна_здравствена_заштита | Q34: 1801-0001 Функционисање установа примарне здравствене заштите
A35: 300 | B35: ЈАВНИ РЕД И БЕЗБЕДНОСТ | L35: 11142 | M35: Пруге | P35: Програм_13__Развој_културе | Q35: 1201-0001 Функционисање локалних установа културе | R35: 1201-0002 Подстицаји културном и уметничком стваралаштву
A36: 310 | B36: Услуге полиције | L36: 11143 | M36: Аеродромске писте | P36: Програм_14__Развој_спорта_и_омладине | Q36: 1301-0001 Подршка локалним спортским организацијама, удружењима и савезима | R36: 1301-0002 Подршка предшколском, школском и рекреативном спорту и масовној физичкој култури | S36: 1301-0003 Одржавање спортске инфраструктуре
A37: 320 | B37: Услуге противпожарне заштите | L37: 11145 | M37: Остали саобраћајни објекти | P37: Програм_15__Локална_самоуправа | Q37: 0602-0001 Функционисање локалне самоуправе и градских општина | R37: 0602-0002 Месне заједнице | S37: 0602-0003 Управљање јавним дугом | T37: 0602-0004 Општинско јавно правобранилаштво | U37: 0602-0005 Заштитник грађана | V37: 0602-0006 Информисање | W37: 0602-0007 Канцеларија за младе | X37: 0602-0008 Програми националних мањина | Y37: 0602-0009 Правна помоћ | Z37: 0602-0010 Резерве
A38: 330 | B38: Судови | L38: 11146 | M38: Лизинг саобраћајних објеката
A39: 350 | B39: Јавни ред и безбедност - истраживање и развој | L39: 11147 | M39: Добити које су резултат промене вредности саобраћајних објеката
A40: 360 | B40: Јавни ред и безбедност некласификован на другом месту | L40: 11148 | M40: Друге промене у обиму саобраћајних објеката
A41: 400 | B41: ЕКОНОМСКИ ПОСЛОВИ | L41: 11149 | M41: Исправка вредности саобраћајних објеката
A42: 410 | B42: Општи економски и комерцијални послови и послови по питању рада | L42: 11150 | M42: Водоводна инфраструктура
A43: 411 | B43: Општи економски и комерцијални послови | L43: 11151 | M43: Водовод
A44: 412 | B44: Општи послови по питању рада | L44: 11152 | M44: Канализација
A45: 420 | B45: Пољопривреда, шумарство, лов и риболов | L45: 11153 | M45: Луке
A46: 421 | B46: Пољопривреда | L46: 11154 | M46: Бране
A47: 422 | B47: Шумарство | L47: 11155 | M47: Остали облици водоводне инфраструктуре
A48: 423 | B48: Лов и риболов | L48: 11156 | M48: Лизинг водоводне инфраструктуре
A49: 430 | B49: Гориво и енергија | L49: 11157 | M49: Добити које су резултат промене вредности водоводне инфраструктуре
A50: 431 | B50: Угаљ и остала чврста минерална горива | L50: 11158 | M50: Друге промене у обиму водоводне инфраструктуре
A51: 432 | B51: Нафта и природни гас | L51: 11159 | M51: Исправка вредности водоводне инфраструктуре
A52: 433 | B52: Нуклеарно гориво | L52: 11190 | M52: Остали објекти
A53: 434 | B53: Остала горива | L53: 11191 | M53: Плиноводи
A54: 435 | B54: Електрична енергија | L54: 11192 | M54: Комуникациони и електрични водови
A55: 436 | B55: Остала енергија | L55: 11193 | M55: Спортски и рекреациони објекти
A56: 440 | B56: Рударство, производња и изградња | L56: 11194 | M56: Установе културе
A57: 441 | B57: Ископавање минералних ресурса, изузев минералних горива | L57: 11195 | M57: Затвори
A58: 442 | B58: Производња | L58: 11196 | M58: Лизинг осталих објеката
A59: 443 | B59: Изградња | L59: 11197 | M59: Добити које су резултат промене вредности осталих објеката
A60: 450 | B60: Саобраћај | L60: 11198 | M60: Друге промене у обиму осталих објеката
A61: 451 | B61: Друмски саобраћај | L61: 11199 | M61: Исправка вредности осталих објеката
A62: 452 | B62: Водени саобраћај | L62: 11200 | M62: Опрема
A63: 453 | B63: Железнички саобраћај | L63: 11210 | M63: Опрема за саобраћај
A64: 454 | B64: Ваздушни саобраћај | L64: 11211 | M64: Опрема за копнени саобраћај
A65: 455 | B65: Цевоводи и други облици саобраћаја | L65: 11212 | M65: Пловни објекти
A66: 460 | B66: Комуникације | L66: 11213 | M66: Опрема за ваздушни саобраћај
A67: 470 | B67: Остале делатности | L67: 11215 | M67: Остала опрема за саобраћај
A68: 471 | B68: Трговина, смештај и складиштење | L68: 11216 | M68: Лизинг опреме за саобраћај
A69: 472 | B69: Хотели и ресторани | L69: 11217 | M69: Добити које су резултат промене вредности саобраћајне опреме
A70: 473 | B70: Туризам | L70: 11218 | M70: Друге промене у обиму саобраћајне опреме
A71: 474 | B71: Вишенаменски развојни пројекти | L71: 11219 | M71: Исправка вредности саобраћајне опреме
A72: 480 | B72: Економски послови - истраживање и развој | L72: 11220 | M72: Административна опрема
A73: 481 | B73: Истраживање и развој - Општи економски и комерцијални послови и послови по питању рада | L73: 11221 | M73: Канцеларијска опрема
A74: 482 | B74: Истраживање и развој - Пољопривреда, шумарство, лов и риболов | L74: 11222 | M74: Рачунарска опрема
A75: 483 | B75: Истраживање и развој - Гориво и енергија | L75: 11223 | M75: Комуникациона опрема
A76: 484 | B76: Истраживање и развој - Рударство, производња и изградња | L76: 11224 | M76: Електронска и фотографска опрема
A77: 485 | B77: Истраживање и развој - Саобраћај | L77: 11225 | M77: Опрема за домаћинство и угоститељство
A78: 486 | B78: Истраживање и развој - Комуникације | L78: 11226 | M78: Лизинг административне опреме
A79: 487 | B79: Истраживање и развој - Остале делатности | L79: 11227 | M79: Добити које су резултат промене вредности административне опреме
A80: 490 | B80: Економски послови некласификовани на другом месту | L80: 11228 | M80: Друге промене у обиму административне опреме
A81: 500 | B81: ЗАШТИТА ЖИВОТНЕ СРЕДИНЕ | L81: 11229 | M81: Исправка вредности административне опреме
A82: 510 | B82: Управљање отпадом | L82: 11230 | M82: Опрема за пољопривреду
A83: 520 | B83: Управљање отпадним водама | L83: 11231 | M83: Опрема за пољопривреду
A84: 530 | B84: Смањење загађености | L84: 11236 | M84: Лизинг опреме за пољопривреду
A85: 540 | B85: Заштита биљног и животињског света и крајолика | L85: 11237 | M85: Добити које су резултат промене вредности пољопривредне опреме
A86: 550 | B86: Заштита животне средине - истраживање и развој | L86: 11238 | M86: Друге промене у обиму пољопривредне опреме
A87: 560 | B87: Заштита животне средине некласификована на другом месту | L87: 11239 | M87: Исправка вредности пољопривредне опреме
A88: 600 | B88: ПОСЛОВИ СТАНОВАЊА И ЗАЈЕДНИЦЕ | L88: 11240 | M88: Опрема за заштиту животне средине
A89: 610 | B89: Стамбени развој | L89: 11241 | M89: Опрема за заштиту животне средине
A90: 620 | B90: Развој заједнице | L90: 11246 | M90: Лизинг опреме за заштиту животне средине
A91: 630 | B91: Водоснабдевање | L91: 11247 | M91: Добити које су резултат промене вредности опреме за заштиту животне средине
A92: 640 | B92: Улична расвета | L92: 11248 | M92: Друге промене у обиму опреме за заштиту животне средине
A93: 650 | B93: Послови становања и заједнице - истраживање и развој | L93: 11249 | M93: Исправка вредности опреме за заштиту животне околине
A94: 660 | B94: Послови становања и заједнице некласификовани на другом месту | L94: 11250 | M94: Медицинска и лабораторијска опрема
A95: 700 | B95: ЗДРАВСТВО | L95: 11251 | M95: Медицинска опрема
A96: 710 | B96: Медицински производи, помагала и опрема | L96: 11252 | M96: Лабораторијска опрема
A97: 711 | B97: Фармацеутски производи | L97: 11253 | M97: Мерни и контролни инструменти
A98: 712 | B98: Остали медицински производи | L98: 11255 | M98: Остала медицинска и лабораторијска опрема
A99: 713 | B99: Терапеутска помагала и опрема | L99: 11256 | M99: Лизинг медицинске и лабораторијске опреме
A100: 720 | B100: Ванболничке услуге | L100: 11257 | M100: Добити које су резултат промене вредности медицинске и лабораторијске опреме
A101: 721 | B101: Опште медицинске услуге | L101: 11258 | M101: Друге промене у обиму медицинске и лабораторијске опреме
A102: 722 | B102: Специјализоване медицинске услуге | L102: 11259 | M102: Исправка вредности медицинске и лабораторијске опреме
A103: 723 | B103: Стоматолошке услуге | L103: 11260 | M103: Опрема за образовање, науку, културу и спорт
A104: 724 | B104: Парамедицинске услуге | L104: 11261 | M104: Опрема за образовање
A105: 730 | B105: Болничке услуге | L105: 11262 | M105: Опрема за науку
A106: 731 | B106: Опште болничке услуге | L106: 11263 | M106: Опрема за културу
A107: 732 | B107: Специјализоване болничке услуге | L107: 11264 | M107: Опрема за спорт
A108: 733 | B108: Услуге медицинских центара и породилишта | L108: 11266 | M108: Лизинг опреме за образовање, науку, културу и спорт
A109: 734 | B109: Услуге домова за негу и опоравак | L109: 11267 | M109: Добити које су резултат промене вредности опреме за образовање, науку, културу и спорт
A110: 740 | B110: Услуге јавног здравства | L110: 11268 | M110: Друге промене у обиму опреме за образовање, науку, културу и спорт
A111: 750 | B111: Здравство истраживање и развој | L111: 11269 | M111: Исправка вредности опреме за образовање, науку, културу и спорт
A112: 760 | B112: Здравство некласификовано на другом месту | L112: 11270 | M112: Опрема за војску
A113: 800 | B113: РЕКРЕАЦИЈА, СПОРТ, КУЛТУРА И ВЕРЕ | L113: 11271 | M113: Опрема за војску
A114: 810 | B114: Услуге рекреације и спорта | L114: 11276 | M114: Лизинг опреме за војску
A115: 820 | B115: Услуге културе | L115: 11277 | M115: Добити које су резултат промене вредности опреме за војску
A116: 830 | B116: Услуге емитовања и штампања | L116: 11278 | M116: Друге промене у обиму опреме за војску
A117: 840 | B117: Верске и остале услуге заједнице | L117: 11279 | M117: Исправка вредности опреме за војску
A118: 850 | B118: Рекреација, спорт, култура и вере - истраживање и развој | L118: 11280 | M118: Опрема за јавну безбедност
A119: 860 | B119: Рекреација, спорт, култура и вере, некласификовано на другом месту | L119: 11281 | M119: Опрема за јавну безбедност
A120: 900 | B120: ОБРАЗОВАЊЕ | L120: 11286 | M120: Лизинг опреме за јавну безбедност
A121: 910 | B121: Предшколско и основно образовање | L121: 11287 | M121: Добити које су резултат промене вредности опреме за јавну безбедност
A122: 911 | B122: Предшколско образовање | L122: 11288 | M122: Друге промене у обиму опреме зa јавну безбедност
A123: 912 | B123: Основно образовање | L123: 11289 | M123: Исправка вредности опреме за јавну безбедност
A124: 913 | B124: Основно образовање са домом ученика | L124: 11290 | M124: Опрема за производњу, моторна, непокретна и немоторна опрема
A125: 914 | B125: Основно образовање са средњом школом | L125: 11291 | M125: Производна опрема
A126: 915 | B126: Специјално основно образовање | L126: 11292 | M126: Моторна опрема
A127: 916 | B127: Основно образовање са средњом школом и домом ученика | L127: 11293 | M127: Непокретна опрема
A128: 920 | B128: Средње образовање | L128: 11294 | M128: Немоторна опрема
A129: 921 | B129: Ниже средње образовање | L129: 11296 | M129: Лизинг опреме за производњу, моторну, непокретну и немоторну опрему
A130: 922 | B130: Више средње образовање | L130: 11297 | M130: Добити које су резултат промене вредности опреме за производњу, моторне, непокретне и немоторне опреме
A131: 923 | B131: Средње образовање са домом ученика | L131: 11298 | M131: Друге промене у обиму опреме за производњу, моторне, непокретне и немоторне опреме
A132: 930 | B132: Више образовање | L132: 11299 | M132: Исправка вредности опреме за производњу, моторне, непокретне и немоторне опреме
A133: 931 | B133: Више образовање | L133: 11300 | M133: Остале некретнине и опрема
A134: 932 | B134: Више образовање са студентским домом | L134: 11310 | M134: Остале некретнине и опрема
A135: 940 | B135: Високо образовање | L135: 11311 | M135: Остале некретнине и опрема
A136: 941 | B136: Високо образовање - први степен | L136: 11316 | M136: Лизинг-Остале некретнине и опрема
A137: 942 | B137: Високо образовање - други степен | L137: 11317 | M137: Добити које су резултат промене вредности-остале некретнине и опрема
A138: 950 | B138: Образовање које није дефинисано нивоом | L138: 11318 | M138: Друге промене у обиму-остале некретнине и опрема
A139: 960 | B139: Помоћне услуге образовању | L139: 11319 | M139: Исправка вредности-остале некретнине и опрема
A140: 970 | B140: Образовање - истраживање и развој | L140: 12000 | M140: Култивисана имовина
A141: 980 | B141: Образовање некласификовано на другом месту | L141: 12100 | M141: Култивисана имовина
L142: 12110 | M142: Култивисана имовина
L143: 12111 | M143: Основно стадо
L144: 12112 | M144: Вишегодишњи засади
L145: 12117 | M145: Добити које су резултат промене вредности култивисане имовине
L146: 12118 | M146: Друге промене у обиму култивисане имовине
L147: 12119 | M147: Исправка вредности култивисане имовине
L148: 13000 | M148: Драгоцености
L149: 13100 | M149: Драгоцености
L150: 13110 | M150: Драгоцености
L151: 13111 | M151: Злато
L152: 13112 | M152: Сребро
L153: 13113 | M153: Накит од племенитих метала
L154: 13114 | M154: Антика и други предмети
L155: 13115 | M155: Остале драгоцености
L156: 13117 | M156: Добити које су резултат промене вредности драгоцености
L157: 13118 | M157: Друге промене у обиму драгоцености
L158: 13119 | M158: Исправка вредности драгоцености
L159: 14000 | M159: Природна имовина
L160: 14100 | M160: Земљиште
L161: 14110 | M161: Земљиште
L162: 14111 | M162: Пољопривредно земљиште
L163: 14112 | M163: Грађевинско земљиште
L164: 14113 | M164: Земља која је испод зграда и објеката
L165: 14114 | M165: Спортски терени и придружена водена површина
L166: 14115 | M166: Остало земљиште и придружена водена површина
L167: 14117 | M167: Добити које су резултат промене вредности земљишта
L168: 14118 | M168: Друге промене у обиму земљишта
L169: 14119 | M169: Исправка вредности земљишта
L170: 14200 | M170: Подземна блага
L171: 14210 | M171: Подземна блага
L172: 14211 | M172: Копови
L173: 14212 | M173: Угаљ, нафта и природни гас
L174: 14213 | M174: Минералне резерве метала
L175: 14217 | M175: Добити које су резултат промене вредности подземних блага
L176: 14218 | M176: Друге промене у обиму подземних блага
L177: 14219 | M177: Исправка вредности подземних блага
L178: 14300 | M178: Шуме и воде
L179: 14310 | M179: Шуме
L180: 14311 | M180: Шуме
L181: 14317 | M181: Добити које су резултат промене вредности шума
L182: 14318 | M182: Друге промене у обиму шума
L183: 14319 | M183: Трошење вредности шума
L184: 14320 | M184: Воде
L185: 14321 | M185: Воде
L186: 14327 | M186: Добити које су резултат промене вредности воде
L187: 14328 | M187: Друге промене у обиму воде
L188: 14329 | M188: Исправка вредности воде
L189: 15000 | M189: Нефинансијска имовина у припреми и аванси
L190: 15100 | M190: Нефинансијска имовина у припреми
L191: 15110 | M191: Грађевински објекти у припреми
L192: 15111 | M192: Стамбени грађевински објекти у припреми
L193: 15112 | M193: Пословне зграде и други грађевински објекти у припреми
L194: 15113 | M194: Саобраћајни објекти у припреми
L195: 15114 | M195: Водоводна инфраструктура у припреми
L196: 15115 | M196: Други објекти у припреми
L197: 15120 | M197: Опрема у припреми
L198: 15121 | M198: Саобраћајна опрема у припреми
L199: 15122 | M199: Административна опрема у припреми
L200: 15123 | M200: Пољопривредна опрема у припреми
... 4532 more rows
